{"text_format":"1","workbook":"xlsx","n_sheets":24,"sheets":["elementyKlasyfikacji","TABL#2","source","Strona 1","Strona 2","Strona 3","Strona 4","Strona 5","Strona 6","Strona 7","Strona 8","Strona 9","Zał. 7 strona 1","Zał. 7 strona 2","Zał. 7 strona 3","Zał. 7 strona 4","Zał. 7 strona 5","Zał. 7 strona 6","Zał. 7 strona 7","Zał. 7 strona 8","Zał. 8 strona 1","Zał. 9","Zał. 9a","RSI"],"not_rendered":{"charts":0,"images":5,"macros":1,"external_links":0,"defined_names":31,"comments":0,"pivot_tables":0},"unopened":[],"bounds":{"document_bytes":16777216,"sheet_cells":100000,"rows_first":2000,"rows_last":500,"rows_between":2000,"halvings":0,"cell_chars":16384,"cell_head_chars":4096},"cells_cut":0,"cells_raw":0,"read":"whole","date_system":"1900"}

{"sheet":"elementyKlasyfikacji","index":0,"n_rows":1543,"n_cols":2,"rows_kept":1543,"cut":false,"hidden":true,"merged":[]}
["symbol","nazwa"]
["01.1","Uprawy rolne inne niż wieloletnie "]
["01.11","Uprawa zbóż, roślin strączkowych i roślin oleistych na nasiona, z wyłączeniem ryżu"]
["01.11.Z","Uprawa zbóż, roślin strączkowych i roślin oleistych na nasiona, z wyłączeniem ryżu"]
["01.12","Uprawa ryżu"]
["01.12.Z","Uprawa ryżu"]
["01.13","Uprawa warzyw, włączając melony oraz uprawa roślin korzeniowych i roślin bulwiastych"]
["01.13.Z","Uprawa warzyw, włączając melony oraz uprawa roślin korzeniowych i roślin bulwiastych"]
["01.14","Uprawa trzciny cukrowej"]
["01.14.Z","Uprawa trzciny cukrowej"]
["01.15","Uprawa tytoniu"]
["01.15.Z","Uprawa tytoniu"]
["01.16","Uprawa roślin włóknistych"]
["01.16.Z","Uprawa roślin włóknistych"]
["01.19","Pozostałe uprawy rolne inne niż wieloletnie"]
["01.19.Z","Pozostałe uprawy rolne inne niż wieloletnie"]
["01.2","Uprawa roślin wieloletnich"]
["01.21","Uprawa winogron"]
["01.21.Z","Uprawa winogron"]
["01.22","Uprawa drzew i krzewów owocowych tropikalnych i podzwrotnikowych"]
["01.22.Z","Uprawa drzew i krzewów owocowych tropikalnych i podzwrotnikowych"]
["01.23","Uprawa drzew i krzewów owocowych cytrusowych"]
["01.23.Z","Uprawa drzew i krzewów owocowych cytrusowych"]
["01.24","Uprawa drzew i krzewów owocowych ziarnkowych i pestkowych"]
["01.24.Z","Uprawa drzew i krzewów owocowych ziarnkowych i pestkowych"]
["01.25","Uprawa pozostałych drzew i krzewów owocowych oraz orzechów"]
["01.25.Z","Uprawa pozostałych drzew i krzewów owocowych oraz orzechów"]
["01.26","Uprawa drzew oleistych"]
["01.26.Z","Uprawa drzew oleistych"]
["01.27","Uprawa roślin wykorzystywanych do produkcji napojów"]
["01.27.Z","Uprawa roślin wykorzystywanych do produkcji napojów"]
["01.28","Uprawa roślin przyprawowych i aromatycznych oraz roślin wykorzystywanych do produkcji leków i wyrobów farmaceutycznych"]
["01.28.Z","Uprawa roślin przyprawowych i aromatycznych oraz roślin wykorzystywanych do produkcji leków i wyrobów farmaceutycznych"]
["01.29","Uprawa pozostałych roślin wieloletnich"]
["01.29.Z","Uprawa pozostałych roślin wieloletnich"]
["01.3","Rozmnażanie roślin"]
["01.30","Rozmnażanie roślin"]
["01.30.Z","Rozmnażanie roślin"]
["01.4","Chów i hodowla zwierząt"]
["01.41","Chów i hodowla bydła mlecznego"]
["01.41.Z","Chów i hodowla bydła mlecznego"]
["01.42","Chów i hodowla pozostałego bydła i bawołów"]
["01.42.Z","Chów i hodowla pozostałego bydła i bawołów"]
["01.43","Chów i hodowla koni i pozostałych zwierząt koniowatych"]
["01.43.Z","Chów i hodowla koni i pozostałych zwierząt koniowatych"]
["01.44","Chów i hodowla wielbłądów i zwierząt wielbłądowatych"]
["01.44.Z","Chów i hodowla wielbłądów i zwierząt wielbłądowatych"]
["01.45","Chów i hodowla owiec i kóz"]
["01.45.Z","Chów i hodowla owiec i kóz"]
["01.46","Chów i hodowla świń"]
["01.46.Z","Chów i hodowla świń"]
["01.47","Chów i hodowla drobiu"]
["01.47.Z","Chów i hodowla drobiu"]
["01.49","Chów i hodowla pozostałych zwierząt"]
["01.49.Z","Chów i hodowla pozostałych zwierząt"]
["01.5","Uprawy rolne połączone z chowem i hodowlą zwierząt (działalność mieszana)"]
["01.50","Uprawy rolne połączone z chowem i hodowlą zwierząt (działalność mieszana)"]
["01.50.Z","Uprawy rolne połączone z chowem i hodowlą zwierząt (działalność mieszana)"]
["01.6","Działalność usługowa wspomagająca rolnictwo i następująca po zbiorach"]
["01.61","Działalność usługowa wspomagająca produkcję roślinną"]
["01.61.Z","Działalność usługowa wspomagająca produkcję roślinną"]
["01.62","Działalność usługowa wspomagająca chów i hodowlę zwierząt gospodarskich"]
["01.62.Z","Działalność usługowa wspomagająca chów i hodowlę zwierząt gospodarskich"]
["01.63","Działalność usługowa następująca po zbiorach"]
["01.63.Z","Działalność usługowa następująca po zbiorach"]
["01.64","Obróbka nasion dla celów rozmnażania roślin"]
["01.64.Z","Obróbka nasion dla celów rozmnażania roślin"]
["01.7","Łowiectwo i pozyskiwanie zwierząt łownych, włączając działalność usługową"]
["01.70","Łowiectwo i pozyskiwanie zwierząt łownych, włączając działalność usługową"]
["01.70.Z","Łowiectwo i pozyskiwanie zwierząt łownych, włączając działalność usługową"]
["02.1","Gospodarka leśna i pozostała działalność leśna, z wyłączeniem pozyskiwania produktów leśnych"]
["02.10","Gospodarka leśna i pozostała działalność leśna, z wyłączeniem pozyskiwania produktów leśnych"]
["02.10.Z","Gospodarka leśna i pozostała działalność leśna, z wyłączeniem pozyskiwania produktów leśnych"]
["02.2","Pozyskiwanie drewna"]
["02.20","Pozyskiwanie drewna"]
["02.20.Z","Pozyskiwanie drewna"]
["02.3","Pozyskiwanie dziko rosnących produktów leśnych, z wyłączeniem drewna"]
["02.30","Pozyskiwanie dziko rosnących produktów leśnych, z wyłączeniem drewna"]
["02.30.Z","Pozyskiwanie dziko rosnących produktów leśnych, z wyłączeniem drewna"]
["02.4","Działalność usługowa związana z leśnictwem"]
["02.40","Działalność usługowa związana z leśnictwem"]
["02.40.Z","Działalność usługowa związana z leśnictwem"]
["03.1","Rybołówstwo"]
["03.11","Rybołówstwo w wodach morskich"]
["03.11.Z","Rybołówstwo w wodach morskich"]
["03.12","Rybołówstwo w wodach śródlądowych"]
["03.12.Z","Rybołówstwo w wodach śródlądowych"]
["03.2","Chów i hodowla ryb oraz pozostałych organizmów wodnych"]
["03.21","Chów i hodowla ryb oraz pozostałych organizmów wodnych w wodach morskich"]
["03.21.Z","Chów i hodowla ryb oraz pozostałych organizmów wodnych w wodach morskich"]
["03.22","Chów i hodowla ryb oraz pozostałych organizmów wodnych w wodach śródlądowych"]
["03.22.Z","Chów i hodowla ryb oraz pozostałych organizmów wodnych w wodach śródlądowych"]
["05.1","Wydobywanie węgla kamiennego"]
["05.10","Wydobywanie węgla kamiennego"]
["05.10.Z","Wydobywanie węgla kamiennego"]
["05.2","Wydobywanie węgla brunatnego (lignitu)"]
["05.20","Wydobywanie węgla brunatnego (lignitu)"]
["05.20.Z","Wydobywanie węgla brunatnego (lignitu)"]
["06.1","Górnictwo ropy naftowej"]
["06.10","Górnictwo ropy naftowej"]
["06.10.Z","Górnictwo ropy naftowej"]
["06.2","Górnictwo gazu ziemnego"]
["06.20","Górnictwo gazu ziemnego"]
["06.20.Z","Górnictwo gazu ziemnego"]
["07.1","Górnictwo rud żelaza"]
["07.10","Górnictwo rud żelaza"]
["07.10.Z","Górnictwo rud żelaza"]
["07.2","Górnictwo rud metali nieżelaznych"]
["07.21","Górnictwo rud uranu i toru"]
["07.21.Z","Górnictwo rud uranu i toru"]
["07.29","Górnictwo pozostałych rud metali nieżelaznych"]
["07.29.Z","Górnictwo pozostałych rud metali nieżelaznych"]
["08.1","Wydobywanie kamienia, piasku i gliny"]
["08.11","Wydobywanie kamieni ozdobnych oraz kamienia dla potrzeb budownictwa, skał wapiennych, gipsu, kredy i łupków"]
["08.11.Z","Wydobywanie kamieni ozdobnych oraz kamienia dla potrzeb budownictwa, skał wapiennych, gipsu, kredy i łupków"]
["08.12","Wydobywanie żwiru i piasku; wydobywanie gliny i kaolinu"]
["08.12.Z","Wydobywanie żwiru i piasku; wydobywanie gliny i kaolinu"]
["08.9","Górnictwo i wydobywanie, gdzie indziej niesklasyfikowane"]
["08.91","Wydobywanie minerałów dla przemysłu chemicznego oraz do produkcji nawozów"]
["08.91.Z","Wydobywanie minerałów dla przemysłu chemicznego oraz do produkcji nawozów"]
["08.92","Wydobywanie torfu"]
["08.92.Z","Wydobywanie torfu"]
["08.93","Wydobywanie soli"]
["08.93.Z","Wydobywanie soli"]
["08.99","Pozostałe górnictwo i wydobywanie, gdzie indziej niesklasyfikowane"]
["08.99.Z","Pozostałe górnictwo i wydobywanie, gdzie indziej niesklasyfikowane"]
["09.9","Działalność usługowa wspomagająca pozostałe górnictwo i wydobywanie"]
["09.90","Działalność usługowa wspomagająca pozostałe górnictwo i wydobywanie"]
["09.90.Z","Działalność usługowa wspomagająca pozostałe górnictwo i wydobywanie"]
["10.1","Przetwarzanie i konserwowanie mięsa oraz produkcja wyrobów z mięsa"]
["10.11","Przetwarzanie i konserwowanie mięsa, z wyłączeniem mięsa z drobiu"]
["10.11.Z","Przetwarzanie i konserwowanie mięsa, z wyłączeniem mięsa z drobiu"]
["10.12","Przetwarzanie i konserwowanie mięsa z drobiu"]
["10.12.Z","Przetwarzanie i konserwowanie mięsa z drobiu"]
["10.13","Produkcja wyrobów z mięsa, włączając wyroby z mięsa drobiowego"]
["10.13.Z","Produkcja wyrobów z mięsa, włączając wyroby z mięsa drobiowego"]
["10.2","Przetwarzanie i konserwowanie ryb, skorupiaków i mięczaków"]
["10.20","Przetwarzanie i konserwowanie ryb, skorupiaków i mięczaków"]
["10.20.Z","Przetwarzanie i konserwowanie ryb, skorupiaków i mięczaków"]
["10.3","Przetwarzanie i konserwowanie owoców i warzyw"]
["10.31","Przetwarzanie i konserwowanie ziemniaków"]
["10.31.Z","Przetwarzanie i konserwowanie ziemniaków"]
["10.32","Produkcja soków z owoców i warzyw"]
["10.32.Z","Produkcja soków z owoców i warzyw"]
["10.39","Pozostałe przetwarzanie i konserwowanie owoców i warzyw"]
["10.39.Z","Pozostałe przetwarzanie i konserwowanie owoców i warzyw"]
["10.4","Produkcja olejów i tłuszczów pochodzenia roślinnego i zwierzęcego"]
["10.41","Produkcja olejów i pozostałych tłuszczów płynnych"]
["10.41.Z","Produkcja olejów i pozostałych tłuszczów płynnych"]
["10.42","Produkcja margaryny i podobnych tłuszczów jadalnych"]
["10.42.Z","Produkcja margaryny i podobnych tłuszczów jadalnych"]
["10.5","Wytwarzanie wyrobów mleczarskich"]
["10.51","Przetwórstwo mleka i wyrób serów"]
["10.51.Z","Przetwórstwo mleka i wyrób serów"]
["10.52","Produkcja lodów"]
["10.52.Z","Produkcja lodów"]
["10.6","Wytwarzanie produktów przemiału zbóż, skrobi i wyrobów skrobiowych"]
["10.61","Wytwarzanie produktów przemiału zbóż"]
["10.61.Z","Wytwarzanie produktów przemiału zbóż"]
["10.62","Wytwarzanie skrobi i wyrobów skrobiowych"]
["10.62.Z","Wytwarzanie skrobi i wyrobów skrobiowych"]
["10.7","Produkcja wyrobów piekarskich i mącznych"]
["10.71","Produkcja pieczywa; produkcja świeżych wyrobów ciastkarskich i ciastek"]
["10.71.Z","Produkcja pieczywa; produkcja świeżych wyrobów ciastkarskich i ciastek"]
["10.72","Produkcja sucharów i herbatników; produkcja konserwowanych wyrobów ciastkarskich i ciastek"]
["10.72.Z","Produkcja sucharów i herbatników; produkcja konserwowanych wyrobów ciastkarskich i ciastek"]
["10.73","Produkcja makaronów, klusek, kuskusu i podobnych wyrobów mącznych"]
["10.73.Z","Produkcja makaronów, klusek, kuskusu i podobnych wyrobów mącznych"]
["10.8","Produkcja pozostałych artykułów spożywczych"]
["10.81","Produkcja cukru"]
["10.81.Z","Produkcja cukru"]
["10.82","Produkcja kakao, czekolady i wyrobów cukierniczych"]
["10.82.Z","Produkcja kakao, czekolady i wyrobów cukierniczych"]
["10.83","Przetwórstwo herbaty i kawy"]
["10.83.Z","Przetwórstwo herbaty i kawy"]
["10.84","Produkcja przypraw"]
["10.84.Z","Produkcja przypraw"]
["10.85","Wytwarzanie gotowych posiłków i dań"]
["10.85.Z","Wytwarzanie gotowych posiłków i dań"]
["10.86","Produkcja artykułów spożywczych homogenizowanych i żywności dietetycznej"]
["10.86.Z","Produkcja artykułów spożywczych homogenizowanych i żywności dietetycznej"]
["10.89","Produkcja pozostałych artykułów spożywczych, gdzie indziej niesklasyfikowana"]
["10.89.Z","Produkcja pozostałych artykułów spożywczych, gdzie indziej niesklasyfikowana"]
["10.9","Produkcja gotowych paszy i karmy dla zwierząt"]
["10.91","Produkcja gotowej paszy dla zwierząt gospodarskich"]
["10.91.Z","Produkcja gotowej paszy dla zwierząt gospodarskich"]
["10.92","Produkcja gotowej karmy dla zwierząt domowych"]
["10.92.Z","Produkcja gotowej karmy dla zwierząt domowych"]
["11.0","PRODUKCJA NAPOJÓW"]
["11.01","Destylowanie, rektyfikowanie i mieszanie alkoholi"]
["11.01.Z","Destylowanie, rektyfikowanie i mieszanie alkoholi"]
["11.02","Produkcja win gronowych"]
["11.02.Z","Produkcja win gronowych"]
["11.03","Produkcja cydru i pozostałych win owocowych"]
["11.03.Z","Produkcja cydru i pozostałych win owocowych"]
["11.04","Produkcja pozostałych niedestylowanych napojów fermentowanych"]
["11.04.Z","Produkcja pozostałych niedestylowanych napojów fermentowanych"]
["11.05","Produkcja piwa"]
["11.05.Z","Produkcja piwa"]
["11.06","Produkcja słodu"]
["11.06.Z","Produkcja słodu"]
["11.07","Produkcja napojów bezalkoholowych; produkcja wód mineralnych i pozostałych wód butelkowanych"]
["11.07.Z","Produkcja napojów bezalkoholowych; produkcja wód mineralnych i pozostałych wód butelkowanych"]
["12.0","PRODUKCJA WYROBÓW TYTONIOWYCH"]
["12.00","PRODUKCJA WYROBÓW TYTONIOWYCH"]
["12.00.Z","PRODUKCJA WYROBÓW TYTONIOWYCH"]
["13.1","Przygotowanie i przędzenie włókien tekstylnych"]
["13.10","Przygotowanie i przędzenie włókien tekstylnych"]
["13.10.A","Produkcja przędzy bawełnianej"]
["13.10.B","Produkcja przędzy wełnianej"]
["13.10.C","Produkcja przędzy z włókien chemicznych"]
["13.10.D","Produkcja przędzy z pozostałych włókien tekstylnych, włączając produkcję nici"]
["13.2","Produkcja tkanin"]
["13.20","Produkcja tkanin"]
["13.20.A","Produkcja tkanin bawełnianych"]
["13.20.B","Produkcja tkanin wełnianych"]
["13.20.C","Produkcja tkanin z włókien chemicznych"]
["13.20.D","Produkcja pozostałych tkanin"]
["13.3","Wykończanie wyrobów włókienniczych"]
["13.30","Wykończanie wyrobów włókienniczych"]
["13.30.Z","Wykończanie wyrobów włókienniczych"]
["13.9","Produkcja pozostałych wyrobów tekstylnych"]
["13.91","Produkcja dzianin metrażowych"]
["13.91.Z","Produkcja dzianin metrażowych"]
["13.92","Produkcja gotowych wyrobów tekstylnych"]
["13.92.Z","Produkcja gotowych wyrobów tekstylnych"]
["13.93","Produkcja dywanów i chodników"]
["13.93.Z","Produkcja dywanów i chodników"]
["13.94","Produkcja wyrobów powroźniczych, lin, szpagatów i wyrobów sieciowych"]
["13.94.Z","Produkcja wyrobów powroźniczych, lin, szpagatów i wyrobów sieciowych"]
["13.95","Produkcja włóknin i wyrobów wykonanych z włóknin, z wyłączeniem odzieży"]
["13.95.Z","Produkcja włóknin i wyrobów wykonanych z włóknin, z wyłączeniem odzieży"]
["13.96","Produkcja pozostałych technicznych i przemysłowych wyrobów tekstylnych"]
["13.96.Z","Produkcja pozostałych technicznych i przemysłowych wyrobów tekstylnych"]
["13.99","Produkcja pozostałych wyrobów tekstylnych, gdzie indziej niesklasyfikowana"]
["13.99.Z","Produkcja pozostałych wyrobów tekstylnych, gdzie indziej niesklasyfikowana"]
["14.1","Produkcja odzieży, z wyłączeniem wyrobów futrzarskich"]
["14.11","Produkcja odzieży skórzanej"]
["14.11.Z","Produkcja odzieży skórzanej"]
["14.12","Produkcja odzieży roboczej"]
["14.12.Z","Produkcja odzieży roboczej"]
["14.13","Produkcja pozostałej odzieży wierzchniej"]
["14.13.Z","Produkcja pozostałej odzieży wierzchniej"]
["14.14","Produkcja bielizny"]
["14.14.Z","Produkcja bielizny"]
["14.19","Produkcja pozostałej odzieży i dodatków do odzieży"]
["14.19.Z","Produkcja pozostałej odzieży i dodatków do odzieży"]
["14.2","Produkcja wyrobów futrzarskich"]
["14.20","Produkcja wyrobów futrzarskich"]
["14.20.Z","Produkcja wyrobów futrzarskich"]
["14.3","Produkcja odzieży dzianej"]
["14.31","Produkcja wyrobów pończoszniczych"]
["14.31.Z","Produkcja wyrobów pończoszniczych"]
["14.39","Produkcja pozostałej odzieży dzianej"]
["14.39.Z","Produkcja pozostałej odzieży dzianej"]
["15.1","Wyprawa skór, garbowanie; wyprawa i barwienie skór futerkowych; produkcja toreb bagażowych, toreb ręcznych i podobnych wyrobów kaletniczych; produkcja wyrobów rymarskich"]
["15.11","Wyprawa skór, garbowanie; wyprawa i barwienie skór futerkowych"]
["15.11.Z","Wyprawa skór, garbowanie; wyprawa i barwienie skór futerkowych"]
["15.12","Produkcja toreb bagażowych, toreb ręcznych i podobnych wyrobów kaletniczych; produkcja wyrobów rymarskich"]
["15.12.Z","Produkcja toreb bagażowych, toreb ręcznych i podobnych wyrobów kaletniczych; produkcja wyrobów rymarskich"]
["15.2","Produkcja obuwia"]
["15.20","Produkcja obuwia"]
["15.20.Z","Produkcja obuwia"]
["16.1","Produkcja wyrobów tartacznych"]
["16.10","Produkcja wyrobów tartacznych"]
["16.10.Z","Produkcja wyrobów tartacznych"]
["16.2","Produkcja wyrobów z drewna, korka, słomy i materiałów używanych do wyplatania"]
["16.21","Produkcja arkuszy fornirowych i płyt wykonanych na bazie drewna"]
["16.21.Z","Produkcja arkuszy fornirowych i płyt wykonanych na bazie drewna"]
["16.22","Produkcja gotowych parkietów podłogowych"]
["16.22.Z","Produkcja gotowych parkietów podłogowych"]
["16.23","Produkcja pozostałych wyrobów stolarskich i ciesielskich dla budownictwa"]
["16.23.Z","Produkcja pozostałych wyrobów stolarskich i ciesielskich dla budownictwa"]
["16.24","Produkcja opakowań drewnianych"]
["16.24.Z","Produkcja opakowań drewnianych"]
["16.29","Produkcja pozostałych wyrobów z drewna; produkcja wyrobów z korka, słomy i materiałów używanych do wyplatania"]
["16.29.Z","Produkcja pozostałych wyrobów z drewna; produkcja wyrobów z korka, słomy i materiałów używanych do wyplatania"]
["17.1","Produkcja masy włóknistej, papieru i tektury"]
["17.11","Produkcja masy włóknistej"]
["17.11.Z","Produkcja masy włóknistej"]
["17.12","Produkcja papieru i tektury"]
["17.12.Z","Produkcja papieru i tektury"]
["17.2","Produkcja wyrobów z papieru i tektury"]
["17.21","Produkcja papieru falistego i tektury falistej oraz opakowań z papieru i tektury"]
["17.21.Z","Produkcja papieru falistego i tektury falistej oraz opakowań z papieru i tektury"]
["17.22","Produkcja artykułów gospodarstwa domowego, toaletowych i sanitarnych"]
["17.22.Z","Produkcja artykułów gospodarstwa domowego, toaletowych i sanitarnych"]
["17.23","Produkcja artykułów piśmiennych"]
["17.23.Z","Produkcja artykułów piśmiennych"]
["17.24","Produkcja tapet"]
["17.24.Z","Produkcja tapet"]
["17.29","Produkcja pozostałych wyrobów z papieru i tektury"]
["17.29.Z","Produkcja pozostałych wyrobów z papieru i tektury"]
["18.1","Drukowanie i działalność usługowa związana z poligrafią"]
["18.11","Drukowanie gazet"]
["18.11.Z","Drukowanie gazet"]
["18.12","Pozostałe drukowanie"]
["18.12.Z","Pozostałe drukowanie"]
["18.13","Działalność usługowa związana z przygotowywaniem do druku"]
["18.13.Z","Działalność usługowa związana z przygotowywaniem do druku"]
["18.14","Introligatorstwo i podobne usługi"]
["18.14.Z","Introligatorstwo i podobne usługi"]
["18.2","Reprodukcja zapisanych nośników informacji"]
["18.20","Reprodukcja zapisanych nośników informacji"]
["18.20.Z","Reprodukcja zapisanych nośników informacji"]
["19.1","Wytwarzanie i przetwarzanie koksu"]
["19.10","Wytwarzanie i przetwarzanie koksu"]
["19.10.Z","Wytwarzanie i przetwarzanie koksu"]
["19.2","Wytwarzanie i przetwarzanie produktów rafinacji ropy naftowej"]
["19.20","Wytwarzanie i przetwarzanie produktów rafinacji ropy naftowej"]
["19.20.Z","Wytwarzanie i przetwarzanie produktów rafinacji ropy naftowej"]
["20.1","Produkcja podstawowych chemikaliów, nawozów i związków azotowych, tworzyw sztucznych i kauczuku syntetycznego w formach podstawowych"]
["20.11","Produkcja gazów technicznych"]
["20.11.Z","Produkcja gazów technicznych"]
["20.12","Produkcja barwników i pigmentów"]
["20.12.Z","Produkcja barwników i pigmentów"]
["20.13","Produkcja pozostałych podstawowych chemikaliów nieorganicznych"]
["20.13.Z","Produkcja pozostałych podstawowych chemikaliów nieorganicznych"]
["20.14","Produkcja pozostałych podstawowych chemikaliów organicznych"]
["20.14.Z","Produkcja pozostałych podstawowych chemikaliów organicznych"]
["20.15","Produkcja nawozów i związków azotowych"]
["20.15.Z","Produkcja nawozów i związków azotowych"]
["20.16","Produkcja tworzyw sztucznych w formach podstawowych"]
["20.16.Z","Produkcja tworzyw sztucznych w formach podstawowych"]
["20.17","Produkcja kauczuku syntetycznego w formach podstawowych"]
["20.17.Z","Produkcja kauczuku syntetycznego w formach podstawowych"]
["20.2","Produkcja pestycydów i pozostałych środków agrochemicznych"]
["20.20","Produkcja pestycydów i pozostałych środków agrochemicznych"]
["20.20.Z","Produkcja pestycydów i pozostałych środków agrochemicznych"]
["20.3","Produkcja farb, lakierów i podobnych powłok, farb drukarskich i mas uszczelniających"]
["20.30","Produkcja farb, lakierów i podobnych powłok, farb drukarskich i mas uszczelniających"]
["20.30.Z","Produkcja farb, lakierów i podobnych powłok, farb drukarskich i mas uszczelniających"]
["20.4","Produkcja mydła i detergentów, środków myjących i czyszczących, wyrobów kosmetycznych i toaletowych"]
["20.41","Produkcja mydła i detergentów, środków myjących i czyszczących"]
["20.41.Z","Produkcja mydła i detergentów, środków myjących i czyszczących"]
["20.42","Produkcja wyrobów kosmetycznych i toaletowych"]
["20.42.Z","Produkcja wyrobów kosmetycznych i toaletowych"]
["20.5","Produkcja pozostałych wyrobów chemicznych"]
["20.51","Produkcja materiałów wybuchowych"]
["20.51.Z","Produkcja materiałów wybuchowych"]
["20.52","Produkcja klejów"]
["20.52.Z","Produkcja klejów"]
["20.53","Produkcja olejków eterycznych"]
["20.53.Z","Produkcja olejków eterycznych"]
["20.59","Produkcja pozostałych wyrobów chemicznych, gdzie indziej niesklasyfikowana"]
["20.59.Z","Produkcja pozostałych wyrobów chemicznych, gdzie indziej niesklasyfikowana"]
["20.6","Produkcja włókien chemicznych"]
["20.60","Produkcja włókien chemicznych"]
["20.60.Z","Produkcja włókien chemicznych"]
["21.1","Produkcja podstawowych substancji farmaceutycznych"]
["21.10","Produkcja podstawowych substancji farmaceutycznych"]
["21.10.Z","Produkcja podstawowych substancji farmaceutycznych"]
["21.2","Produkcja leków i pozostałych wyrobów farmaceutycznych"]
["21.20","Produkcja leków i pozostałych wyrobów farmaceutycznych"]
["21.20.Z","Produkcja leków i pozostałych wyrobów farmaceutycznych"]
["22.1","Produkcja wyrobów z gumy"]
["22.11","Produkcja opon i dętek z gumy; bieżnikowanie i regenerowanie opon z gumy"]
["22.11.Z","Produkcja opon i dętek z gumy; bieżnikowanie i regenerowanie opon z gumy"]
["22.19","Produkcja pozostałych wyrobów z gumy"]
["22.19.Z","Produkcja pozostałych wyrobów z gumy"]
["22.2","Produkcja wyrobów z tworzyw sztucznych"]
["22.21","Produkcja płyt, arkuszy, rur i kształtowników z tworzyw sztucznych"]
["22.21.Z","Produkcja płyt, arkuszy, rur i kształtowników z tworzyw sztucznych"]
["22.22","Produkcja opakowań z tworzyw sztucznych"]
["22.22.Z","Produkcja opakowań z tworzyw sztucznych"]
["22.23","Produkcja wyrobów dla budownictwa z tworzyw sztucznych"]
["22.23.Z","Produkcja wyrobów dla budownictwa z tworzyw sztucznych"]
["22.29","Produkcja pozostałych wyrobów z tworzyw sztucznych"]
["22.29.Z","Produkcja pozostałych wyrobów z tworzyw sztucznych"]
["23.1","Produkcja szkła i wyrobów ze szkła"]
["23.11","Produkcja szkła płaskiego"]
["23.11.Z","Produkcja szkła płaskiego"]
["23.12","Kształtowanie i obróbka szkła płaskiego"]
["23.12.Z","Kształtowanie i obróbka szkła płaskiego"]
["23.13","Produkcja szkła gospodarczego"]
["23.13.Z","Produkcja szkła gospodarczego"]
["23.14","Produkcja włókien szklanych"]
["23.14.Z","Produkcja włókien szklanych"]
["23.19","Produkcja i obróbka pozostałego szkła, włączając szkło techniczne"]
["23.19.Z","Produkcja i obróbka pozostałego szkła, włączając szkło techniczne"]
["23.2","Produkcja wyrobów ogniotrwałych"]
["23.20","Produkcja wyrobów ogniotrwałych"]
["23.20.Z","Produkcja wyrobów ogniotrwałych"]
["23.3","Produkcja ceramicznych materiałów budowlanych"]
["23.31","Produkcja ceramicznych kafli i płytek"]
["23.31.Z","Produkcja ceramicznych kafli i płytek"]
["23.32","Produkcja cegieł, dachówek i materiałów budowlanych, z wypalanej gliny"]
["23.32.Z","Produkcja cegieł, dachówek i materiałów budowlanych, z wypalanej gliny"]
["23.4","Produkcja pozostałych wyrobów z porcelany i ceramiki"]
["23.41","Produkcja ceramicznych wyrobów stołowych i ozdobnych"]
["23.41.Z","Produkcja ceramicznych wyrobów stołowych i ozdobnych"]
["23.42","Produkcja ceramicznych wyrobów sanitarnych"]
["23.42.Z","Produkcja ceramicznych wyrobów sanitarnych"]
["23.43","Produkcja ceramicznych izolatorów i osłon izolacyjnych"]
["23.43.Z","Produkcja ceramicznych izolatorów i osłon izolacyjnych"]
["23.44","Produkcja pozostałych technicznych wyrobów ceramicznych"]
["23.44.Z","Produkcja pozostałych technicznych wyrobów ceramicznych"]
["23.49","Produkcja pozostałych wyrobów ceramicznych"]
["23.49.Z","Produkcja pozostałych wyrobów ceramicznych"]
["23.5","Produkcja cementu, wapna i gipsu"]
["23.51","Produkcja cementu"]
["23.51.Z","Produkcja cementu"]
["23.52","Produkcja wapna i gipsu"]
["23.52.Z","Produkcja wapna i gipsu"]
["23.6","Produkcja wyrobów z betonu, cementu i gipsu"]
["23.61","Produkcja wyrobów budowlanych z betonu"]
["23.61.Z","Produkcja wyrobów budowlanych z betonu"]
["23.62","Produkcja wyrobów budowlanych z gipsu"]
["23.62.Z","Produkcja wyrobów budowlanych z gipsu"]
["23.63","Produkcja masy betonowej prefabrykowanej"]
["23.63.Z","Produkcja masy betonowej prefabrykowanej"]
["23.64","Produkcja zaprawy murarskiej"]
["23.64.Z","Produkcja zaprawy murarskiej"]
["23.65","Produkcja cementu wzmocnionego włóknem"]
["23.65.Z","Produkcja cementu wzmocnionego włóknem"]
["23.69","Produkcja pozostałych wyrobów z betonu, gipsu i cementu"]
["23.69.Z","Produkcja pozostałych wyrobów z betonu, gipsu i cementu"]
["23.7","Cięcie, formowanie i wykańczanie kamienia"]
["23.70","Cięcie, formowanie i wykańczanie kamienia"]
["23.70.Z","Cięcie, formowanie i wykańczanie kamienia"]
["23.9","Produkcja wyrobów ściernych i pozostałych wyrobów z mineralnych surowców niemetalicznych, gdzie indziej niesklasyfikowana"]
["23.91","Produkcja wyrobów ściernych"]
["23.91.Z","Produkcja wyrobów ściernych"]
["23.99","Produkcja pozostałych wyrobów z mineralnych surowców niemetalicznych, gdzie indziej niesklasyfikowana"]
["23.99.Z","Produkcja pozostałych wyrobów z mineralnych surowców niemetalicznych, gdzie indziej niesklasyfikowana"]
["24.1","Produkcja surówki, żelazostopów, żeliwa i stali oraz wyrobów hutniczych"]
["24.10","Produkcja surówki, żelazostopów, żeliwa i stali oraz wyrobów hutniczych"]
["24.10.Z","Produkcja surówki, żelazostopów, żeliwa i stali oraz wyrobów hutniczych"]
["24.2","Produkcja rur, przewodów, kształtowników zamkniętych i łączników, ze stali"]
["24.20","Produkcja rur, przewodów, kształtowników zamkniętych i łączników, ze stali"]
["24.20.Z","Produkcja rur, przewodów, kształtowników zamkniętych i łączników, ze stali"]
["24.3","Produkcja pozostałych wyrobów ze stali poddanej wstępnej obróbce"]
["24.31","Produkcja prętów ciągnionych na zimno"]
["24.31.Z","Produkcja prętów ciągnionych na zimno"]
["24.32","Produkcja wyrobów płaskich walcowanych na zimno"]
["24.32.Z","Produkcja wyrobów płaskich walcowanych na zimno"]
["24.33","Produkcja wyrobów formowanych na zimno"]
["24.33.Z","Produkcja wyrobów formowanych na zimno"]
["24.34","Produkcja drutu"]
["24.34.Z","Produkcja drutu"]
["24.4","Produkcja metali szlachetnych i innych metali nieżelaznych"]
["24.41","Produkcja metali szlachetnych"]
["24.41.Z","Produkcja metali szlachetnych"]
["24.42","Produkcja aluminium"]
["24.42.A","Produkcja aluminium hutniczego"]
["24.42.B","Produkcja wyrobów z aluminium i stopów aluminium"]
["24.43","Produkcja ołowiu, cynku i cyny"]
["24.43.Z","Produkcja ołowiu, cynku i cyny"]
["24.44","Produkcja miedzi"]
["24.44.Z","Produkcja miedzi"]
["24.45","Produkcja pozostałych metali nieżelaznych"]
["24.45.Z","Produkcja pozostałych metali nieżelaznych"]
["24.46","Wytwarzanie paliw jądrowych"]
["24.46.Z","Wytwarzanie paliw jądrowych"]
["24.5","Odlewnictwo metali"]
["24.51","Odlewnictwo żeliwa"]
["24.51.Z","Odlewnictwo żeliwa"]
["24.52","Odlewnictwo staliwa"]
["24.52.Z","Odlewnictwo staliwa"]
["24.53","Odlewnictwo metali lekkich"]
["24.53.Z","Odlewnictwo metali lekkich"]
["24.54","Odlewnictwo pozostałych metali nieżelaznych"]
["24.54.A","Odlewnictwo miedzi i stopów miedzi"]
["24.54.B","Odlewnictwo pozostałych metali nieżelaznych, gdzie indziej niesklasyfikowane"]
["25.1","Produkcja metalowych elementów konstrukcyjnych"]
["25.11","Produkcja konstrukcji metalowych i ich części"]
["25.11.Z","Produkcja konstrukcji metalowych i ich części"]
["25.12","Produkcja metalowych elementów stolarki budowlanej"]
["25.12.Z","Produkcja metalowych elementów stolarki budowlanej"]
["25.2","Produkcja zbiorników, cystern i pojemników metalowych"]
["25.21","Produkcja grzejników i kotłów centralnego ogrzewania"]
["25.21.Z","Produkcja grzejników i kotłów centralnego ogrzewania"]
["25.29","Produkcja pozostałych zbiorników, cystern i pojemników metalowych"]
["25.29.Z","Produkcja pozostałych zbiorników, cystern i pojemników metalowych"]
["25.3","Produkcja wytwornic pary, z wyłączeniem kotłów do centralnego ogrzewania gorącą wodą"]
["25.30","Produkcja wytwornic pary, z wyłączeniem kotłów do centralnego ogrzewania gorącą wodą"]
["25.30.Z","Produkcja wytwornic pary, z wyłączeniem kotłów do centralnego ogrzewania gorącą wodą"]
["25.4","Produkcja broni i amunicji"]
["25.40","Produkcja broni i amunicji"]
["25.40.Z","Produkcja broni i amunicji"]
["25.5","Kucie, prasowanie, wytłaczanie i walcowanie metali; metalurgia proszków"]
["25.50","Kucie, prasowanie, wytłaczanie i walcowanie metali; metalurgia proszków"]
["25.50.Z","Kucie, prasowanie, wytłaczanie i walcowanie metali; metalurgia proszków"]
["25.6","Obróbka metali i nakładanie powłok na metale; obróbka mechaniczna elementów metalowych"]
["25.61","Obróbka metali i nakładanie powłok na metale"]
["25.61.Z","Obróbka metali i nakładanie powłok na metale"]
["25.62","Obróbka mechaniczna elementów metalowych"]
["25.62.Z","Obróbka mechaniczna elementów metalowych"]
["25.7","Produkcja wyrobów nożowniczych, sztućców, narzędzi i wyrobów metalowych ogólnego przeznaczenia"]
["25.71","Produkcja wyrobów nożowniczych i sztućców"]
["25.71.Z","Produkcja wyrobów nożowniczych i sztućców"]
["25.72","Produkcja zamków i zawiasów"]
["25.72.Z","Produkcja zamków i zawiasów"]
["25.73","Produkcja narzędzi"]
["25.73.Z","Produkcja narzędzi"]
["25.9","Produkcja pozostałych gotowych wyrobów metalowych"]
["25.91","Produkcja pojemników metalowych"]
["25.91.Z","Produkcja pojemników metalowych"]
["25.92","Produkcja opakowań z metali "]
["25.92.Z","Produkcja opakowań z metali "]
["25.93","Produkcja wyrobów z drutu, łańcuchów i sprężyn"]
["25.93.Z","Produkcja wyrobów z drutu, łańcuchów i sprężyn"]
["25.94","Produkcja złączy i śrub"]
["25.94.Z","Produkcja złączy i śrub"]
["25.99","Produkcja pozostałych gotowych wyrobów metalowych, gdzie indziej niesklasyfikowana"]
["25.99.Z","Produkcja pozostałych gotowych wyrobów metalowych, gdzie indziej niesklasyfikowana"]
["26.1","Produkcja elektronicznych elementów i obwodów drukowanych"]
["26.11","Produkcja elementów elektronicznych"]
["26.11.Z","Produkcja elementów elektronicznych"]
["26.12","Produkcja elektronicznych obwodów drukowanych"]
["26.12.Z","Produkcja elektronicznych obwodów drukowanych"]
["26.2","Produkcja komputerów i urządzeń peryferyjnych"]
["26.20","Produkcja komputerów i urządzeń peryferyjnych"]
["26.20.Z","Produkcja komputerów i urządzeń peryferyjnych"]
["26.3","Produkcja sprzętu (tele)komunikacyjnego"]
["26.30","Produkcja sprzętu (tele)komunikacyjnego"]
["26.30.Z","Produkcja sprzętu (tele)komunikacyjnego"]
["26.4","Produkcja elektronicznego sprzętu powszechnego użytku"]
["26.40","Produkcja elektronicznego sprzętu powszechnego użytku"]
["26.40.Z","Produkcja elektronicznego sprzętu powszechnego użytku"]
["26.5","Produkcja instrumentów i przyrządów pomiarowych, kontrolnych i nawigacyjnych; produkcja zegarków i zegarów"]
["26.51","Produkcja instrumentów i przyrządów pomiarowych, kontrolnych i nawigacyjnych"]
["26.51.Z","Produkcja instrumentów i przyrządów pomiarowych, kontrolnych i nawigacyjnych"]
["26.52","Produkcja zegarków i zegarów"]
["26.52.Z","Produkcja zegarków i zegarów"]
["26.6","Produkcja urządzeń napromieniowujących, sprzętu elektromedycznego i elektroterapeutycznego"]
["26.60","Produkcja urządzeń napromieniowujących, sprzętu elektromedycznego i elektroterapeutycznego"]
["26.60.Z","Produkcja urządzeń napromieniowujących, sprzętu elektromedycznego i elektroterapeutycznego"]
["26.7","Produkcja instrumentów optycznych i sprzętu fotograficznego"]
["26.70","Produkcja instrumentów optycznych i sprzętu fotograficznego"]
["26.70.Z","Produkcja instrumentów optycznych i sprzętu fotograficznego"]
["26.8","Produkcja magnetycznych i optycznych niezapisanych nośników informacji"]
["26.80","Produkcja magnetycznych i optycznych niezapisanych nośników informacji"]
["26.80.Z","Produkcja magnetycznych i optycznych niezapisanych nośników informacji"]
["27.1","Produkcja elektrycznych silników, prądnic, transformatorów, aparatury rozdzielczej i sterowniczej energii elektrycznej"]
["27.11","Produkcja elektrycznych silników, prądnic i transformatorów"]
["27.11.Z","Produkcja elektrycznych silników, prądnic i transformatorów"]
["27.12","Produkcja aparatury rozdzielczej i sterowniczej energii elektrycznej"]
["27.12.Z","Produkcja aparatury rozdzielczej i sterowniczej energii elektrycznej"]
["27.2","Produkcja baterii i akumulatorów"]
["27.20","Produkcja baterii i akumulatorów"]
["27.20.Z","Produkcja baterii i akumulatorów"]
["27.3","Produkcja izolowanych przewodów i kabli oraz sprzętu instalacyjnego"]
["27.31","Produkcja kabli światłowodowych"]
["27.31.Z","Produkcja kabli światłowodowych"]
["27.32","Produkcja pozostałych elektronicznych i elektrycznych przewodów i kabli"]
["27.32.Z","Produkcja pozostałych elektronicznych i elektrycznych przewodów i kabli"]
["27.33","Produkcja sprzętu instalacyjnego"]
["27.33.Z","Produkcja sprzętu instalacyjnego"]
["27.4","Produkcja elektrycznego sprzętu oświetleniowego"]
["27.40","Produkcja elektrycznego sprzętu oświetleniowego"]
["27.40.Z","Produkcja elektrycznego sprzętu oświetleniowego"]
["27.5","Produkcja sprzętu gospodarstwa domowego"]
["27.51","Produkcja elektrycznego sprzętu gospodarstwa domowego"]
["27.51.Z","Produkcja elektrycznego sprzętu gospodarstwa domowego"]
["27.52","Produkcja nieelektrycznego sprzętu gospodarstwa domowego"]
["27.52.Z","Produkcja nieelektrycznego sprzętu gospodarstwa domowego"]
["27.9","Produkcja pozostałego sprzętu elektrycznego"]
["27.90","Produkcja pozostałego sprzętu elektrycznego"]
["27.90.Z","Produkcja pozostałego sprzętu elektrycznego"]
["28.1","Produkcja maszyn ogólnego przeznaczenia"]
["28.11","Produkcja silników i turbin, z wyłączeniem silników lotniczych, samochodowych i motocyklowych"]
["28.11.Z","Produkcja silników i turbin, z wyłączeniem silników lotniczych, samochodowych i motocyklowych"]
["28.12","Produkcja sprzętu i wyposażenia do napędu hydraulicznego i pneumatycznego"]
["28.12.Z","Produkcja sprzętu i wyposażenia do napędu hydraulicznego i pneumatycznego"]
["28.13","Produkcja pozostałych pomp i sprężarek"]
["28.13.Z","Produkcja pozostałych pomp i sprężarek"]
["28.14","Produkcja pozostałych kurków i zaworów"]
["28.14.Z","Produkcja pozostałych kurków i zaworów"]
["28.15","Produkcja łożysk, kół zębatych, przekładni zębatych i elementów napędowych"]
["28.15.Z","Produkcja łożysk, kół zębatych, przekładni zębatych i elementów napędowych"]
["28.2","Produkcja pozostałych maszyn ogólnego przeznaczenia"]
["28.21","Produkcja pieców, palenisk i palników piecowych"]
["28.21.Z","Produkcja pieców, palenisk i palników piecowych"]
["28.22","Produkcja urządzeń dźwigowych i chwytaków"]
["28.22.Z","Produkcja urządzeń dźwigowych i chwytaków"]
["28.23","Produkcja maszyn i sprzętu biurowego, z wyłączeniem komputerów i urządzeń peryferyjnych"]
["28.23.Z","Produkcja maszyn i sprzętu biurowego, z wyłączeniem komputerów i urządzeń peryferyjnych"]
["28.24","Produkcja narzędzi ręcznych mechanicznych"]
["28.24.Z","Produkcja narzędzi ręcznych mechanicznych"]
["28.25","Produkcja przemysłowych urządzeń chłodniczych i wentylacyjnych"]
["28.25.Z","Produkcja przemysłowych urządzeń chłodniczych i wentylacyjnych"]
["28.29","Produkcja pozostałych maszyn ogólnego przeznaczenia, gdzie indziej niesklasyfikowana"]
["28.29.Z","Produkcja pozostałych maszyn ogólnego przeznaczenia, gdzie indziej niesklasyfikowana"]
["28.3","Produkcja maszyn dla rolnictwa i leśnictwa"]
["28.30","Produkcja maszyn dla rolnictwa i leśnictwa"]
["28.30.Z","Produkcja maszyn dla rolnictwa i leśnictwa"]
["28.4","Produkcja maszyn i narzędzi mechanicznych"]
["28.41","Produkcja maszyn do obróbki metalu"]
["28.41.Z","Produkcja maszyn do obróbki metalu"]
["28.49","Produkcja pozostałych narzędzi mechanicznych"]
["28.49.Z","Produkcja pozostałych narzędzi mechanicznych"]
["28.9","Produkcja pozostałych maszyn specjalnego przeznaczenia"]
["28.91","Produkcja maszyn dla metalurgii"]
["28.91.Z","Produkcja maszyn dla metalurgii"]
["28.92","Produkcja maszyn dla górnictwa i do wydobywania oraz budownictwa"]
["28.92.Z","Produkcja maszyn dla górnictwa i do wydobywania oraz budownictwa"]
["28.93","Produkcja maszyn stosowanych w przetwórstwie żywności, tytoniu i produkcji napojów"]
["28.93.Z","Produkcja maszyn stosowanych w przetwórstwie żywności, tytoniu i produkcji napojów"]
["28.94","Produkcja maszyn dla przemysłu tekstylnego, odzieżowego i skórzanego"]
["28.94.Z","Produkcja maszyn dla przemysłu tekstylnego, odzieżowego i skórzanego"]
["28.95","Produkcja maszyn dla przemysłu papierniczego"]
["28.95.Z","Produkcja maszyn dla przemysłu papierniczego"]
["28.96","Produkcja maszyn do obróbki gumy lub tworzyw sztucznych oraz wytwarzania wyrobów z tych materiałów"]
["28.96.Z","Produkcja maszyn do obróbki gumy lub tworzyw sztucznych oraz wytwarzania wyrobów z tych materiałów"]
["28.99","Produkcja pozostałych maszyn specjalnego przeznaczenia, gdzie indziej niesklasyfikowana"]
["28.99.Z","Produkcja pozostałych maszyn specjalnego przeznaczenia, gdzie indziej niesklasyfikowana"]
["29.1","Produkcja pojazdów samochodowych, z wyłączeniem motocykli"]
["29.10","Produkcja pojazdów samochodowych, z wyłączeniem motocykli"]
["29.10.A","Produkcja silników do pojazdów samochodowych (z wyłączeniem motocykli) oraz do ciągników rolniczych"]
["29.10.B","Produkcja samochodów osobowych"]
["29.10.C","Produkcja autobusów"]
["29.10.D","Produkcja pojazdów samochodowych przeznaczonych do przewozu towarów"]
["29.10.E","Produkcja pozostałych pojazdów samochodowych, z wyłączeniem motocykli"]
["29.2","Produkcja nadwozi do pojazdów silnikowych; produkcja przyczep i naczep"]
["29.20","Produkcja nadwozi do pojazdów silnikowych; produkcja przyczep i naczep"]
["29.20.Z","Produkcja nadwozi do pojazdów silnikowych; produkcja przyczep i naczep"]
["29.3","Produkcja części i akcesoriów do pojazdów silnikowych"]
["29.31","Produkcja wyposażenia elektrycznego i elektronicznego do pojazdów silnikowych"]
["29.31.Z","Produkcja wyposażenia elektrycznego i elektronicznego do pojazdów silnikowych"]
["29.32","Produkcja pozostałych części i akcesoriów do pojazdów silnikowych, z wyłączeniem motocykli"]
["29.32.Z","Produkcja pozostałych części i akcesoriów do pojazdów silnikowych, z wyłączeniem motocykli"]
["30.1","Produkcja statków i łodzi"]
["30.11","Produkcja statków i konstrukcji pływających"]
["30.11.Z","Produkcja statków i konstrukcji pływających"]
["30.12","Produkcja łodzi wycieczkowych i sportowych"]
["30.12.Z","Produkcja łodzi wycieczkowych i sportowych"]
["30.2","Produkcja lokomotyw kolejowych oraz taboru szynowego"]
["30.20","Produkcja lokomotyw kolejowych oraz taboru szynowego"]
["30.20.Z","Produkcja lokomotyw kolejowych oraz taboru szynowego"]
["30.3","Produkcja statków powietrznych, statków kosmicznych i podobnych maszyn"]
["30.30","Produkcja statków powietrznych, statków kosmicznych i podobnych maszyn"]
["30.30.Z","Produkcja statków powietrznych, statków kosmicznych i podobnych maszyn"]
["30.4","Produkcja wojskowych pojazdów bojowych"]
["30.40","Produkcja wojskowych pojazdów bojowych"]
["30.40.Z","Produkcja wojskowych pojazdów bojowych"]
["30.9","Produkcja sprzętu transportowego, gdzie indziej niesklasyfikowana"]
["30.91","Produkcja motocykli"]
["30.91.Z","Produkcja motocykli"]
["30.92","Produkcja rowerów i wózków inwalidzkich"]
["30.92.Z","Produkcja rowerów i wózków inwalidzkich"]
["30.99","Produkcja pozostałego sprzętu transportowego, gdzie indziej niesklasyfikowana"]
["30.99.Z","Produkcja pozostałego sprzętu transportowego, gdzie indziej niesklasyfikowana"]
["31.0","PRODUKCJA MEBLI"]
["31.01","Produkcja mebli biurowych i sklepowych"]
["31.01.Z","Produkcja mebli biurowych i sklepowych"]
["31.02","Produkcja mebli kuchennych"]
["31.02.Z","Produkcja mebli kuchennych"]
["31.03","Produkcja materaców"]
["31.03.Z","Produkcja materaców"]
["31.09","Produkcja pozostałych mebli"]
["31.09.Z","Produkcja pozostałych mebli"]
["32.1","Produkcja wyrobów jubilerskich, biżuterii i podobnych wyrobów"]
["32.11","Produkcja monet"]
["32.11.Z","Produkcja monet"]
["32.12","Produkcja wyrobów jubilerskich i podobnych"]
["32.12.Z","Produkcja wyrobów jubilerskich i podobnych"]
["32.13","Produkcja sztucznej biżuterii i wyrobów podobnych"]
["32.13.Z","Produkcja sztucznej biżuterii i wyrobów podobnych"]
["32.2","Produkcja instrumentów muzycznych"]
["32.20","Produkcja instrumentów muzycznych"]
["32.20.Z","Produkcja instrumentów muzycznych"]
["32.3","Produkcja sprzętu sportowego"]
["32.30","Produkcja sprzętu sportowego"]
["32.30.Z","Produkcja sprzętu sportowego"]
["32.4","Produkcja gier i zabawek"]
["32.40","Produkcja gier i zabawek"]
["32.40.Z","Produkcja gier i zabawek"]
["32.5","Produkcja urządzeń, instrumentów oraz wyrobów medycznych, włączając dentystyczne"]
["32.50","Produkcja urządzeń, instrumentów oraz wyrobów medycznych, włączając dentystyczne"]
["32.50.Z","Produkcja urządzeń, instrumentów oraz wyrobów medycznych, włączając dentystyczne"]
["32.9","Produkcja wyrobów, gdzie indziej niesklasyfikowana"]
["32.91","Produkcja mioteł, szczotek i pędzli"]
["32.91.Z","Produkcja mioteł, szczotek i pędzli"]
["32.99","Produkcja pozostałych wyrobów, gdzie indziej niesklasyfikowana"]
["32.99.Z","Produkcja pozostałych wyrobów, gdzie indziej niesklasyfikowana"]
["33.1","Naprawa i konserwacja metalowych wyrobów gotowych, maszyn i urządzeń"]
["33.11","Naprawa i konserwacja metalowych wyrobów gotowych"]
["33.11.Z","Naprawa i konserwacja metalowych wyrobów gotowych"]
["33.12","Naprawa i konserwacja maszyn"]
["33.12.Z","Naprawa i konserwacja maszyn"]
["33.13","Naprawa i konserwacja urządzeń elektronicznych i optycznych"]
["33.13.Z","Naprawa i konserwacja urządzeń elektronicznych i optycznych"]
["33.14","Naprawa i konserwacja urządzeń elektrycznych"]
["33.14.Z","Naprawa i konserwacja urządzeń elektrycznych"]
["33.15","Naprawa i konserwacja statków i łodzi"]
["33.15.Z","Naprawa i konserwacja statków i łodzi"]
["33.16","Naprawa i konserwacja statków powietrznych i statków kosmicznych"]
["33.16.Z","Naprawa i konserwacja statków powietrznych i statków kosmicznych"]
["33.17","Naprawa i konserwacja pozostałego sprzętu transportowego"]
["33.17.Z","Naprawa i konserwacja pozostałego sprzętu transportowego"]
["33.19","Naprawa i konserwacja pozostałego sprzętu i wyposażenia"]
["33.19.Z","Naprawa i konserwacja pozostałego sprzętu i wyposażenia"]
["33.2","Instalowanie maszyn przemysłowych, sprzętu i wyposażenia"]
["33.20","Instalowanie maszyn przemysłowych, sprzętu i wyposażenia"]
["33.20.Z","Instalowanie maszyn przemysłowych, sprzętu i wyposażenia"]
["35.1","Wytwarzanie, przesyłanie, dystrybucja i handel energią elektryczną"]
["35.11","Wytwarzanie energii elektrycznej"]
["35.11.Z","Wytwarzanie energii elektrycznej"]
["35.12","Przesyłanie energii elektrycznej"]
["35.12.Z","Przesyłanie energii elektrycznej"]
["35.13","Dystrybucja energii elektrycznej"]
["35.13.Z","Dystrybucja energii elektrycznej"]
["35.14","Handel energią elektryczną"]
["35.14.Z","Handel energią elektryczną"]
["35.2","Wytwarzanie paliw gazowych; dystrybucja i handel paliwami gazowymi w systemie sieciowym"]
["35.21","Wytwarzanie paliw gazowych"]
["35.21.Z","Wytwarzanie paliw gazowych"]
["35.22","Dystrybucja paliw gazowych w systemie sieciowym"]
["35.22.Z","Dystrybucja paliw gazowych w systemie sieciowym"]
["35.23","Handel paliwami gazowymi w systemie sieciowym"]
["35.23.Z","Handel paliwami gazowymi w systemie sieciowym"]
["35.3","Wytwarzanie i zaopatrywanie w parę wodną, gorącą wodę i powietrze do układów klimatyzacyjnych"]
["35.30","Wytwarzanie i zaopatrywanie w parę wodną, gorącą wodę i powietrze do układów klimatyzacyjnych"]
["35.30.Z","Wytwarzanie i zaopatrywanie w parę wodną, gorącą wodę i powietrze do układów klimatyzacyjnych"]
["36.0","POBÓR, UZDATNIANIE I DOSTARCZANIE WODY"]
["36.00","POBÓR, UZDATNIANIE I DOSTARCZANIE WODY"]
["36.00.Z","POBÓR, UZDATNIANIE I DOSTARCZANIE WODY"]
["37.0","ODPROWADZANIE I OCZYSZCZANIE ŚCIEKÓW"]
["37.00","ODPROWADZANIE I OCZYSZCZANIE ŚCIEKÓW"]
["37.00.Z","ODPROWADZANIE I OCZYSZCZANIE ŚCIEKÓW"]
["38.1","Zbieranie odpadów"]
["38.11","Zbieranie odpadów innych niż niebezpieczne"]
["38.11.Z","Zbieranie odpadów innych niż niebezpieczne"]
["38.12","Zbieranie odpadów niebezpiecznych"]
["38.12.Z","Zbieranie odpadów niebezpiecznych"]
["38.2","Przetwarzanie i unieszkodliwianie odpadów"]
["38.21","Obróbka i usuwanie odpadów innych niż niebezpieczne"]
["38.21.Z","Obróbka i usuwanie odpadów innych niż niebezpieczne"]
["38.22","Przetwarzanie i unieszkodliwianie odpadów niebezpiecznych"]
["38.22.Z","Przetwarzanie i unieszkodliwianie odpadów niebezpiecznych"]
["38.3","Odzysk surowców"]
["38.31","Demontaż wyrobów zużytych"]
["38.31.Z","Demontaż wyrobów zużytych"]
["38.32","Odzysk surowców z materiałów segregowanych"]
["38.32.Z","Odzysk surowców z materiałów segregowanych"]
["39.0","DZIAŁALNOŚĆ ZWIĄZANA Z REKULTYWACJĄ I POZOSTAŁA DZIAŁALNOŚĆ USŁUGOWA ZWIĄZANA Z GOSPODARKĄ ODPADAMI"]
["39.00","DZIAŁALNOŚĆ ZWIĄZANA Z REKULTYWACJĄ I POZOSTAŁA DZIAŁALNOŚĆ USŁUGOWA ZWIĄZANA Z GOSPODARKĄ ODPADAMI"]
["39.00.Z","DZIAŁALNOŚĆ ZWIĄZANA Z REKULTYWACJĄ I POZOSTAŁA DZIAŁALNOŚĆ USŁUGOWA ZWIĄZANA Z GOSPODARKĄ ODPADAMI"]
["41.1","Realizacja projektów budowlanych związanych ze wznoszeniem budynków"]
["41.10","Realizacja projektów budowlanych związanych ze wznoszeniem budynków"]
["41.10.Z","Realizacja projektów budowlanych związanych ze wznoszeniem budynków"]
["41.2","Roboty budowlane związane ze wznoszeniem budynków mieszkalnych i niemieszkalnych"]
["41.20","Roboty budowlane związane ze wznoszeniem budynków mieszkalnych i niemieszkalnych"]
["41.20.Z","Roboty budowlane związane ze wznoszeniem budynków mieszkalnych i niemieszkalnych"]
["42.1","Roboty związane z budową dróg kołowych i szynowych"]
["42.11","Roboty związane z budową dróg i autostrad"]
["42.11.Z","Roboty związane z budową dróg i autostrad"]
["42.12","Roboty związane z budową dróg szynowych i kolei podziemnej"]
["42.12.Z","Roboty związane z budową dróg szynowych i kolei podziemnej"]
["42.13","Roboty związane z budową mostów i tuneli"]
["42.13.Z","Roboty związane z budową mostów i tuneli"]
["42.2","Roboty związane z budową rurociągów, linii telekomunikacyjnych i elektroenergetycznych"]
["42.21","Roboty związane z budową rurociągów przesyłowych i sieci rozdzielczych"]
["42.21.Z","Roboty związane z budową rurociągów przesyłowych i sieci rozdzielczych"]
["42.22","Roboty związane z budową linii telekomunikacyjnych i elektroenergetycznych"]
["42.22.Z","Roboty związane z budową linii telekomunikacyjnych i elektroenergetycznych"]
["42.9","Roboty związane z budową pozostałych obiektów inżynierii lądowej i wodnej"]
["42.91","Roboty związane z budową obiektów inżynierii wodnej"]
["42.91.Z","Roboty związane z budową obiektów inżynierii wodnej"]
["42.99","Roboty związane z budową pozostałych obiektów inżynierii lądowej i wodnej, gdzie indziej niesklasyfikowane"]
["42.99.Z","Roboty związane z budową pozostałych obiektów inżynierii lądowej i wodnej, gdzie indziej niesklasyfikowane"]
["43.1","Rozbiórka i przygotowanie terenu pod budowę"]
["43.11","Rozbiórka i burzenie obiektów budowlanych"]
["43.11.Z","Rozbiórka i burzenie obiektów budowlanych"]
["43.12","Przygotowanie terenu pod budowę"]
["43.12.Z","Przygotowanie terenu pod budowę"]
["43.13","Wykonywanie wykopów i wierceń geologiczno-inżynierskich"]
["43.13.Z","Wykonywanie wykopów i wierceń geologiczno-inżynierskich"]
["43.2","Wykonywanie instalacji elektrycznych, wodno-kanalizacyjnych i pozostałych instalacji budowlanych"]
["43.21","Wykonywanie instalacji elektrycznych"]
["43.21.Z","Wykonywanie instalacji elektrycznych"]
["43.22","Wykonywanie instalacji wodno-kanalizacyjnych, cieplnych, gazowych i klimatyzacyjnych"]
["43.22.Z","Wykonywanie instalacji wodno-kanalizacyjnych, cieplnych, gazowych i klimatyzacyjnych"]
["43.29","Wykonywanie pozostałych instalacji budowlanych"]
["43.29.Z","Wykonywanie pozostałych instalacji budowlanych"]
["43.3","Wykonywanie robót budowlanych wykończeniowych"]
["43.31","Tynkowanie"]
["43.31.Z","Tynkowanie"]
["43.32","Zakładanie stolarki budowlanej"]
["43.32.Z","Zakładanie stolarki budowlanej"]
["43.33","Posadzkarstwo; tapetowanie i oblicowywanie ścian"]
["43.33.Z","Posadzkarstwo; tapetowanie i oblicowywanie ścian"]
["43.34","Malowanie i szklenie"]
["43.34.Z","Malowanie i szklenie"]
["43.39","Wykonywanie pozostałych robót budowlanych wykończeniowych"]
["43.39.Z","Wykonywanie pozostałych robót budowlanych wykończeniowych"]
["43.9","Pozostałe specjalistyczne roboty budowlane"]
["43.91","Wykonywanie konstrukcji i pokryć dachowych"]
["43.91.Z","Wykonywanie konstrukcji i pokryć dachowych"]
["43.99","Pozostałe specjalistyczne roboty budowlane, gdzie indziej niesklasyfikowane"]
["43.99.Z","Pozostałe specjalistyczne roboty budowlane, gdzie indziej niesklasyfikowane"]
["45.1","Sprzedaż hurtowa i detaliczna pojazdów samochodowych, z wyłączeniem motocykli"]
["45.11","Sprzedaż hurtowa i detaliczna samochodów osobowych i furgonetek"]
["45.11.Z","Sprzedaż hurtowa i detaliczna samochodów osobowych i furgonetek"]
["45.19","Sprzedaż hurtowa i detaliczna pozostałych pojazdów samochodowych, z wyłączeniem motocykli"]
["45.19.Z","Sprzedaż hurtowa i detaliczna pozostałych pojazdów samochodowych, z wyłączeniem motocykli"]
["45.2","Konserwacja i naprawa pojazdów samochodowych, z wyłączeniem motocykli"]
["45.20","Konserwacja i naprawa pojazdów samochodowych, z wyłączeniem motocykli"]
["45.20.Z","Konserwacja i naprawa pojazdów samochodowych, z wyłączeniem motocykli"]
["45.3","Sprzedaż hurtowa i detaliczna części i akcesoriów do pojazdów samochodowych, z wyłączeniem motocykli"]
["45.31","Sprzedaż hurtowa części i akcesoriów do pojazdów samochodowych, z wyłączeniem motocykli"]
["45.31.Z","Sprzedaż hurtowa części i akcesoriów do pojazdów samochodowych, z wyłączeniem motocykli"]
["45.32","Sprzedaż detaliczna części i akcesoriów do pojazdów samochodowych, z wyłączeniem motocykli"]
["45.32.Z","Sprzedaż detaliczna części i akcesoriów do pojazdów samochodowych, z wyłączeniem motocykli"]
["45.4","Sprzedaż hurtowa i detaliczna motocykli, ich naprawa i konserwacja oraz sprzedaż hurtowa i detaliczna części i akcesoriów do nich"]
["45.40","Sprzedaż hurtowa i detaliczna motocykli, ich naprawa i konserwacja oraz sprzedaż hurtowa i detaliczna części i akcesoriów do nich"]
["45.40.Z","Sprzedaż hurtowa i detaliczna motocykli, ich naprawa i konserwacja oraz sprzedaż hurtowa i detaliczna części i akcesoriów do nich"]
["46.1","Sprzedaż hurtowa realizowana na zlecenie"]
["46.11","Działalność agentów zajmujących się sprzedażą płodów rolnych, żywych zwierząt, surowców dla przemysłu tekstylnego i półproduktów"]
["46.11.Z","Działalność agentów zajmujących się sprzedażą płodów rolnych, żywych zwierząt, surowców dla przemysłu tekstylnego i półproduktów"]
["46.12","Działalność agentów zajmujących się sprzedażą paliw, rud, metali i chemikaliów przemysłowych"]
["46.12.Z","Działalność agentów zajmujących się sprzedażą paliw, rud, metali i chemikaliów przemysłowych"]
["46.13","Działalność agentów zajmujących się sprzedażą drewna i materiałów budowlanych"]
["46.13.Z","Działalność agentów zajmujących się sprzedażą drewna i materiałów budowlanych"]
["46.14","Działalność agentów zajmujących się sprzedażą maszyn, urządzeń przemysłowych, statków i samolotów"]
["46.14.Z","Działalność agentów zajmujących się sprzedażą maszyn, urządzeń przemysłowych, statków i samolotów"]
["46.15","Działalność agentów zajmujących się sprzedażą mebli, artykułów gospodarstwa domowego i drobnych wyrobów metalowych"]
["46.15.Z","Działalność agentów zajmujących się sprzedażą mebli, artykułów gospodarstwa domowego i drobnych wyrobów metalowych"]
["46.16","Działalność agentów zajmujących się sprzedażą wyrobów tekstylnych, odzieży, wyrobów futrzarskich, obuwia i artykułów skórzanych"]
["46.16.Z","Działalność agentów zajmujących się sprzedażą wyrobów tekstylnych, odzieży, wyrobów futrzarskich, obuwia i artykułów skórzanych"]
["46.17","Działalność agentów zajmujących się sprzedażą żywności, napojów i wyrobów tytoniowych"]
["46.17.Z","Działalność agentów zajmujących się sprzedażą żywności, napojów i wyrobów tytoniowych"]
["46.18","Działalność agentów specjalizujących się w sprzedaży pozostałych określonych towarów"]
["46.18.Z","Działalność agentów specjalizujących się w sprzedaży pozostałych określonych towarów"]
["46.19","Działalność agentów zajmujących się sprzedażą towarów różnego rodzaju"]
["46.19.Z","Działalność agentów zajmujących się sprzedażą towarów różnego rodzaju"]
["46.2","Sprzedaż hurtowa płodów rolnych i żywych zwierząt"]
["46.21","Sprzedaż hurtowa zboża, nieprzetworzonego tytoniu, nasion i pasz dla zwierząt"]
["46.21.Z","Sprzedaż hurtowa zboża, nieprzetworzonego tytoniu, nasion i pasz dla zwierząt"]
["46.22","Sprzedaż hurtowa kwiatów i roślin"]
["46.22.Z","Sprzedaż hurtowa kwiatów i roślin"]
["46.23","Sprzedaż hurtowa żywych zwierząt"]
["46.23.Z","Sprzedaż hurtowa żywych zwierząt"]
["46.24","Sprzedaż hurtowa skór"]
["46.24.Z","Sprzedaż hurtowa skór"]
["46.3","Sprzedaż hurtowa żywności, napojów i wyrobów tytoniowych"]
["46.31","Sprzedaż hurtowa owoców i warzyw"]
["46.31.Z","Sprzedaż hurtowa owoców i warzyw"]
["46.32","Sprzedaż hurtowa mięsa i wyrobów z mięsa"]
["46.32.Z","Sprzedaż hurtowa mięsa i wyrobów z mięsa"]
["46.33","Sprzedaż hurtowa mleka, wyrobów mleczarskich, jaj, olejów i tłuszczów jadalnych"]
["46.33.Z","Sprzedaż hurtowa mleka, wyrobów mleczarskich, jaj, olejów i tłuszczów jadalnych"]
["46.34","Sprzedaż hurtowa napojów alkoholowych i bezalkoholowych"]
["46.34.A","Sprzedaż hurtowa napojów alkoholowych"]
["46.34.B","Sprzedaż hurtowa napojów bezalkoholowych"]
["46.35","Sprzedaż hurtowa wyrobów tytoniowych"]
["46.35.Z","Sprzedaż hurtowa wyrobów tytoniowych"]
["46.36","Sprzedaż hurtowa cukru, czekolady, wyrobów cukierniczych i piekarskich"]
["46.36.Z","Sprzedaż hurtowa cukru, czekolady, wyrobów cukierniczych i piekarskich"]
["46.37","Sprzedaż hurtowa herbaty, kawy, kakao i przypraw"]
["46.37.Z","Sprzedaż hurtowa herbaty, kawy, kakao i przypraw"]
["46.38","Sprzedaż hurtowa pozostałej żywności, włączając ryby, skorupiaki i mięczaki"]
["46.38.Z","Sprzedaż hurtowa pozostałej żywności, włączając ryby, skorupiaki i mięczaki"]
["46.39","Sprzedaż hurtowa niewyspecjalizowana żywności, napojów i wyrobów tytoniowych"]
["46.39.Z","Sprzedaż hurtowa niewyspecjalizowana żywności, napojów i wyrobów tytoniowych"]
["46.4","Sprzedaż hurtowa artykułów użytku domowego"]
["46.41","Sprzedaż hurtowa wyrobów tekstylnych"]
["46.41.Z","Sprzedaż hurtowa wyrobów tekstylnych"]
["46.42","Sprzedaż hurtowa odzieży i obuwia"]
["46.42.Z","Sprzedaż hurtowa odzieży i obuwia"]
["46.43","Sprzedaż hurtowa elektrycznych artykułów użytku domowego"]
["46.43.Z","Sprzedaż hurtowa elektrycznych artykułów użytku domowego"]
["46.44","Sprzedaż hurtowa wyrobów porcelanowych, ceramicznych i szklanych oraz środków czyszczących"]
["46.44.Z","Sprzedaż hurtowa wyrobów porcelanowych, ceramicznych i szklanych oraz środków czyszczących"]
["46.45","Sprzedaż hurtowa perfum i kosmetyków"]
["46.45.Z","Sprzedaż hurtowa perfum i kosmetyków"]
["46.46","Sprzedaż hurtowa wyrobów farmaceutycznych i medycznych"]
["46.46.Z","Sprzedaż hurtowa wyrobów farmaceutycznych i medycznych"]
["46.47","Sprzedaż hurtowa mebli, dywanów i sprzętu oświetleniowego"]
["46.47.Z","Sprzedaż hurtowa mebli, dywanów i sprzętu oświetleniowego"]
["46.48","Sprzedaż hurtowa zegarków, zegarów i biżuterii"]
["46.48.Z","Sprzedaż hurtowa zegarków, zegarów i biżuterii"]
["46.49","Sprzedaż hurtowa pozostałych artykułów użytku domowego"]
["46.49.Z","Sprzedaż hurtowa pozostałych artykułów użytku domowego"]
["46.5","Sprzedaż hurtowa narzędzi technologii informacyjnej i komunikacyjnej"]
["46.51","Sprzedaż hurtowa komputerów, urządzeń peryferyjnych i oprogramowania"]
["46.51.Z","Sprzedaż hurtowa komputerów, urządzeń peryferyjnych i oprogramowania"]
["46.52","Sprzedaż hurtowa sprzętu elektronicznego i telekomunikacyjnego oraz części do niego"]
["46.52.Z","Sprzedaż hurtowa sprzętu elektronicznego i telekomunikacyjnego oraz części do niego"]
["46.6","Sprzedaż hurtowa maszyn, urządzeń i dodatkowego wyposażenia"]
["46.61","Sprzedaż hurtowa maszyn i urządzeń rolniczych oraz dodatkowego wyposażenia"]
["46.61.Z","Sprzedaż hurtowa maszyn i urządzeń rolniczych oraz dodatkowego wyposażenia"]
["46.62","Sprzedaż hurtowa obrabiarek"]
["46.62.Z","Sprzedaż hurtowa obrabiarek"]
["46.63","Sprzedaż hurtowa maszyn wykorzystywanych w górnictwie, budownictwie oraz inżynierii lądowej i wodnej"]
["46.63.Z","Sprzedaż hurtowa maszyn wykorzystywanych w górnictwie, budownictwie oraz inżynierii lądowej i wodnej"]
["46.64","Sprzedaż hurtowa maszyn dla przemysłu tekstylnego oraz maszyn do szycia i maszyn dziewiarskich"]
["46.64.Z","Sprzedaż hurtowa maszyn dla przemysłu tekstylnego oraz maszyn do szycia i maszyn dziewiarskich"]
["46.65","Sprzedaż hurtowa mebli biurowych"]
["46.65.Z","Sprzedaż hurtowa mebli biurowych"]
["46.66","Sprzedaż hurtowa pozostałych maszyn i urządzeń biurowych"]
["46.66.Z","Sprzedaż hurtowa pozostałych maszyn i urządzeń biurowych"]
["46.69","Sprzedaż hurtowa pozostałych maszyn i urządzeń"]
["46.69.Z","Sprzedaż hurtowa pozostałych maszyn i urządzeń"]
["46.7","Pozostała wyspecjalizowana sprzedaż hurtowa"]
["46.71","Sprzedaż hurtowa paliw i produktów pochodnych"]
["46.71.Z","Sprzedaż hurtowa paliw i produktów pochodnych"]
["46.72","Sprzedaż hurtowa metali i rud metali"]
["46.72.Z","Sprzedaż hurtowa metali i rud metali"]
["46.73","Sprzedaż hurtowa drewna, materiałów budowlanych i wyposażenia sanitarnego"]
["46.73.Z","Sprzedaż hurtowa drewna, materiałów budowlanych i wyposażenia sanitarnego"]
["46.74","Sprzedaż hurtowa wyrobów metalowych oraz sprzętu i dodatkowego wyposażenia hydraulicznego i grzejnego"]
["46.74.Z","Sprzedaż hurtowa wyrobów metalowych oraz sprzętu i dodatkowego wyposażenia hydraulicznego i grzejnego"]
["46.75","Sprzedaż hurtowa wyrobów chemicznych"]
["46.75.Z","Sprzedaż hurtowa wyrobów chemicznych"]
["46.76","Sprzedaż hurtowa pozostałych półproduktów"]
["46.76.Z","Sprzedaż hurtowa pozostałych półproduktów"]
["46.77","Sprzedaż hurtowa odpadów i złomu"]
["46.77.Z","Sprzedaż hurtowa odpadów i złomu"]
["46.9","Sprzedaż hurtowa niewyspecjalizowana"]
["46.90","Sprzedaż hurtowa niewyspecjalizowana"]
["46.90.Z","Sprzedaż hurtowa niewyspecjalizowana"]
["47.1","Sprzedaż detaliczna prowadzona w niewyspecjalizowanych sklepach"]
["47.11","Sprzedaż detaliczna prowadzona w niewyspecjalizowanych sklepach z przewagą żywności, napojów i wyrobów tytoniowych"]
["47.11.Z","Sprzedaż detaliczna prowadzona w niewyspecjalizowanych sklepach z przewagą żywności, napojów i wyrobów tytoniowych"]
["47.19","Pozostała sprzedaż detaliczna prowadzona w niewyspecjalizowanych sklepach"]
["47.19.Z","Pozostała sprzedaż detaliczna prowadzona w niewyspecjalizowanych sklepach"]
["47.2","Sprzedaż detaliczna żywności, napojów i wyrobów tytoniowych prowadzona w wyspecjalizowanych sklepach"]
["47.21","Sprzedaż detaliczna owoców i warzyw prowadzona w wyspecjalizowanych sklepach"]
["47.21.Z","Sprzedaż detaliczna owoców i warzyw prowadzona w wyspecjalizowanych sklepach"]
["47.22","Sprzedaż detaliczna mięsa i wyrobów z mięsa prowadzona w wyspecjalizowanych sklepach"]
["47.22.Z","Sprzedaż detaliczna mięsa i wyrobów z mięsa prowadzona w wyspecjalizowanych sklepach"]
["47.23","Sprzedaż detaliczna ryb, skorupiaków i mięczaków prowadzona w wyspecjalizowanych sklepach"]
["47.23.Z","Sprzedaż detaliczna ryb, skorupiaków i mięczaków prowadzona w wyspecjalizowanych sklepach"]
["47.24","Sprzedaż detaliczna pieczywa, ciast, wyrobów ciastkarskich i cukierniczych prowadzona w wyspecjalizowanych sklepach"]
["47.24.Z","Sprzedaż detaliczna pieczywa, ciast, wyrobów ciastkarskich i cukierniczych prowadzona w wyspecjalizowanych sklepach"]
["47.25","Sprzedaż detaliczna napojów alkoholowych i bezalkoholowych prowadzona w wyspecjalizowanych sklepach"]
["47.25.Z","Sprzedaż detaliczna napojów alkoholowych i bezalkoholowych prowadzona w wyspecjalizowanych sklepach"]
["47.26","Sprzedaż detaliczna wyrobów tytoniowych prowadzona w wyspecjalizowanych sklepach"]
["47.26.Z","Sprzedaż detaliczna wyrobów tytoniowych prowadzona w wyspecjalizowanych sklepach"]
["47.29","Sprzedaż detaliczna pozostałej żywności prowadzona w wyspecjalizowanych sklepach"]
["47.29.Z","Sprzedaż detaliczna pozostałej żywności prowadzona w wyspecjalizowanych sklepach"]
["47.3","Sprzedaż detaliczna paliw do pojazdów silnikowych na stacjach paliw"]
["47.30","Sprzedaż detaliczna paliw do pojazdów silnikowych na stacjach paliw"]
["47.30.Z","Sprzedaż detaliczna paliw do pojazdów silnikowych na stacjach paliw"]
["47.4","Sprzedaż detaliczna narzędzi technologii informacyjnej i komunikacyjnej prowadzona w wyspecjalizowanych sklepach"]
["47.41","Sprzedaż detaliczna komputerów, urządzeń peryferyjnych i oprogramowania prowadzona w wyspecjalizowanych sklepach"]
["47.41.Z","Sprzedaż detaliczna komputerów, urządzeń peryferyjnych i oprogramowania prowadzona w wyspecjalizowanych sklepach"]
["47.42","Sprzedaż detaliczna sprzętu telekomunikacyjnego prowadzona w wyspecjalizowanych sklepach"]
["47.42.Z","Sprzedaż detaliczna sprzętu telekomunikacyjnego prowadzona w wyspecjalizowanych sklepach"]
["47.43","Sprzedaż detaliczna sprzętu audiowizualnego prowadzona w wyspecjalizowanych sklepach"]
["47.43.Z","Sprzedaż detaliczna sprzętu audiowizualnego prowadzona w wyspecjalizowanych sklepach"]
["47.5","Sprzedaż detaliczna artykułów użytku domowego prowadzona w wyspecjalizowanych sklepach"]
["47.51","Sprzedaż detaliczna wyrobów tekstylnych prowadzona w wyspecjalizowanych sklepach"]
["47.51.Z","Sprzedaż detaliczna wyrobów tekstylnych prowadzona w wyspecjalizowanych sklepach"]
["47.52","Sprzedaż detaliczna drobnych wyrobów metalowych, farb i szkła prowadzona w wyspecjalizowanych sklepach"]
["47.52.Z","Sprzedaż detaliczna drobnych wyrobów metalowych, farb i szkła prowadzona w wyspecjalizowanych sklepach"]
["47.53","Sprzedaż detaliczna dywanów, chodników i innych pokryć podłogowych oraz pokryć ściennych prowadzona w wyspecjalizowanych sklepach"]
["47.53.Z","Sprzedaż detaliczna dywanów, chodników i innych pokryć podłogowych oraz pokryć ściennych prowadzona w wyspecjalizowanych sklepach"]
["47.54","Sprzedaż detaliczna elektrycznego sprzętu gospodarstwa domowego prowadzona w wyspecjalizowanych sklepach"]
["47.54.Z","Sprzedaż detaliczna elektrycznego sprzętu gospodarstwa domowego prowadzona w wyspecjalizowanych sklepach"]
["47.59","Sprzedaż detaliczna mebli, sprzętu oświetleniowego i pozostałych artykułów użytku domowego prowadzona w wyspecjalizowanych sklepach"]
["47.59.Z","Sprzedaż detaliczna mebli, sprzętu oświetleniowego i pozostałych artykułów użytku domowego prowadzona w wyspecjalizowanych sklepach"]
["47.6","Sprzedaż detaliczna wyrobów związanych z kulturą i rekreacją prowadzona w wyspecjalizowanych sklepach"]
["47.61","Sprzedaż detaliczna książek prowadzona w wyspecjalizowanych sklepach"]
["47.61.Z","Sprzedaż detaliczna książek prowadzona w wyspecjalizowanych sklepach"]
["47.62","Sprzedaż detaliczna gazet i artykułów piśmiennych prowadzona w wyspecjalizowanych sklepach"]
["47.62.Z","Sprzedaż detaliczna gazet i artykułów piśmiennych prowadzona w wyspecjalizowanych sklepach"]
["47.63","Sprzedaż detaliczna nagrań dźwiękowych i audiowizualnych prowadzona w wyspecjalizowanych sklepach"]
["47.63.Z","Sprzedaż detaliczna nagrań dźwiękowych i audiowizualnych prowadzona w wyspecjalizowanych sklepach"]
["47.64","Sprzedaż detaliczna sprzętu sportowego prowadzona w wyspecjalizowanych sklepach"]
["47.64.Z","Sprzedaż detaliczna sprzętu sportowego prowadzona w wyspecjalizowanych sklepach"]
["47.65","Sprzedaż detaliczna gier i zabawek prowadzona w wyspecjalizowanych sklepach"]
["47.65.Z","Sprzedaż detaliczna gier i zabawek prowadzona w wyspecjalizowanych sklepach"]
["47.7","Sprzedaż detaliczna pozostałych wyrobów prowadzona w wyspecjalizowanych sklepach"]
["47.71","Sprzedaż detaliczna odzieży prowadzona w wyspecjalizowanych sklepach"]
["47.71.Z","Sprzedaż detaliczna odzieży prowadzona w wyspecjalizowanych sklepach"]
["47.72","Sprzedaż detaliczna obuwia i wyrobów skórzanych prowadzona w wyspecjalizowanych sklepach"]
["47.72.Z","Sprzedaż detaliczna obuwia i wyrobów skórzanych prowadzona w wyspecjalizowanych sklepach"]
["47.73","Sprzedaż detaliczna wyrobów farmaceutycznych prowadzona w wyspecjalizowanych sklepach"]
["47.73.Z","Sprzedaż detaliczna wyrobów farmaceutycznych prowadzona w wyspecjalizowanych sklepach"]
["47.74","Sprzedaż detaliczna wyrobów medycznych, włączając ortopedyczne, prowadzona w wyspecjalizowanych sklepach"]
["47.74.Z","Sprzedaż detaliczna wyrobów medycznych, włączając ortopedyczne, prowadzona w wyspecjalizowanych sklepach"]
["47.75","Sprzedaż detaliczna kosmetyków i artykułów toaletowych prowadzona w wyspecjalizowanych sklepach"]
["47.75.Z","Sprzedaż detaliczna kosmetyków i artykułów toaletowych prowadzona w wyspecjalizowanych sklepach"]
["47.76","Sprzedaż detaliczna kwiatów, roślin, nasion, nawozów, żywych zwierząt domowych, karmy dla zwierząt domowych prowadzona w wyspecjalizowanych sklepach"]
["47.76.Z","Sprzedaż detaliczna kwiatów, roślin, nasion, nawozów, żywych zwierząt domowych, karmy dla zwierząt domowych prowadzona w wyspecjalizowanych sklepach"]
["47.77","Sprzedaż detaliczna zegarków, zegarów i biżuterii prowadzona w wyspecjalizowanych sklepach"]
["47.77.Z","Sprzedaż detaliczna zegarków, zegarów i biżuterii prowadzona w wyspecjalizowanych sklepach"]
["47.78","Sprzedaż detaliczna pozostałych nowych wyrobów prowadzona w wyspecjalizowanych sklepach"]
["47.78.Z","Sprzedaż detaliczna pozostałych nowych wyrobów prowadzona w wyspecjalizowanych sklepach"]
["47.79","Sprzedaż detaliczna artykułów używanych prowadzona w wyspecjalizowanych sklepach"]
["47.79.Z","Sprzedaż detaliczna artykułów używanych prowadzona w wyspecjalizowanych sklepach"]
["47.8","Sprzedaż detaliczna prowadzona na straganach i targowiskach"]
["47.81","Sprzedaż detaliczna żywności, napojów i wyrobów tytoniowych prowadzona na straganach i targowiskach"]
["47.81.Z","Sprzedaż detaliczna żywności, napojów i wyrobów tytoniowych prowadzona na straganach i targowiskach"]
["47.82","Sprzedaż detaliczna wyrobów tekstylnych, odzieży i obuwia prowadzona na straganach i targowiskach"]
["47.82.Z","Sprzedaż detaliczna wyrobów tekstylnych, odzieży i obuwia prowadzona na straganach i targowiskach"]
["47.89","Sprzedaż detaliczna pozostałych wyrobów prowadzona na straganach i targowiskach"]
["47.89.Z","Sprzedaż detaliczna pozostałych wyrobów prowadzona na straganach i targowiskach"]
["47.9","Sprzedaż detaliczna prowadzona poza siecią sklepową, straganami i targowiskami"]
["47.91","Sprzedaż detaliczna prowadzona przez domy sprzedaży wysyłkowej lub Internet"]
["47.91.Z","Sprzedaż detaliczna prowadzona przez domy sprzedaży wysyłkowej lub Internet"]
["47.99","Pozostała sprzedaż detaliczna prowadzona poza siecią sklepową, straganami i targowiskami"]
["47.99.Z","Pozostała sprzedaż detaliczna prowadzona poza siecią sklepową, straganami i targowiskami"]
["49.1","Transport kolejowy pasażerski międzymiastowy"]
["49.10","Transport kolejowy pasażerski międzymiastowy"]
["49.10.Z","Transport kolejowy pasażerski międzymiastowy"]
["49.2","Transport kolejowy towarów"]
["49.20","Transport kolejowy towarów"]
["49.20.Z","Transport kolejowy towarów"]
["49.3","Pozostały transport lądowy pasażerski"]
["49.31","Transport lądowy pasażerski, miejski i podmiejski"]
["49.31.Z","Transport lądowy pasażerski, miejski i podmiejski"]
["49.32","Działalność taksówek osobowych"]
["49.32.Z","Działalność taksówek osobowych"]
["49.39","Pozostały transport lądowy pasażerski, gdzie indziej niesklasyfikowany"]
["49.39.Z","Pozostały transport lądowy pasażerski, gdzie indziej niesklasyfikowany"]
["49.4","Transport drogowy towarów oraz działalność usługowa związana z przeprowadzkami"]
["49.41","Transport drogowy towarów"]
["49.41.Z","Transport drogowy towarów"]
["49.42","Działalność usługowa związana z przeprowadzkami"]
["49.42.Z","Działalność usługowa związana z przeprowadzkami"]
["49.5","Transport rurociągowy"]
["49.50","Transport rurociągowy"]
["49.50.A","Transport rurociągami paliw gazowych"]
["49.50.B","Transport rurociągowy pozostałych towarów"]
["50.1","Transport morski i przybrzeżny pasażerski"]
["50.10","Transport morski i przybrzeżny pasażerski"]
["50.10.Z","Transport morski i przybrzeżny pasażerski"]
["50.2","Transport morski i przybrzeżny towarów"]
["50.20","Transport morski i przybrzeżny towarów"]
["50.20.Z","Transport morski i przybrzeżny towarów"]
["50.3","Transport wodny śródlądowy pasażerski "]
["50.30","Transport wodny śródlądowy pasażerski "]
["50.30.Z","Transport wodny śródlądowy pasażerski "]
["50.4","Transport wodny śródlądowy towarów"]
["50.40","Transport wodny śródlądowy towarów"]
["50.40.Z","Transport wodny śródlądowy towarów"]
["51.1","Transport lotniczy pasażerski"]
["51.10","Transport lotniczy pasażerski"]
["51.10.Z","Transport lotniczy pasażerski"]
["51.2","Transport lotniczy towarów i transport kosmiczny"]
["51.21","Transport lotniczy towarów"]
["51.21.Z","Transport lotniczy towarów"]
["51.22","Transport kosmiczny"]
["51.22.Z","Transport kosmiczny"]
["52.1","Magazynowanie i przechowywanie towarów"]
["52.10","Magazynowanie i przechowywanie towarów"]
["52.10.A","Magazynowanie i przechowywanie paliw gazowych"]
["52.10.B","Magazynowanie i przechowywanie pozostałych towarów"]
["52.2","Działalność usługowa wspomagająca transport"]
["52.21","Działalność usługowa wspomagająca transport lądowy"]
["52.21.Z","Działalność usługowa wspomagająca transport lądowy"]
["52.22","Działalność usługowa wspomagająca transport wodny"]
["52.22.A","Działalność usługowa wspomagająca transport morski"]
["52.22.B","Działalność usługowa wspomagająca transport śródlądowy"]
["52.23","Działalność usługowa wspomagająca transport lotniczy"]
["52.23.Z","Działalność usługowa wspomagająca transport lotniczy"]
["52.24","Przeładunek towarów"]
["52.24.A","Przeładunek towarów w portach morskich"]
["52.24.B","Przeładunek towarów w portach śródlądowych"]
["52.24.C","Przeładunek towarów w pozostałych punktach przeładunkowych"]
["52.29","Pozostała działalność usługowa wspomagająca transport"]
["52.29.A","Działalność morskich agencji transportowych"]
["52.29.B","Działalność śródlądowych agencji transportowych"]
["52.29.C","Działalność pozostałych agencji transportowych"]
["53.1","Działalność pocztowa objęta obowiązkiem świadczenia usług powszechnych (operatora publicznego)"]
["53.10","Działalność pocztowa objęta obowiązkiem świadczenia usług powszechnych (operatora publicznego)"]
["53.10.Z","Działalność pocztowa objęta obowiązkiem świadczenia usług powszechnych (operatora publicznego)"]
["53.2","Pozostała działalność pocztowa i kurierska"]
["53.20","Pozostała działalność pocztowa i kurierska"]
["53.20.Z","Pozostała działalność pocztowa i kurierska"]
["55.1","Hotele i podobne obiekty zakwaterowania"]
["55.10","Hotele i podobne obiekty zakwaterowania"]
["55.10.Z","Hotele i podobne obiekty zakwaterowania"]
["55.2","Obiekty noclegowe turystyczne i miejsca krótkotrwałego zakwaterowania"]
["55.20","Obiekty noclegowe turystyczne i miejsca krótkotrwałego zakwaterowania"]
["55.20.Z","Obiekty noclegowe turystyczne i miejsca krótkotrwałego zakwaterowania"]
["55.3","Pola kempingowe (włączając pola dla pojazdów kempingowych) i pola namiotowe"]
["55.30","Pola kempingowe (włączając pola dla pojazdów kempingowych) i pola namiotowe"]
["55.30.Z","Pola kempingowe (włączając pola dla pojazdów kempingowych) i pola namiotowe"]
["55.9","Pozostałe zakwaterowanie"]
["55.90","Pozostałe zakwaterowanie"]
["55.90.Z","Pozostałe zakwaterowanie"]
["56.1","Restauracje i pozostałe placówki gastronomiczne"]
["56.10","Restauracje i pozostałe placówki gastronomiczne"]
["56.10.A","Restauracje i inne stałe placówki gastronomiczne"]
["56.10.B","Ruchome placówki gastronomiczne"]
["56.2","Przygotowywanie żywności dla odbiorców zewnętrznych (katering) i pozostała gastronomiczna działalność usługowa"]
["56.21","Przygotowywanie i dostarczanie żywności dla odbiorców zewnętrznych (katering)"]
["56.21.Z","Przygotowywanie i dostarczanie żywności dla odbiorców zewnętrznych (katering)"]
["56.29","Pozostała usługowa działalność gastronomiczna"]
["56.29.Z","Pozostała usługowa działalność gastronomiczna"]
["56.3","Przygotowywanie i podawanie napojów"]
["56.30","Przygotowywanie i podawanie napojów"]
["56.30.Z","Przygotowywanie i podawanie napojów"]
["58.1","Wydawanie książek i periodyków oraz pozostała działalność wydawnicza, z wyłączeniem w zakresie oprogramowania"]
["58.11","Wydawanie książek"]
["58.11.Z","Wydawanie książek"]
["58.12","Wydawanie wykazów oraz list (np. adresowych, telefonicznych)"]
["58.12.Z","Wydawanie wykazów oraz list (np. adresowych, telefonicznych)"]
["58.13","Wydawanie gazet"]
["58.13.Z","Wydawanie gazet"]
["58.14","Wydawanie czasopism i pozostałych periodyków"]
["58.14.Z","Wydawanie czasopism i pozostałych periodyków"]
["58.19","Pozostała działalność wydawnicza"]
["58.19.Z","Pozostała działalność wydawnicza"]
["58.2","Działalność wydawnicza w zakresie oprogramowania"]
["58.21","Działalność wydawnicza w zakresie gier komputerowych"]
["58.21.Z","Działalność wydawnicza w zakresie gier komputerowych"]
["58.29","Działalność wydawnicza w zakresie pozostałego oprogramowania"]
["58.29.Z","Działalność wydawnicza w zakresie pozostałego oprogramowania"]
["59.1","Działalność związana z filmami, nagraniami wideo i programami telewizyjnymi"]
["59.11","Działalność związana z produkcją filmów, nagrań wideo i programów telewizyjnych"]
["59.11.Z","Działalność związana z produkcją filmów, nagrań wideo i programów telewizyjnych"]
["59.12","Działalność postprodukcyjna związana z filmami, nagraniami wideo i programami telewizyjnymi"]
["59.12.Z","Działalność postprodukcyjna związana z filmami, nagraniami wideo i programami telewizyjnymi"]
["59.13","Działalność związana z dystrybucją filmów, nagrań wideo i programów telewizyjnych"]
["59.13.Z","Działalność związana z dystrybucją filmów, nagrań wideo i programów telewizyjnych"]
["59.14","Działalność związana z projekcją filmów"]
["59.14.Z","Działalność związana z projekcją filmów"]
["59.2","Działalność w zakresie nagrań dźwiękowych i muzycznych"]
["59.20","Działalność w zakresie nagrań dźwiękowych i muzycznych"]
["59.20.Z","Działalność w zakresie nagrań dźwiękowych i muzycznych"]
["60.1","Nadawanie programów radiofonicznych"]
["60.10","Nadawanie programów radiofonicznych"]
["60.10.Z","Nadawanie programów radiofonicznych"]
["60.2","Nadawanie programów telewizyjnych ogólnodostępnych i abonamentowych"]
["60.20","Nadawanie programów telewizyjnych ogólnodostępnych i abonamentowych"]
["60.20.Z","Nadawanie programów telewizyjnych ogólnodostępnych i abonamentowych"]
["61.1","Działalność w zakresie telekomunikacji przewodowej"]
["61.10","Działalność w zakresie telekomunikacji przewodowej"]
["61.10.Z","Działalność w zakresie telekomunikacji przewodowej"]
["61.2","Działalność w zakresie telekomunikacji bezprzewodowej, z wyłączeniem telekomunikacji satelitarnej"]
["61.20","Działalność w zakresie telekomunikacji bezprzewodowej, z wyłączeniem telekomunikacji satelitarnej"]
["61.20.Z","Działalność w zakresie telekomunikacji bezprzewodowej, z wyłączeniem telekomunikacji satelitarnej"]
["61.3","Działalność w zakresie telekomunikacji satelitarnej"]
["61.30","Działalność w zakresie telekomunikacji satelitarnej"]
["61.30.Z","Działalność w zakresie telekomunikacji satelitarnej"]
["61.9","Działalność w zakresie pozostałej telekomunikacji"]
["61.90","Działalność w zakresie pozostałej telekomunikacji"]
["61.90.Z","Działalność w zakresie pozostałej telekomunikacji"]
["62.0","DZIAŁALNOŚĆ ZWIĄZANA Z OPROGRAMOWANIEM I DORADZTWEM W ZAKRESIE INFORMATYKI ORAZ DZIAŁALNOŚĆ POWIĄZANA"]
["62.01","Działalność związana z oprogramowaniem"]
["62.01.Z","Działalność związana z oprogramowaniem"]
["62.02","Działalność związana z doradztwem w zakresie informatyki"]
["62.02.Z","Działalność związana z doradztwem w zakresie informatyki"]
["62.03","Działalność związana z zarządzaniem urządzeniami informatycznymi"]
["62.03.Z","Działalność związana z zarządzaniem urządzeniami informatycznymi"]
["62.09","Pozostała działalność usługowa w zakresie technologii informatycznych i komputerowych"]
["62.09.Z","Pozostała działalność usługowa w zakresie technologii informatycznych i komputerowych"]
["63.1","Przetwarzanie danych; zarządzanie stronami internetowymi (hosting) i podobna działalność; działalność portali internetowych"]
["63.11","Przetwarzanie danych; zarządzanie stronami internetowymi (hosting) i podobna działalność"]
["63.11.Z","Przetwarzanie danych; zarządzanie stronami internetowymi (hosting) i podobna działalność"]
["63.12","Działalność portali internetowych"]
["63.12.Z","Działalność portali internetowych"]
["63.9","Pozostała działalność usługowa w zakresie informacji"]
["63.91","Działalność agencji informacyjnych"]
["63.91.Z","Działalność agencji informacyjnych"]
["63.99","Pozostała działalność usługowa w zakresie informacji, gdzie indziej niesklasyfikowana"]
["63.99.Z","Pozostała działalność usługowa w zakresie informacji, gdzie indziej niesklasyfikowana"]
["64.1","Pośrednictwo pieniężne"]
["64.11","Działalność banku centralnego"]
["64.11.Z","Działalność banku centralnego"]
["64.19","Pozostałe pośrednictwo pieniężne"]
["64.19.Z","Pozostałe pośrednictwo pieniężne"]
["64.2","Działalność holdingów finansowych"]
["64.20","Działalność holdingów finansowych"]
["64.20.Z","Działalność holdingów finansowych"]
["64.3","Działalność trustów, funduszów i podobnych instytucji finansowych"]
["64.30","Działalność trustów, funduszów i podobnych instytucji finansowych"]
["64.30.Z","Działalność trustów, funduszów i podobnych instytucji finansowych"]
["64.9","Pozostała finansowa działalność usługowa, z wyłączeniem ubezpieczeń i funduszów emerytalnych"]
["64.91","Leasing finansowy"]
["64.91.Z","Leasing finansowy"]
["64.92","Pozostałe formy udzielania kredytów"]
["64.92.Z","Pozostałe formy udzielania kredytów"]
["64.99","Pozostała finansowa działalność usługowa, gdzie indziej niesklasyfikowana, z wyłączeniem ubezpieczeń i funduszów emerytalnych"]
["64.99.Z","Pozostała finansowa działalność usługowa, gdzie indziej niesklasyfikowana, z wyłączeniem ubezpieczeń i funduszów emerytalnych"]
["65.1","Ubezpieczenia"]
["65.11","Ubezpieczenia na życie"]
["65.11.Z","Ubezpieczenia na życie"]
["65.12","Pozostałe ubezpieczenia osobowe oraz ubezpieczenia majątkowe"]
["65.12.Z","Pozostałe ubezpieczenia osobowe oraz ubezpieczenia majątkowe"]
["65.2","Reasekuracja"]
["65.20","Reasekuracja"]
["65.20.Z","Reasekuracja"]
["65.3","Fundusze emerytalne"]
["65.30","Fundusze emerytalne"]
["65.30.Z","Fundusze emerytalne"]
["66.1","Działalność wspomagająca usługi finansowe, z wyłączeniem ubezpieczeń i funduszów emerytalnych"]
["66.11","Zarządzanie rynkami finansowymi"]
["66.11.Z","Zarządzanie rynkami finansowymi"]
["66.12","Działalność maklerska związana z rynkiem papierów wartościowych i towarów giełdowych"]
["66.12.Z","Działalność maklerska związana z rynkiem papierów wartościowych i towarów giełdowych"]
["66.19","Pozostała działalność wspomagająca usługi finansowe, z wyłączeniem ubezpieczeń i funduszów emerytalnych"]
["66.19.Z","Pozostała działalność wspomagająca usługi finansowe, z wyłączeniem ubezpieczeń i funduszów emerytalnych"]
["66.2","Działalność wspomagająca ubezpieczenia i fundusze emerytalne"]
["66.21","Działalność związana z oceną ryzyka i szacowaniem poniesionych strat"]
["66.21.Z","Działalność związana z oceną ryzyka i szacowaniem poniesionych strat"]
["66.22","Działalność agentów i brokerów ubezpieczeniowych"]
["66.22.Z","Działalność agentów i brokerów ubezpieczeniowych"]
["66.29","Pozostała działalność wspomagająca ubezpieczenia i fundusze emerytalne"]
["66.29.Z","Pozostała działalność wspomagająca ubezpieczenia i fundusze emerytalne"]
["66.3","Działalność związana z zarządzaniem funduszami"]
["66.30","Działalność związana z zarządzaniem funduszami"]
["66.30.Z","Działalność związana z zarządzaniem funduszami"]
["68.1","Kupno i sprzedaż nieruchomości na własny rachunek"]
["68.10","Kupno i sprzedaż nieruchomości na własny rachunek"]
["68.10.Z","Kupno i sprzedaż nieruchomości na własny rachunek"]
["68.2","Wynajem i zarządzanie nieruchomościami własnymi lub dzierżawionymi"]
["68.20","Wynajem i zarządzanie nieruchomościami własnymi lub dzierżawionymi"]
["68.20.Z","Wynajem i zarządzanie nieruchomościami własnymi lub dzierżawionymi"]
["68.3","Działalność związana z obsługą rynku nieruchomości wykonywana na zlecenie"]
["68.31","Pośrednictwo w obrocie nieruchomościami"]
["68.31.Z","Pośrednictwo w obrocie nieruchomościami"]
["68.32","Zarządzanie nieruchomościami wykonywane na zlecenie"]
["68.32.Z","Zarządzanie nieruchomościami wykonywane na zlecenie"]
["69.1","Działalność prawnicza"]
["69.10","Działalność prawnicza"]
["69.10.Z","Działalność prawnicza"]
["69.2","Działalność rachunkowo-księgowa; doradztwo podatkowe"]
["69.20","Działalność rachunkowo-księgowa; doradztwo podatkowe"]
["69.20.Z","Działalność rachunkowo-księgowa; doradztwo podatkowe"]
["70.1","Działalność firm centralnych (head offices) i holdingów, z wyłączeniem holdingów finansowych"]
["70.10","Działalność firm centralnych (head offices) i holdingów, z wyłączeniem holdingów finansowych"]
["70.10.Z","Działalność firm centralnych (head offices) i holdingów, z wyłączeniem holdingów finansowych"]
["70.2","Doradztwo związane z zarządzaniem"]
["70.21","Stosunki międzyludzkie (public relations) i komunikacja"]
["70.21.Z","Stosunki międzyludzkie (public relations) i komunikacja"]
["70.22","Pozostałe doradztwo w zakresie prowadzenia działalności gospodarczej i zarządzania"]
["70.22.Z","Pozostałe doradztwo w zakresie prowadzenia działalności gospodarczej i zarządzania"]
["71.1","Działalność w zakresie architektury i inżynierii oraz związane z nią doradztwo techniczne"]
["71.11","Działalność w zakresie architektury"]
["71.11.Z","Działalność w zakresie architektury"]
["71.12","Działalność w zakresie inżynierii i związane z nią doradztwo techniczne"]
["71.12.Z","Działalność w zakresie inżynierii i związane z nią doradztwo techniczne"]
["71.2","Badania i analizy techniczne"]
["71.20","Badania i analizy techniczne"]
["71.20.A","Badania i analizy związane z jakością żywności"]
["71.20.B","Pozostałe badania i analizy techniczne"]
["72.1","Badania naukowe i prace rozwojowe w dziedzinie nauk przyrodniczych i technicznych"]
["72.11","Badania naukowe i prace rozwojowe w dziedzinie biotechnologii"]
["72.11.Z","Badania naukowe i prace rozwojowe w dziedzinie biotechnologii"]
["72.19","Badania naukowe i prace rozwojowe w dziedzinie pozostałych nauk przyrodniczych i technicznych"]
["72.19.Z","Badania naukowe i prace rozwojowe w dziedzinie pozostałych nauk przyrodniczych i technicznych"]
["72.2","Badania naukowe i prace rozwojowe w dziedzinie nauk społecznych i humanistycznych"]
["72.20","Badania naukowe i prace rozwojowe w dziedzinie nauk społecznych i humanistycznych"]
["72.20.Z","Badania naukowe i prace rozwojowe w dziedzinie nauk społecznych i humanistycznych"]
["73.1","Reklama"]
["73.11","Działalność agencji reklamowych"]
["73.11.Z","Działalność agencji reklamowych"]
["73.12","Działalność związana z reprezentowaniem mediów"]
["73.12.A","Pośrednictwo w sprzedaży czasu i miejsca na cele reklamowe w radio i telewizji"]
["73.12.B","Pośrednictwo w sprzedaży miejsca na cele reklamowe w mediach drukowanych"]
["73.12.C","Pośrednictwo w sprzedaży miejsca na cele reklamowe w mediach elektronicznych (Internet)"]
["73.12.D","Pośrednictwo w sprzedaży miejsca na cele reklamowe w pozostałych mediach"]
["73.2","Badanie rynku i opinii publicznej"]
["73.20","Badanie rynku i opinii publicznej"]
["73.20.Z","Badanie rynku i opinii publicznej"]
["74.1","Działalność w zakresie specjalistycznego projektowania"]
["74.10","Działalność w zakresie specjalistycznego projektowania"]
["74.10.Z","Działalność w zakresie specjalistycznego projektowania"]
["74.2","Działalność fotograficzna"]
["74.20","Działalność fotograficzna"]
["74.20.Z","Działalność fotograficzna"]
["74.3","Działalność związana z tłumaczeniami"]
["74.30","Działalność związana z tłumaczeniami"]
["74.30.Z","Działalność związana z tłumaczeniami"]
["74.9","Pozostała działalność profesjonalna, naukowa i techniczna, gdzie indziej niesklasyfikowana"]
["74.90","Pozostała działalność profesjonalna, naukowa i techniczna, gdzie indziej niesklasyfikowana"]
["74.90.Z","Pozostała działalność profesjonalna, naukowa i techniczna, gdzie indziej niesklasyfikowana"]
["75.0","DZIAŁALNOŚĆ WETERYNARYJNA"]
["75.00","DZIAŁALNOŚĆ WETERYNARYJNA"]
["75.00.Z","DZIAŁALNOŚĆ WETERYNARYJNA"]
["77.1","Wynajem i dzierżawa pojazdów samochodowych, z wyłączeniem motocykli"]
["77.11","Wynajem i dzierżawa samochodów osobowych i furgonetek"]
["77.11.Z","Wynajem i dzierżawa samochodów osobowych i furgonetek"]
["77.12","Wynajem i dzierżawa pozostałych pojazdów samochodowych, z wyłączeniem motocykli"]
["77.12.Z","Wynajem i dzierżawa pozostałych pojazdów samochodowych, z wyłączeniem motocykli"]
["77.2","Wypożyczanie i dzierżawa artykułów użytku osobistego i domowego"]
["77.21","Wypożyczanie i dzierżawa sprzętu rekreacyjnego i sportowego"]
["77.21.Z","Wypożyczanie i dzierżawa sprzętu rekreacyjnego i sportowego"]
["77.22","Wypożyczanie kaset wideo, płyt CD, DVD itp."]
["77.22.Z","Wypożyczanie kaset wideo, płyt CD, DVD itp."]
["77.29","Wypożyczanie i dzierżawa pozostałych artykułów użytku osobistego i domowego"]
["77.29.Z","Wypożyczanie i dzierżawa pozostałych artykułów użytku osobistego i domowego"]
["77.3","Wynajem i dzierżawa pozostałych maszyn, urządzeń oraz dóbr materialnych"]
["77.31","Wynajem i dzierżawa maszyn i urządzeń rolniczych"]
["77.31.Z","Wynajem i dzierżawa maszyn i urządzeń rolniczych"]
["77.32","Wynajem i dzierżawa maszyn i urządzeń budowlanych"]
["77.32.Z","Wynajem i dzierżawa maszyn i urządzeń budowlanych"]
["77.33","Wynajem i dzierżawa maszyn i urządzeń biurowych, włączając komputery"]
["77.33.Z","Wynajem i dzierżawa maszyn i urządzeń biurowych, włączając komputery"]
["77.34","Wynajem i dzierżawa środków transportu wodnego"]
["77.34.Z","Wynajem i dzierżawa środków transportu wodnego"]
["77.35","Wynajem i dzierżawa środków transportu lotniczego"]
["77.35.Z","Wynajem i dzierżawa środków transportu lotniczego"]
["77.39","Wynajem i dzierżawa pozostałych maszyn, urządzeń oraz dóbr materialnych, gdzie indziej niesklasyfikowane"]
["77.39.Z","Wynajem i dzierżawa pozostałych maszyn, urządzeń oraz dóbr materialnych, gdzie indziej niesklasyfikowane"]
["77.4","Dzierżawa własności intelektualnej i podobnych produktów, z wyłączeniem prac chronionych prawem autorskim"]
["77.40","Dzierżawa własności intelektualnej i podobnych produktów, z wyłączeniem prac chronionych prawem autorskim"]
["77.40.Z","Dzierżawa własności intelektualnej i podobnych produktów, z wyłączeniem prac chronionych prawem autorskim"]
["78.1","Działalność związana z wyszukiwaniem miejsc pracy i pozyskiwaniem pracowników"]
["78.10","Działalność związana z wyszukiwaniem miejsc pracy i pozyskiwaniem pracowników"]
["78.10.Z","Działalność związana z wyszukiwaniem miejsc pracy i pozyskiwaniem pracowników"]
["78.2","Działalność agencji pracy tymczasowej"]
["78.20","Działalność agencji pracy tymczasowej"]
["78.20.Z","Działalność agencji pracy tymczasowej"]
["78.3","Pozostała działalność związana z udostępnianiem pracowników"]
["78.30","Pozostała działalność związana z udostępnianiem pracowników"]
["78.30.Z","Pozostała działalność związana z udostępnianiem pracowników"]
["79.1","Działalność agentów i pośredników turystycznych oraz organizatorów turystyki"]
["79.11","Działalność agentów i pośredników turystycznych"]
["79.11.A","Działalność agentów turystycznych"]
["79.11.B","Działalność pośredników turystycznych"]
["79.12","Działalność organizatorów turystyki"]
["79.12.Z","Działalność organizatorów turystyki"]
["79.9","Pozostała działalność usługowa w zakresie rezerwacji i działalności z nią związane"]
["79.90","Pozostała działalność usługowa w zakresie rezerwacji i działalności z nią związane"]
["79.90.A","Działalność pilotów wycieczek i przewodników turystycznych"]
["79.90.B","Działalność w zakresie informacji turystycznej"]
["79.90.C","Pozostała działalność usługowa w zakresie rezerwacji, gdzie indziej niesklasyfikowana"]
["80.1","Działalność ochroniarska, z wyłączeniem obsługi systemów bezpieczeństwa"]
["80.10","Działalność ochroniarska, z wyłączeniem obsługi systemów bezpieczeństwa"]
["80.10.Z","Działalność ochroniarska, z wyłączeniem obsługi systemów bezpieczeństwa"]
["80.2","Działalność ochroniarska w zakresie obsługi systemów bezpieczeństwa"]
["80.20","Działalność ochroniarska w zakresie obsługi systemów bezpieczeństwa"]
["80.20.Z","Działalność ochroniarska w zakresie obsługi systemów bezpieczeństwa"]
["80.3","Działalność detektywistyczna"]
["80.30","Działalność detektywistyczna"]
["80.30.Z","Działalność detektywistyczna"]
["81.1","Działalność pomocnicza związana z utrzymaniem porządku w budynkach"]
["81.10","Działalność pomocnicza związana z utrzymaniem porządku w budynkach"]
["81.10.Z","Działalność pomocnicza związana z utrzymaniem porządku w budynkach"]
["81.2","Sprzątanie obiektów"]
["81.21","Niespecjalistyczne sprzątanie budynków i obiektów przemysłowych"]
["81.21.Z","Niespecjalistyczne sprzątanie budynków i obiektów przemysłowych"]
["81.22","Specjalistyczne sprzątanie budynków i obiektów przemysłowych"]
["81.22.Z","Specjalistyczne sprzątanie budynków i obiektów przemysłowych"]
["81.29","Pozostałe sprzątanie"]
["81.29.Z","Pozostałe sprzątanie"]
["81.3","Działalność usługowa związana z zagospodarowaniem terenów zieleni"]
["81.30","Działalność usługowa związana z zagospodarowaniem terenów zieleni"]
["81.30.Z","Działalność usługowa związana z zagospodarowaniem terenów zieleni"]
["82.1","Działalność związana z administracyjną obsługą biura, włączając działalność wspomagającą"]
["82.11","Działalność usługowa związana z administracyjną obsługą biura"]
["82.11.Z","Działalność usługowa związana z administracyjną obsługą biura"]
["82.19","Wykonywanie fotokopii, przygotowywanie dokumentów i pozostała specjalistyczna działalność wspomagająca prowadzenie biura"]
["82.19.Z","Wykonywanie fotokopii, przygotowywanie dokumentów i pozostała specjalistyczna działalność wspomagająca prowadzenie biura"]
["82.2","Działalność centrów telefonicznych (call center)"]
["82.20","Działalność centrów telefonicznych (call center)"]
["82.20.Z","Działalność centrów telefonicznych (call center)"]
["82.3","Działalność związana z organizacją targów, wystaw i kongresów"]
["82.30","Działalność związana z organizacją targów, wystaw i kongresów"]
["82.30.Z","Działalność związana z organizacją targów, wystaw i kongresów"]
["82.9","Działalność komercyjna, gdzie indziej niesklasyfikowana"]
["82.91","Działalność świadczona przez agencje inkasa i biura kredytowe"]
["82.91.Z","Działalność świadczona przez agencje inkasa i biura kredytowe"]
["82.92","Działalność związana z pakowaniem"]
["82.92.Z","Działalność związana z pakowaniem"]
["82.99","Pozostała działalność wspomagająca prowadzenie działalności gospodarczej, gdzie indziej niesklasyfikowana"]
["82.99.Z","Pozostała działalność wspomagająca prowadzenie działalności gospodarczej, gdzie indziej niesklasyfikowana"]
["84.1","Administracja publiczna oraz polityka gospodarcza i społeczna"]
["84.11","Kierowanie podstawowymi rodzajami działalności publicznej"]
["84.11.Z","Kierowanie podstawowymi rodzajami działalności publicznej"]
["84.12","Kierowanie w zakresie działalności związanej z ochroną zdrowia, edukacją, kulturą oraz pozostałymi usługami społecznymi, z wyłączeniem zabezpieczeń społecznych"]
["84.12.Z","Kierowanie w zakresie działalności związanej z ochroną zdrowia, edukacją, kulturą oraz pozostałymi usługami społecznymi, z wyłączeniem zabezpieczeń społecznych"]
["84.13","Kierowanie w zakresie efektywności gospodarowania"]
["84.13.Z","Kierowanie w zakresie efektywności gospodarowania"]
["84.2","Usługi na rzecz całego społeczeństwa"]
["84.21","Sprawy zagraniczne"]
["84.21.Z","Sprawy zagraniczne"]
["84.22","Obrona narodowa"]
["84.22.Z","Obrona narodowa"]
["84.23","Wymiar sprawiedliwości"]
["84.23.Z","Wymiar sprawiedliwości"]
["84.24","Bezpieczeństwo państwa, porządek i bezpieczeństwo publiczne"]
["84.24.Z","Bezpieczeństwo państwa, porządek i bezpieczeństwo publiczne"]
["84.25","Ochrona przeciwpożarowa"]
["84.25.Z","Ochrona przeciwpożarowa"]
["84.3","Obowiązkowe zabezpieczenia społeczne"]
["84.30","Obowiązkowe zabezpieczenia społeczne"]
["84.30.Z","Obowiązkowe zabezpieczenia społeczne"]
["85.1","Placówki wychowania przedszkolnego"]
["85.10","Placówki wychowania przedszkolnego"]
["85.10.Z","Placówki wychowania przedszkolnego"]
["85.2","Szkoły podstawowe"]
["85.20","Szkoły podstawowe"]
["85.20.Z","Szkoły podstawowe"]
["85.3","Gimnazja, szkoły ponadgimnazjalne i szkoły ponadpodstawowe, z wyłączeniem szkół policealnych"]
["85.31","Gimnazja i licea ogólnokształcące"]
["85.31.A","Gimnazja"]
["85.31.B","Licea ogólnokształcące"]
["85.32","Szkoły prowadzące kształcenie zawodowe, z wyłączeniem szkół policealnych"]
["85.32.A","Technika"]
["85.32.B","Branżowe szkoły I stopnia"]
["85.32.C","Szkoły specjalne przysposabiające do pracy"]
["85.32.D","Branżowe szkoły II stopnia"]
["85.4","Szkoły policealne oraz wyższe"]
["85.41","Szkoły policealne, kolegia pracowników służb społecznych i placówki doskonalenia nauczycieli"]
["85.41.A","Szkoły policealne"]
["85.41.B","Kolegia pracowników służb społecznych"]
["85.41.C","Placówki doskonalenia nauczycieli"]
["85.42","Szkoły wyższe"]
["85.42.Z","Szkoły wyższe"]
["85.5","Pozaszkolne formy edukacji"]
["85.51","Pozaszkolne formy edukacji sportowej oraz zajęć sportowych i rekreacyjnych"]
["85.51.Z","Pozaszkolne formy edukacji sportowej oraz zajęć sportowych i rekreacyjnych"]
["85.52","Pozaszkolne formy edukacji artystycznej"]
["85.52.Z","Pozaszkolne formy edukacji artystycznej"]
["85.53","Pozaszkolne formy edukacji z zakresu nauki jazdy i pilotażu"]
["85.53.Z","Pozaszkolne formy edukacji z zakresu nauki jazdy i pilotażu"]
["85.59","Pozaszkolne formy edukacji, gdzie indziej niesklasyfikowane"]
["85.59.A","Nauka języków obcych"]
["85.59.B","Pozostałe pozaszkolne formy edukacji, gdzie indziej niesklasyfikowane"]
["85.6","Działalność wspomagająca edukację"]
["85.60","Działalność wspomagająca edukację"]
["85.60.Z","Działalność wspomagająca edukację"]
["86.1","Działalność szpitali"]
["86.10","Działalność szpitali"]
["86.10.Z","Działalność szpitali"]
["86.2","Praktyka lekarska"]
["86.21","Praktyka lekarska ogólna"]
["86.21.Z","Praktyka lekarska ogólna"]
["86.22","Praktyka lekarska specjalistyczna"]
["86.22.Z","Praktyka lekarska specjalistyczna"]
["86.23","Praktyka lekarska dentystyczna"]
["86.23.Z","Praktyka lekarska dentystyczna"]
["86.9","Pozostała działalność w zakresie opieki zdrowotnej"]
["86.90","Pozostała działalność w zakresie opieki zdrowotnej"]
["86.90.A","Działalność fizjoterapeutyczna"]
["86.90.B","Działalność pogotowia ratunkowego"]
["86.90.C","Praktyka pielęgniarek i położnych"]
["86.90.D","Działalność paramedyczna"]
["86.90.E","Pozostała działalność w zakresie opieki zdrowotnej, gdzie indziej niesklasyfikowana"]
["87.1","Pomoc społeczna z zakwaterowaniem zapewniająca opiekę pielęgniarską"]
["87.10","Pomoc społeczna z zakwaterowaniem zapewniająca opiekę pielęgniarską"]
["87.10.Z","Pomoc społeczna z zakwaterowaniem zapewniająca opiekę pielęgniarską"]
["87.2","Pomoc społeczna z zakwaterowaniem dla osób z zaburzeniami psychicznymi"]
["87.20","Pomoc społeczna z zakwaterowaniem dla osób z zaburzeniami psychicznymi"]
["87.20.Z","Pomoc społeczna z zakwaterowaniem dla osób z zaburzeniami psychicznymi"]
["87.3","Pomoc społeczna z zakwaterowaniem dla osób w podeszłym wieku i osób niepełnosprawnych"]
["87.30","Pomoc społeczna z zakwaterowaniem dla osób w podeszłym wieku i osób niepełnosprawnych"]
["87.30.Z","Pomoc społeczna z zakwaterowaniem dla osób w podeszłym wieku i osób niepełnosprawnych"]
["87.9","Pozostała pomoc społeczna z zakwaterowaniem"]
["87.90","Pozostała pomoc społeczna z zakwaterowaniem"]
["87.90.Z","Pozostała pomoc społeczna z zakwaterowaniem"]
["88.1","Pomoc społeczna bez zakwaterowania dla osób w podeszłym wieku i osób niepełnosprawnych"]
["88.10","Pomoc społeczna bez zakwaterowania dla osób w podeszłym wieku i osób niepełnosprawnych"]
["88.10.Z","Pomoc społeczna bez zakwaterowania dla osób w podeszłym wieku i osób niepełnosprawnych"]
["88.9","Pozostała pomoc społeczna bez zakwaterowania"]
["88.91","Opieka dzienna nad dziećmi"]
["88.91.Z","Opieka dzienna nad dziećmi"]
["88.99","Pozostała pomoc społeczna bez zakwaterowania, gdzie indziej niesklasyfikowana"]
["88.99.Z","Pozostała pomoc społeczna bez zakwaterowania, gdzie indziej niesklasyfikowana"]
["90.0","DZIAŁALNOŚĆ TWÓRCZA ZWIĄZANA Z KULTURĄ I ROZRYWKĄ"]
["90.01","Działalność związana z wystawianiem przedstawień artystycznych"]
["90.01.Z","Działalność związana z wystawianiem przedstawień artystycznych"]
["90.02","Działalność wspomagająca wystawianie przedstawień artystycznych"]
["90.02.Z","Działalność wspomagająca wystawianie przedstawień artystycznych"]
["90.03","Artystyczna i literacka działalność twórcza"]
["90.03.Z","Artystyczna i literacka działalność twórcza"]
["90.04","Działalność obiektów kulturalnych"]
["90.04.Z","Działalność obiektów kulturalnych"]
["91.0","DZIAŁALNOŚĆ BIBLIOTEK, ARCHIWÓW, MUZEÓW ORAZ POZOSTAŁA DZIAŁALNOŚĆ ZWIĄZANA Z KULTURĄ"]
["91.01","Działalność bibliotek i archiwów"]
["91.01.A","Działalność bibliotek"]
["91.01.B","Działalność archiwów"]
["91.02","Działalność muzeów"]
["91.02.Z","Działalność muzeów"]
["91.03","Działalność historycznych miejsc i budynków oraz podobnych atrakcji turystycznych"]
["91.03.Z","Działalność historycznych miejsc i budynków oraz podobnych atrakcji turystycznych"]
["91.04","Działalność ogrodów botanicznych i zoologicznych oraz obszarów i obiektów ochrony przyrody"]
["91.04.Z","Działalność ogrodów botanicznych i zoologicznych oraz obszarów i obiektów ochrony przyrody"]
["92.0","DZIAŁALNOŚĆ ZWIĄZANA Z GRAMI LOSOWYMI I ZAKŁADAMI WZAJEMNYMI"]
["92.00","DZIAŁALNOŚĆ ZWIĄZANA Z GRAMI LOSOWYMI I ZAKŁADAMI WZAJEMNYMI"]
["92.00.Z","DZIAŁALNOŚĆ ZWIĄZANA Z GRAMI LOSOWYMI I ZAKŁADAMI WZAJEMNYMI"]
["93.1","Działalność związana ze sportem"]
["93.11","Działalność obiektów sportowych"]
["93.11.Z","Działalność obiektów sportowych"]
["93.12","Działalność klubów sportowych"]
["93.12.Z","Działalność klubów sportowych"]
["93.13","Działalność obiektów służących poprawie kondycji fizycznej"]
["93.13.Z","Działalność obiektów służących poprawie kondycji fizycznej"]
["93.19","Pozostała działalność związana ze sportem"]
["93.19.Z","Pozostała działalność związana ze sportem"]
["93.2","Działalność rozrywkowa i rekreacyjna"]
["93.21","Działalność wesołych miasteczek i parków rozrywki"]
["93.21.Z","Działalność wesołych miasteczek i parków rozrywki"]
["93.29","Pozostała działalność rozrywkowa i rekreacyjna"]
["93.29.Z","Pozostała działalność rozrywkowa i rekreacyjna"]
["94.1","Działalność organizacji komercyjnych, pracodawców oraz organizacji profesjonalnych"]
["94.11","Działalność organizacji komercyjnych i pracodawców"]
["94.11.Z","Działalność organizacji komercyjnych i pracodawców"]
["94.12","Działalność organizacji profesjonalnych"]
["94.12.Z","Działalność organizacji profesjonalnych"]
["94.2","Działalność związków zawodowych"]
["94.20","Działalność związków zawodowych"]
["94.20.Z","Działalność związków zawodowych"]
["94.9","Działalność pozostałych organizacji członkowskich"]
["94.91","Działalność organizacji religijnych"]
["94.91.Z","Działalność organizacji religijnych"]
["94.92","Działalność organizacji politycznych"]
["94.92.Z","Działalność organizacji politycznych"]
["94.99","Działalność pozostałych organizacji członkowskich, gdzie indziej niesklasyfikowana"]
["94.99.Z","Działalność pozostałych organizacji członkowskich, gdzie indziej niesklasyfikowana"]
["95.1","Naprawa i konserwacja komputerów i sprzętu komunikacyjnego"]
["95.11","Naprawa i konserwacja komputerów i urządzeń peryferyjnych"]
["95.11.Z","Naprawa i konserwacja komputerów i urządzeń peryferyjnych"]
["95.12","Naprawa i konserwacja sprzętu (tele)komunikacyjnego"]
["95.12.Z","Naprawa i konserwacja sprzętu (tele)komunikacyjnego"]
["95.2","Naprawa i konserwacja artykułów użytku osobistego i domowego"]
["95.21","Naprawa i konserwacja elektronicznego sprzętu powszechnego użytku"]
["95.21.Z","Naprawa i konserwacja elektronicznego sprzętu powszechnego użytku"]
["95.22","Naprawa i konserwacja urządzeń gospodarstwa domowego oraz sprzętu użytku domowego i ogrodniczego"]
["95.22.Z","Naprawa i konserwacja urządzeń gospodarstwa domowego oraz sprzętu użytku domowego i ogrodniczego"]
["95.23","Naprawa obuwia i wyrobów skórzanych"]
["95.23.Z","Naprawa obuwia i wyrobów skórzanych"]
["95.24","Naprawa i konserwacja mebli i wyposażenia domowego"]
["95.24.Z","Naprawa i konserwacja mebli i wyposażenia domowego"]
["95.25","Naprawa zegarów, zegarków oraz biżuterii"]
["95.25.Z","Naprawa zegarów, zegarków oraz biżuterii"]
["95.29","Naprawa pozostałych artykułów użytku osobistego i domowego"]
["95.29.Z","Naprawa pozostałych artykułów użytku osobistego i domowego"]
["96.0","POZOSTAŁA INDYWIDUALNA DZIAŁALNOŚĆ USŁUGOWA"]
["96.01","Pranie i czyszczenie wyrobów włókienniczych i futrzarskich"]
["96.01.Z","Pranie i czyszczenie wyrobów włókienniczych i futrzarskich"]
["96.02","Fryzjerstwo i pozostałe zabiegi kosmetyczne"]
["96.02.Z","Fryzjerstwo i pozostałe zabiegi kosmetyczne"]
["96.03","Pogrzeby i działalność pokrewna"]
["96.03.Z","Pogrzeby i działalność pokrewna"]
["96.04","Działalność usługowa związana z poprawą kondycji fizycznej"]
["96.04.Z","Działalność usługowa związana z poprawą kondycji fizycznej"]
["96.09","Pozostała działalność usługowa, gdzie indziej niesklasyfikowana"]
["96.09.Z","Pozostała działalność usługowa, gdzie indziej niesklasyfikowana"]
["97.0","GOSPODARSTWA DOMOWE ZATRUDNIAJĄCE PRACOWNIKÓW"]
["97.00","GOSPODARSTWA DOMOWE ZATRUDNIAJĄCE PRACOWNIKÓW"]
["97.00.Z","GOSPODARSTWA DOMOWE ZATRUDNIAJĄCE PRACOWNIKÓW"]
["98.1","Gospodarstwa domowe produkujące wyroby na własne potrzeby"]
["98.10","Gospodarstwa domowe produkujące wyroby na własne potrzeby"]
["98.10.Z","Gospodarstwa domowe produkujące wyroby na własne potrzeby"]
["98.2","Gospodarstwa domowe świadczące usługi na własne potrzeby"]
["98.20","Gospodarstwa domowe świadczące usługi na własne potrzeby"]
["98.20.Z","Gospodarstwa domowe świadczące usługi na własne potrzeby"]
["99.0","ORGANIZACJE I ZESPOŁY EKSTERYTORIALNE"]
["99.00","ORGANIZACJE I ZESPOŁY EKSTERYTORIALNE"]
["99.00.Z","ORGANIZACJE I ZESPOŁY EKSTERYTORIALNE"]
["Nr PKD","wpisz kod PKD zgodnie z klasyfikacją PKD 2007"]
["Nr PKD0","wpisz kod PKD zgodnie z klasyfikacją PKD 2007"]
["Nr PKD0.Z","wpisz kod PKD zgodnie z klasyfikacją PKD 2007"]

{"sheet":"TABL#2","index":1,"n_rows":397,"n_cols":1,"rows_kept":397,"cut":false,"hidden":true,"merged":[]}
["Column2"]
["WOJ.  DOLNOŚLĄSKIE"]
["    bolesławiecki"]
["    dzierżoniowski"]
["    głogowski"]
["    górowski"]
["    jaworski"]
["    jeleniogórski"]
["    kamiennogórski"]
["    kłodzki"]
["    legnicki"]
["    lubański"]
["    lubiński"]
["    lwówecki"]
["    milicki"]
["    oleśnicki"]
["    oławski"]
["    polkowicki"]
["    strzeliński"]
["    średzki"]
["    świdnicki"]
["    trzebnicki"]
["    wałbrzyski"]
["    wołowski"]
["    wrocławski"]
["    ząbkowicki"]
["    zgorzelecki"]
["    złotoryjski"]
["    Jelenia Góra"]
["    Legnica"]
["    Wałbrzych"]
["    Wrocław"]
["WOJ.  KUJAWSKO-POMORSKIE"]
["    aleksandrowski"]
["    brodnicki"]
["    bydgoski"]
["    chełmiński"]
["    golubsko-dobrzyński"]
["    grudziądzki"]
["    inowrocławski"]
["    lipnowski"]
["    mogileński"]
["    nakielski"]
["    radziejowski"]
["    rypiński"]
["    sępoleński"]
["    świecki"]
["    toruński"]
["    tucholski"]
["    wąbrzeski"]
["    włocławski"]
["    żniński"]
["    Bydgoszcz"]
["    Grudziądz"]
["    Toruń"]
["    Włocławek"]
["WOJ.  LUBELSKIE"]
["    bialski"]
["    biłgorajski"]
["    chełmski"]
["    hrubieszowski"]
["    janowski"]
["    krasnostawski"]
["    kraśnicki"]
["    lubartowski"]
["    lubelski"]
["    łęczyński"]
["    łukowski"]
["    opolski"]
["    parczewski"]
["    puławski"]
["    radzyński"]
["    rycki"]
["    świdnicki"]
["    tomaszowski"]
["    włodawski"]
["    zamojski"]
["    Biała Podlaska"]
["    Chełm"]
["    Lublin"]
["    Zamość"]
["WOJ.  LUBUSKIE"]
["    gorzowski"]
["    krośnieński"]
["    międzyrzecki"]
["    nowosolski"]
["    słubicki"]
["    strzelecko-drezdenecki"]
["    sulęciński"]
["    świebodziński"]
["    wschowski"]
["    zielonogórski"]
["    żagański"]
["    żarski"]
["    Gorzów Wielkopolski"]
["    Zielona Góra"]
["WOJ.  ŁÓDZKIE"]
["    bełchatowski"]
["    brzeziński"]
["    kutnowski"]
["    łaski"]
["    łęczycki"]
["    łowicki"]
["    łódzki wschodni"]
["    opoczyński"]
["    pabianicki"]
["    pajęczański"]
["    piotrkowski"]
["    poddębicki"]
["    radomszczański"]
["    rawski"]
["    sieradzki"]
["    skierniewicki"]
["    tomaszowski"]
["    wieluński"]
["    wieruszowski"]
["    zduńskowolski"]
["    zgierski"]
["    Łódź"]
["    Piotrków Trybunalski"]
["    Skierniewice"]
["WOJ.  MAŁOPOLSKIE"]
["    bocheński"]
["    brzeski"]
["    chrzanowski"]
["    dąbrowski"]
["    gorlicki"]
["    krakowski"]
["    limanowski"]
["    miechowski"]
["    myślenicki"]
["    nowosądecki"]
["    nowotarski"]
["    olkuski"]
["    oświęcimski"]
["    proszowicki"]
["    suski"]
["    tarnowski"]
["    tatrzański"]
["    wadowicki"]
["    wielicki"]
["    Kraków"]
["    Nowy Sącz"]
["    Tarnów"]
["WOJ.  MAZOWIECKIE"]
["    białobrzeski"]
["    ciechanowski"]
["    garwoliński"]
["    gostyniński"]
["    grodziski"]
["    grójecki"]
["    kozienicki"]
["    legionowski"]
["    lipski"]
["    łosicki"]
["    makowski"]
["    miński"]
["    mławski"]
["    nowodworski"]
["    ostrołęcki"]
["    ostrowski"]
["    otwocki"]
["    piaseczyński"]
["    płocki"]
["    płoński"]
["    pruszkowski"]
["    przasnyski"]
["    przysuski"]
["    pułtuski"]
["    radomski"]
["    siedlecki"]
["    sierpecki"]
["    sochaczewski"]
["    sokołowski"]
["    szydłowiecki"]
["    warszawski zachodni"]
["    węgrowski"]
["    wołomiński"]
["    wyszkowski"]
["    zwoleński"]
["    żuromiński"]
["    żyrardowski"]
["    Ostrołęka"]
["    Płock"]
["    Radom"]
["    Siedlce"]
["    m. st. Warszawa"]
["WOJ.  OPOLSKIE"]
["    brzeski"]
["    głubczycki"]
["    kędzierzyńsko-kozielski"]
["    kluczborski"]
["    krapkowicki"]
["    namysłowski"]
["    nyski"]
["    oleski"]
["    opolski"]
["    prudnicki"]
["    strzelecki"]
["    Opole"]
["WOJ.  PODKARPACKIE"]
["    bieszczadzki"]
["    brzozowski"]
["    dębicki"]
["    jarosławski"]
["    jasielski"]
["    kolbuszowski"]
["    krośnieński"]
["    leski"]
["    leżajski"]
["    lubaczowski"]
["    łańcucki"]
["    mielecki"]
["    niżański"]
["    przemyski"]
["    przeworski"]
["    ropczycko-sędziszowski"]
["    rzeszowski"]
["    sanocki"]
["    stalowowolski"]
["    strzyżowski"]
["    tarnobrzeski"]
["    Krosno"]
["    Przemyśl"]
["    Rzeszów"]
["    Tarnobrzeg"]
["WOJ.  PODLASKIE"]
["    augustowski"]
["    białostocki"]
["    bielski"]
["    grajewski"]
["    hajnowski"]
["    kolneński"]
["    łomżyński"]
["    moniecki"]
["    sejneński"]
["    siemiatycki"]
["    sokólski"]
["    suwalski"]
["    wysokomazowiecki"]
["    zambrowski"]
["    Białystok"]
["    Łomża"]
["    Suwałki"]
["WOJ.  POMORSKIE"]
["    bytowski"]
["    chojnicki"]
["    człuchowski"]
["    gdański"]
["    kartuski"]
["    kościerski"]
["    kwidzyński"]
["    lęborski"]
["    malborski"]
["    nowodworski"]
["    pucki"]
["    słupski"]
["    starogardzki"]
["    sztumski"]
["    tczewski"]
["    wejherowski"]
["    Gdańsk"]
["    Gdynia"]
["    Słupsk"]
["    Sopot"]
["WOJ.  ŚLĄSKIE"]
["    będziński"]
["    bielski"]
["    bieruńsko-lędziński"]
["    cieszyński"]
["    częstochowski"]
["    gliwicki"]
["    kłobucki"]
["    lubliniecki"]
["    mikołowski"]
["    myszkowski"]
["    pszczyński"]
["    raciborski"]
["    rybnicki"]
["    tarnogórski"]
["    wodzisławski"]
["    zawierciański"]
["    żywiecki"]
["    Bielsko-Biała"]
["    Bytom"]
["    Chorzów"]
["    Częstochowa"]
["    Dąbrowa Górnicza"]
["    Gliwice"]
["    Jastrzębie-Zdrój"]
["    Jaworzno"]
["    Katowice"]
["    Mysłowice"]
["    Piekary Śląskie"]
["    Ruda Śląska"]
["    Rybnik"]
["    Siemianowice Śląskie"]
["    Sosnowiec"]
["    Świętochłowice"]
["    Tychy"]
["    Zabrze"]
["    Żory"]
["WOJ.  ŚWIĘTOKRZYSKIE"]
["    buski"]
["    jędrzejowski"]
["    kazimierski"]
["    kielecki"]
["    konecki"]
["    opatowski"]
["    ostrowiecki"]
["    pińczowski"]
["    sandomierski"]
["    skarżyski"]
["    starachowicki"]
["    staszowski"]
["    włoszczowski"]
["    Kielce"]
["WOJ.  WARMIŃSKO-MAZURSKIE"]
["    bartoszycki"]
["    braniewski"]
["    działdowski"]
["    elbląski"]
["    ełcki"]
["    giżycki"]
["    gołdapski"]
["    iławski"]
["    kętrzyński"]
["    lidzbarski"]
["    mrągowski"]
["    nidzicki"]
["    nowomiejski"]
["    olecki"]
["    olsztyński"]
["    ostródzki"]
["    piski"]
["    szczycieński"]
["    węgorzewski"]
["    Elbląg"]
["    Olsztyn"]
["WOJ.  WIELKOPOLSKIE"]
["    chodzieski"]
["    czarnkowsko-trzcianecki"]
["    gnieźnieński"]
["    gostyński"]
["    grodziski"]
["    jarociński"]
["    kaliski"]
["    kępiński"]
["    kolski"]
["    koniński"]
["    kościański"]
["    krotoszyński"]
["    leszczyński"]
["    międzychodzki"]
["    nowotomyski"]
["    obornicki"]
["    ostrowski"]
["    ostrzeszowski"]
["    pilski"]
["    pleszewski"]
["    poznański"]
["    rawicki"]
["    słupecki"]
["    szamotulski"]
["    średzki"]
["    śremski"]
["    turecki"]
["    wągrowiecki"]
["    wolsztyński"]
["    wrzesiński"]
["    złotowski"]
["    Kalisz"]
["    Konin"]
["    Leszno"]
["    Poznań"]
["WOJ.  ZACHODNIOPOMORSKIE"]
["    białogardzki"]
["    choszczeński"]
["    drawski"]
["    goleniowski"]
["    gryficki"]
["    gryfiński"]
["    kamieński"]
["    kołobrzeski"]
["    koszaliński"]
["    łobeski"]
["    myśliborski"]
["    policki"]
["    pyrzycki"]
["    sławieński"]
["    stargardzki"]
["    szczecinecki"]
["    świdwiński"]
["    wałecki"]
["    Koszalin"]
["    Szczecin"]
["    Świnoujście"]

{"sheet":"source","index":2,"n_rows":84,"n_cols":9,"rows_kept":84,"cut":false,"hidden":true,"merged":[]}
["wybierz wydarzenie"]
["Promocja przedsiębiorców (MŚP) podczas XXV Zimowych Igrzysk Olimpijskich we Włoszech (I)"]
["Promocja przedsiębiorców (MŚP) podczas XXV Zimowych Igrzysk Olimpijskich we Włoszech (II)"]
["Promocja przedsiębiorców (MŚP) podczas XXV Zimowych Igrzysk Olimpijskich we Włoszech (III)"]
[]
[]
[]
[]
[null,"Nazwa","Miejsce","Termin","Cel","Wartość","Koszty","De minimis","Źródła"]
[{"$f":"A2","v":"Promocja przedsiębiorców (MŚP) podczas XXV Zimowych Igrzysk Olimpijskich we Włoszech (I)"},"Promocja przedsiębiorców (MŚP) podczas XXV Zimowych Igrzysk Olimpijskich we Włoszech","Włochy (Mediolan i Predazzo)","10-12.02.2026 – Mediolan\n*Województwo Lubelskie zastrzega sobie prawo do zmiany wybranego przez MŚP terminy wyjazdu.","Zgodnie z Regulaminem, celem udziału przedsiębiorców w Wyjeździe jest promocja i zwiększenie rozpoznawalności lubelskich przedsiębiorców na rynkach zagranicznych i wydarzeniach międzynarodowych. Przedsiębiorcy będą osobiście promować swój potencjał podczas XXV Zimowych Igrzysk Olimpijskich we Włoszech. Ze szczególnym uwzględnieniem potencjału eksportowego lubelskich MŚP w tym produktów/usług wytwarzanych przez przedsiębiorców oraz innowacji w ramach prowadzonej przez MŚP działalności. Promocja przedsiębiorców podczas XXV Zimowych Igrzysk Olimpijskich we Włoszech (Mediolan i Predazzo).\nRamowy program*:\n1.\t30.01.2026 r. - Udział w Ślubowaniu Olimpijskiej Reprezentacji Polski na terenie PKOI w Polsce.\n2.\t6.02.2026 r. - Udział w transmisji na żywo Ceremonii Otwarcia XXV Zimowych Igrzysk Olimpijskich Mediolan-Cortina 2026 w Polsce.\n3.\tUdział w promocji lubelskich MŚP we Włoszech:\n•\t10-12.02.2026 – Mediolan\n4.\t22.02.2026 r. - Udział w transmisji na żywo Ceremonii Zamknięcia XXV Zimowych Igrzysk Olimpijskich Mediolan-Cortina 2026 w Polsce.",15000,"1) koszty transportu (przelot/przejazd),\n2) koszty ubezpieczenia osobowego obejmujące m.in. ubezpieczenie od następstw nieszczęśliwych wypadków i ubezpieczenie zdrowotne,\n3) koszty zakwaterowania, \n4) koszty transferów (przejazdów) lokalnych (w Polsce i we Włoszech),",{"$f":"F10","v":15000},"„Marketing Gospodarczy Województwa Lubelskiego III” wspófinansowany ze środków Europejskiego Funduszu Rozwoju Regionalnego w ramach Programu Fundusze Europejskie dla Lubelskiego 2021-2027, Priorytet II Transformacja gospodarcza i cyfrowa regionu, Działanie 2.7 Lubelskie MŚP na rynkach zagranicznych"]
[{"$f":"A3","v":"Promocja przedsiębiorców (MŚP) podczas XXV Zimowych Igrzysk Olimpijskich we Włoszech (II)"},{"$f":"B10","v":"Promocja przedsiębiorców (MŚP) podczas XXV Zimowych Igrzysk Olimpijskich we Włoszech"},"Włochy (Mediolan i Predazzo)","14-16.02.2026 – Predazzo\n*Województwo Lubelskie zastrzega sobie prawo do zmiany wybranego przez MŚP terminy wyjazdu.","Zgodnie z Regulaminem, celem udziału przedsiębiorców w Wyjeździe jest promocja i zwiększenie rozpoznawalności lubelskich przedsiębiorców na rynkach zagranicznych i wydarzeniach międzynarodowych. Przedsiębiorcy będą osobiście promować swój potencjał podczas XXV Zimowych Igrzysk Olimpijskich we Włoszech. Ze szczególnym uwzględnieniem potencjału eksportowego lubelskich MŚP w tym produktów/usług wytwarzanych przez przedsiębiorców oraz innowacji w ramach prowadzonej przez MŚP działalności. Promocja przedsiębiorców podczas XXV Zimowych Igrzysk Olimpijskich we Włoszech (Mediolan i Predazzo).\nRamowy program*:\n1.\t30.01.2026 r. - Udział w Ślubowaniu Olimpijskiej Reprezentacji Polski na terenie PKOI w Polsce.\n2.\t6.02.2026 r. - Udział w transmisji na żywo Ceremonii Otwarcia XXV Zimowych Igrzysk Olimpijskich Mediolan-Cortina 2026 w Polsce.\n3.\tUdział w promocji lubelskich MŚP we Włoszech:\n•\t14-16.02.2026 – Predazzo\n4.\t22.02.2026 r. - Udział w transmisji na żywo Ceremonii Zamknięcia XXV Zimowych Igrzysk Olimpijskich Mediolan-Cortina 2026 w Polsce.",{"$f":"F10","v":15000},"1) koszty transportu (przelot/przejazd),\n2) koszty ubezpieczenia osobowego obejmujące m.in. ubezpieczenie od następstw nieszczęśliwych wypadków i ubezpieczenie zdrowotne,\n3) koszty zakwaterowania, \n4) koszty transferów (przejazdów) lokalnych (w Polsce i we Włoszech),",15000,"„Marketing Gospodarczy Województwa Lubelskiego III” wspófinansowany ze środków Europejskiego Funduszu Rozwoju Regionalnego w ramach Programu Fundusze Europejskie dla Lubelskiego 2021-2027, Priorytet II Transformacja gospodarcza i cyfrowa regionu, Działanie 2.7 Lubelskie MŚP na rynkach zagranicznych"]
[{"$f":"A4","v":"Promocja przedsiębiorców (MŚP) podczas XXV Zimowych Igrzysk Olimpijskich we Włoszech (III)"},{"$f":"B11","v":"Promocja przedsiębiorców (MŚP) podczas XXV Zimowych Igrzysk Olimpijskich we Włoszech"},{"$f":"C11","v":"Włochy (Mediolan i Predazzo)"},"16-18.02.2026- Predazzo\n*Województwo Lubelskie zastrzega sobie prawo do zmiany wybranego przez MŚP terminy wyjazdu.","Zgodnie z Regulaminem, celem udziału przedsiębiorców w Wyjeździe jest promocja i zwiększenie rozpoznawalności lubelskich przedsiębiorców na rynkach zagranicznych i wydarzeniach międzynarodowych. Przedsiębiorcy będą osobiście promować swój potencjał  podczas XXV Zimowych Igrzysk Olimpijskich we Włoszech. Ze szczególnym uwzględnieniem potencjału eksportowego lubelskich MŚP w tym produktów/usług wytwarzanych przez przedsiębiorców oraz innowacji w ramach prowadzonej przez MŚP działalności. Promocja przedsiębiorców podczas XXV Zimowych Igrzysk Olimpijskich we Włoszech (Mediolan i Predazzo).\nRamowy program*:\n1.\t30.01.2026 r. - Udział w Ślubowaniu Olimpijskiej Reprezentacji Polski na terenie PKOI w Polsce.\n2.\t6.02.2026 r. - Udział w transmisji na żywo Ceremonii Otwarcia XXV Zimowych Igrzysk Olimpijskich Mediolan-Cortina 2026 w Polsce.\n3.\tUdział w promocji lubelskich MŚP we Włoszech:\n•\t16-18.02.2026 - Predazzo\n4.\t22.02.2026 r. - Udział w transmisji na żywo Ceremonii Zamknięcia XXV Zimowych Igrzysk Olimpijskich Mediolan-Cortina 2026 w Polsce.",15000,"1) koszty transportu (przelot/przejazd),\n2) koszty ubezpieczenia osobowego obejmujące m.in. ubezpieczenie od następstw nieszczęśliwych wypadków i ubezpieczenie zdrowotne,\n3) koszty zakwaterowania, \n4) koszty transferów (przejazdów) lokalnych (w Polsce i we Włoszech),",15000,"„Marketing Gospodarczy Województwa Lubelskiego III” wspófinansowany ze środków Europejskiego Funduszu Rozwoju Regionalnego w ramach Programu Fundusze Europejskie dla Lubelskiego 2021-2027, Priorytet II Transformacja gospodarcza i cyfrowa regionu, Działanie 2.7 Lubelskie MŚP na rynkach zagranicznych"]
[{"$f":"A5","v":0}]
[{"$f":"A6","v":0}]
[{"$f":"A1","v":"wybierz wydarzenie"}]
[{"$f":"A7","v":0}]
[{"$f":"A8","v":0}]
[]
["wybierz formę prawną"]
["jednoosobowa działalność gospodarcza"]
["spółka cywilna"]
["spółka jawna"]
["spółka partnerska"]
["spółka komandytowa"]
["spółka komandytowo-akcyjna"]
["spółka z ograniczoną odpowiedzialnością"]
["spółka akcyjna"]
["inne (wpisz formę prawną)"]
[]
["wybierz województwo"]
["dolnośląskie"]
["kujawsko-pomorskie"]
["lubelskie"]
["lubuskie"]
["łódzkie"]
["małopolskie"]
["mazowieckie"]
["opolskie"]
["podkarpackie"]
["podlaskie"]
["pomorskie"]
["śląskie"]
["świętokrzyskie"]
["warmińsko-mazurskie"]
["wielkopolskie"]
["zachodniopomorskie"]
[]
["wybierz wielkość przedsiębiorstwa"]
["mikroprzedsiębiorstwo"]
["małeprzedsiębiorstwo"]
["średnieprzedsiębiorstwo"]
["dużeprzedsiębiorstwo"]
[]
["wybierz"]
["TAK"]
["NIE"]
[]
["wybierz odpowiedni poziom znajomości języka"]
["Brak"]
["A1"]
["A2"]
["B1"]
["B2 i więcej"]
[]
["wybierz"]
["prezes spółki"]
["członek zarządu"]
["właściel/współwłaściciel przedsiębiorstwa"]
["Pracownik[16] MŚP"]
[]
["wybierz"]
["mikroprzedsiębiorstwo"]
["małeprzedsiębiorstwo"]
["średnieprzedsiębiorstwo"]
["dużeprzedsiębiorstwo"]
[]
["wybierz"]
["TAK"]
["NIE"]
["ND"]
[]
["wybierz"]
["nie otrzymało pomocy de minimis"]
["otrzymało pomoc de minimis zgodnie z poniższą tabelą"]

{"sheet":"Strona 1","index":3,"n_rows":56,"n_cols":4,"rows_kept":56,"cut":false,"hidden":false,"merged":[[53,0,53,8],[54,0,54,8],[55,0,55,8],[0,0,2,8],[47,3,52,8],[47,0,52,2],[28,0,29,2],[28,3,29,8],[30,3,44,8],[30,0,44,2],[45,0,46,2],[45,3,46,8],[3,0,3,8],[4,0,6,8],[7,0,7,8],[8,0,10,2],[16,3,27,8],[16,0,27,2],[11,0,12,2],[13,0,15,2],[8,3,10,8],[11,3,12,8],[13,3,15,8]]}
["WYPEŁNIJ WSZYSTKIE POLA Z CZERWONYM TŁEM"]
[]
[]
["WNIOSEK O UDZIAŁ W WYJEŹDZIE "]
["Tabelę należy uzupełnić zgodnie z informacjami zamieszczonymi w Ogłoszeniu o naborze opublikowanym na stronie www.gospodarka.lubelskie.pl"]
[]
[]
["wybierz wydarzenie"]
["Nazwa wydarzenia",null,null,{"$f":"IF(VLOOKUP(A8,source!A10:I17,2)=0,\"-----------\",VLOOKUP(A8,source!A10:I17,2))","v":"-----------"}]
[]
[]
["Miejsce (miasto/kraj)",null,null,{"$f":"IF(VLOOKUP(A8,source!A10:I17,3)=0,\"-----------\",VLOOKUP(A8,source!A10:I17,3))","v":"-----------"}]
[]
["Termin wyjazdu \n(data rozpoczęcia i zakończenia wyjazdu)",null,null,{"$f":"IF(VLOOKUP(A8,source!A10:I17,4)=0,\"-----------\",VLOOKUP(A8,source!A10:I17,4))","v":"-----------"}]
[]
[]
["Cel i opis wyjazdu",null,null,{"$f":"IF(VLOOKUP(A8,source!A10:I17,5)=0,\"-----------\",VLOOKUP(A8,source!A10:I17,5))","v":"-----------"}]
[]
[]
[]
[]
[]
[]
[]
[]
[]
[]
[]
["Wartość Wyjazdu1",null,null,{"$f":"IF(VLOOKUP(A8,source!A10:I17,6)=0,\"-----------\",VLOOKUP(A8,source!A10:I17,6))","v":"-----------"}]
[]
["Koszty kwalifikowalne2 ",null,null,{"$f":"IF(VLOOKUP(A8,source!A10:I17,7)=0,\"-----------\",VLOOKUP(A8,source!A10:I17,7))","v":"-----------"}]
[]
[]
[]
[]
[]
[]
[]
[]
[]
[]
[]
[]
[]
[]
["Wnioskowana kwota\n pomocy de minimis3",null,null,{"$f":"IF(VLOOKUP(A8,source!A10:I17,8)=0,\"-----------\",VLOOKUP(A8,source!A10:I17,8))","v":"-----------"}]
[]
["Źródła finansowania \nWyjazdu",null,null,{"$f":"IF(VLOOKUP(A8,source!A10:I17,9)=0,\"-----------\",VLOOKUP(A8,source!A10:I17,9))","v":"-----------"}]
[]
[]
[]
[]
[]
["[1] Dotyczy kosztów całego udziału w Wyjeździe, wskazanych w Ogłoszeniu."]
["[2] Dotyczy kategorii kosztów pokrywanych przez Województwo Lubelskie, określonych w Ogłoszeniu"]
["[3] Dotyczy kosztów wnioskowanych przez Uczestnika Wyjazdu, pokrywanych przez Województwo Lubelskie"]

{"sheet":"Strona 2","index":4,"n_rows":39,"n_cols":25,"rows_kept":39,"cut":false,"hidden":false,"merged":[[38,0,39,8],[34,0,35,2],[34,3,35,8],[36,0,37,2],[36,3,37,8],[0,0,2,8],[28,0,29,2],[28,3,29,8],[30,0,31,2],[30,3,31,8],[16,0,17,2],[16,3,17,8],[18,0,19,2],[18,3,19,8],[20,0,21,2],[20,3,21,8],[10,0,11,2],[10,3,11,8],[12,0,13,2],[12,3,13,8],[14,0,15,2],[32,0,33,2],[32,3,33,8],[22,0,23,2],[22,3,23,8],[24,0,25,2],[24,3,25,8],[26,0,27,2],[26,3,27,8],[14,3,15,8],[3,0,3,8],[4,0,4,8],[5,0,6,2],[5,3,6,8],[7,0,9,2],[7,3,9,8]]}
["WYPEŁNIJ WSZYSTKIE POLA Z CZERWONYM TŁEM"]
[]
[]
["WNIOSEK O UDZIAŁ W WYJEŹDZIE "]
[{"$f":"'Strona 1'!A8","v":"wybierz wydarzenie"}]
["I. ",null,null,"Informacje o MŚP"]
[]
["Pełna nazwa MŚP \n(zgodna z KRS lub CEiDG)"]
[]
[]
["Forma prawna",null,null,"wybierz formę prawną"]
[]
["Województwo",null,null,"wybierz województwo"]
[null,null,null,null,null,null,null,null,null,"wybierz powiat"]
["Powiat",null,null,"wybierz powiat",null,null,null,null,null,{"$f":"IF(D13=\"lubelskie\",'TABL#2'!$A$58:$A$81,(IF(D13=\"dolnośląskie\",'TABL#2'!$A$3:$A$32,(IF(D13=\"kujawsko-pomorskie\",'TABL#2'!$A$34:$A$56,(IF(D13=\"lubuskie\",'TABL#2'!$A$83:$A$96,(IF(D13=\"łódzkie\",'TABL#2'!$A$98:$A$121,(IF(D13=\"małopolskie\",'TABL#2'!$A$123:$A$144,(IF(D13=\"mazowieckie\",'TABL#2'!$A$146:$A$187,(IF(D13=\"opolskie\",'TABL#2'!$A$189:$A$200,(IF(D13=\"podkarpackie\",'TABL#2'!$A$202:$A$226,(IF(D13=\"podlaskie\",'TABL#2'!$A$228:$A$244,(IF(D13=\"pomorskie\",'TABL#2'!$A$246:$A$265,(IF(D13=\"śląskie\",'TABL#2'!$A$267:$A$302,(IF(D13=\"świętokrzyskie\",'TABL#2'!$A$304:$A$317,(IF(D13=\"warmińsko-mazurskie\",'TABL#2'!$A$319:$A$339,(IF(D13=\"wielkopolskie\",'TABL#2'!$A$341:$A$375,(IF(D13=\"zachodniopomorskie\",'TABL#2'!$A$377:$A$397,0)))))))))))))))))))))))))))))))","v":0},{"$f":"IF(D13=\"dolnośląskie\",'TABL#2'!$A$3:$A$32,0)","v":0},{"$f":"IF(D13=\"kujawsko-pomorskie\",'TABL#2'!$A$34:$A$56,0)","v":0},{"$f":"IF(D13=\"lubuskie\",'TABL#2'!$A$83:$A$96,0)","v":0},{"$f":"IF(D13=\"łódzkie\",'TABL#2'!$A$98:$A$121,0)","v":0},{"$f":"IF(D13=\"małopolskie\",'TABL#2'!$A$123:$A$144,0)","v":0},{"$f":"IF(D13=\"mazowieckie\",'TABL#2'!$A$146:$A$187,0)","v":0},{"$f":"IF(D13=\"opolskie\",'TABL#2'!$A$189:$A$200,0)","v":0},{"$f":"IF(D13=\"podkarpackie\",'TABL#2'!$A$202:$A$226,0)","v":0},{"$f":"IF(D13=\"podlaskie\",'TABL#2'!$A$228:$A$244,0)","v":0},{"$f":"IF(D13=\"pomorskie\",'TABL#2'!$A$246:$A$265,0)","v":0},{"$f":"IF(D13=\"śląskie\",'TABL#2'!$A$267:$A$302,0)","v":0},{"$f":"IF(D13=\"świętokrzyskie\",'TABL#2'!$A$304:$A$317,0)","v":0},{"$f":"IF(D13=\"warmińsko-mazurskie\",'TABL#2'!$A$319:$A$339,0)","v":0},{"$f":"IF(D13=\"wielkopolskie\",'TABL#2'!$A$341:$A$375,0)","v":0},{"$f":"IF(D13=\"zachodniopomorskie\",'TABL#2'!$A$377:$A$397,0)","v":0}]
[]
["Gmina"]
[]
["Miejscowość"]
[]
["Kod pocztowy"]
[]
["Ulica i nr domu/ lokalu"]
[]
["Telefon"]
[]
["E-mail"]
[]
["Strona www"]
[]
["NIP"]
[]
["REGON"]
[]
["KRS"]
[]
["Data rozpoczęcia4\ndziałalności "]
[]
["[4] Za datę rozpoczęcia działalności uznaje się datę rozpoczęcia działalności zgodnie z rejestrem CEIDG/REGON lub datę dokonania wpisu do rejestru przedsiębiorców Krajowego Rejestru Sądowego."]

{"sheet":"Strona 3","index":5,"n_rows":38,"n_cols":6,"rows_kept":38,"cut":false,"hidden":false,"merged":[[26,0,28,8],[29,1,30,1],[29,2,30,7],[35,1,35,7],[37,0,43,8],[15,2,16,3],[17,2,18,3],[15,4,16,7],[17,4,18,7],[23,1,24,1],[23,2,24,7],[12,0,13,8],[0,0,2,8],[3,0,3,8],[4,0,4,8],[9,2,10,2],[9,4,10,4]]}
["WYPEŁNIJ WSZYSTKIE POLA Z CZERWONYM TŁEM"]
[]
[]
["WNIOSEK O UDZIAŁ W WYJEŹDZIE "]
[{"$f":"'Strona 1'!A8","v":"wybierz wydarzenie"}]
[]
["1. Informacja o uzyskanej pomocy de minimis"]
["a) Czy MŚP korzystało z pomocy de minimis w ciągu minionych 3 lat?"]
[]
[null,null,"TAK",null,"NIE"]
[null,null,null,null,null,0]
[]
["b) Jeśli zaznaczono odpowiedź TAK w pkt. 1 lit. a należy wskazać wartość otrzymanej pomocy de minimis w ciągu minionych 3 lat5 :"]
[]
[]
[null,null,"PLN",null,{"$f":"IF(F11=1,\"wpisz wartość pomocy w PLN\",IF(F11=2,\"ND\",\"najpierw zaznacz odpowiedź powyżej\"))","v":"najpierw zaznacz odpowiedź powyżej"}]
[]
[null,null,"EUR",null,{"$f":"IF(F11=1,\"wpisz wartość pomocy w EUR\",IF(F11=2,\"ND\",\"najpierw zaznacz odpowiedź powyżej\"))","v":"najpierw zaznacz odpowiedź powyżej"}]
[]
[]
["2. Informacje dotyczące prowadzonej działalności "]
["a) Klasa i kod przeważającej działalności prowadzonej przez MŚP (dominująca):"]
[]
[null,"Nr PKD",{"$f":"VLOOKUP(B24,elementyKlasyfikacji!$A$2:$B$1543,2)","v":"wpisz kod PKD zgodnie z klasyfikacją PKD 2007"}]
[]
[]
["b)\tKlasa i kod działalności, w związku z którą MŚP ubiega się o pomoc de minimis \n(nie wypełniać, jeśli jest taka sama jak w pkt 2 lit. a)"]
[]
[]
[null,"Nr PKD",{"$f":"VLOOKUP(B30,elementyKlasyfikacji!$A$2:$B$1543,2)","v":"wpisz kod PKD zgodnie z klasyfikacją PKD 2007"}]
[]
[]
["3. Status przedsiębiorstwa6"]
["Przedsiębiorstwo należy zaliczyć do kategorii:"]
[]
[null,"wybierz wielkość przedsiębiorstwa"]
[]
["[5]  Okres minionych trzech 3 lat należy oceniać w sposób ciągły, uwzględniając okres 3 lat wstecz od dnia złożenia wniosku. 3 minione lata należy rozumieć w ten sposób, że jeśli na przykład pomoc de minimis była udzielona w dniu 5 stycznia 2024 r., uwzględnieniu podlegała pomoc de minimis i pomoc de minimis w rolnictwie lub rybołówstwie udzielona począwszy od 5 stycznia 2021 r.\n[6] Należy podać wielkość przedsiębiorstwa biorąc pod uwagę definicję mikroprzedsiębiorstw oraz małych i średnich przedsiębiorstw (MŚP) zgodną z załącznikiem nr I do Rozporządzenia Komisji (UE) nr 651/2014 z dnia 17 czerwca 2014 r. uznającego niektóre rodzaje pomocy za zgodne z rynkiem wewnętrznym w zastosowaniu art. 107 i 108 Traktatu (Dz. U. UE. L. Z 2014 r. Nr 187, str. 1 z późn. zm.)."]

{"sheet":"Strona 4","index":6,"n_rows":49,"n_cols":6,"rows_kept":49,"cut":false,"hidden":false,"merged":[[45,1,46,4],[45,5,46,7],[16,0,17,0],[18,0,19,0],[20,0,21,0],[22,0,23,0],[18,5,19,7],[20,1,21,4],[20,5,21,7],[22,1,23,4],[22,5,23,7],[16,1,17,4],[16,5,17,7],[18,1,19,4],[24,0,25,4],[24,5,25,7],[48,0,49,8],[32,2,33,2],[32,4,33,4],[35,0,36,0],[35,1,36,4],[35,5,36,7],[39,1,40,4],[39,0,40,0],[39,5,40,7],[41,0,42,0],[41,1,42,4],[41,5,42,7],[45,0,46,0],[43,0,44,0],[43,1,44,4],[43,5,44,7],[28,0,30,8],[37,0,38,0],[37,1,38,4],[37,5,38,7],[12,5,13,7],[12,1,13,4],[12,0,13,0],[14,0,15,0],[14,1,15,4],[14,5,15,7],[0,0,2,8],[3,0,3,8],[4,0,4,8],[9,2,10,2],[9,4,10,4]]}
["WYPEŁNIJ WSZYSTKIE POLA Z CZERWONYM TŁEM"]
[]
[]
["WNIOSEK O UDZIAŁ W WYJEŹDZIE "]
[{"$f":"'Strona 1'!A8","v":"wybierz wydarzenie"}]
[]
["4. Informacja dotyczącą działalności związanej z eksportem"]
["Czy MŚP prowadzi sprzedaż eksportową7  produktów, usług, technologii "]
[]
[null,null,"TAK",null,"NIE"]
[null,null,null,null,null,0]
[]
["Lp.","Eksportowane\nprodukty/usługi/technologie",null,null,null,"Rynek eksportowy"]
[]
["1.",{"$f":"IF(F11=1,\"wpisz nazwę produktu/usługi/technologii\",IF(F11=2,\"ND\",\"najpierw zaznacz odpowiedź powyżej\"))","v":"najpierw zaznacz odpowiedź powyżej"},null,null,null,{"$f":"IF(F11=1,\"podaj rynek eksportowy\",IF(F11=2,\"ND\",\"najpierw zaznacz powyżej\"))","v":"najpierw zaznacz powyżej"}]
[]
["2.",{"$f":"IF(F11=1,\"dodaj kolejny produkt lub wpisz ND\",IF(F11=2,\"ND\",\"najpierw zaznacz odpowiedź powyżej\"))","v":"najpierw zaznacz odpowiedź powyżej"},null,null,null,{"$f":"IF(F11=1,\"dodaj kolejny lub wpisz ND\",IF(F11=2,\"ND\",\"najpierw zaznacz powyżej\"))","v":"najpierw zaznacz powyżej"}]
[]
["3.",{"$f":"IF(F11=1,\"dodaj kolejny produkt lub wpisz ND\",IF(F11=2,\"ND\",\"najpierw zaznacz odpowiedź powyżej\"))","v":"najpierw zaznacz odpowiedź powyżej"},null,null,null,{"$f":"IF(F11=1,\"dodaj kolejny lub wpisz ND\",IF(F11=2,\"ND\",\"najpierw zaznacz powyżej\"))","v":"najpierw zaznacz powyżej"}]
[]
["4.",{"$f":"IF(F11=1,\"dodaj kolejny produkt lub wpisz ND\",IF(F11=2,\"ND\",\"najpierw zaznacz odpowiedź powyżej\"))","v":"najpierw zaznacz odpowiedź powyżej"},null,null,null,{"$f":"IF(F11=1,\"dodaj kolejny lub wpisz ND\",IF(F11=2,\"ND\",\"najpierw zaznacz powyżej\"))","v":"najpierw zaznacz powyżej"}]
[]
["5.",{"$f":"IF(F11=1,\"dodaj kolejny produkt lub wpisz ND\",IF(F11=2,\"ND\",\"najpierw zaznacz odpowiedź powyżej\"))","v":"najpierw zaznacz odpowiedź powyżej"},null,null,null,{"$f":"IF(F11=1,\"dodaj kolejny lub wpisz ND\",IF(F11=2,\"ND\",\"najpierw zaznacz powyżej\"))","v":"najpierw zaznacz powyżej"}]
[]
["Procentowy udział eksportu w całkowitej sprzedaży w ostatnim roku kalendarzowym wynosi:",null,null,null,null,{"$f":"IF(F11=1,\"podaj wartość procentową\",IF(F11=2,\"ND\",\" \"))","v":" "}]
[]
[]
["5. Informacja dotycząca posiadania przez MŚP dodatkowych uprawnień"]
["Czy MŚP posiada certyfikaty, patenty, zezwolenia, uprawnienia dotyczące działalności przedsiębiorstwa w przedmiotowym sektorze umożliwiające eksport, podjęcie współpracy \nna rynku międzynarodowym itp. (proszę uzupełnić tabelę):"]
[]
[]
[]
[null,null,"TAK",null,"NIE"]
[null,null,null,null,null,0]
[]
["Lp.","Nazwa dokumentu",null,null,null,"Opis"]
[]
["1.",{"$f":"IF(F34=1,\"wpisz nazwę dokumentu\",IF(F34=2,\"ND\",\"najpierw zaznacz odpowiedź powyżej\"))","v":"najpierw zaznacz odpowiedź powyżej"},null,null,null,{"$f":"IF(F34=1,\"opisz dokument\",IF(F34=2,\"ND\",\"najpierw zaznacz powyżej\"))","v":"najpierw zaznacz powyżej"}]
[]
["2.",{"$f":"IF(F34=1,\"dodaj kolejny dokument lub wpisz ND\",IF(F34=2,\"ND\",\"najpierw zaznacz odpowiedź powyżej\"))","v":"najpierw zaznacz odpowiedź powyżej"},null,null,null,{"$f":"IF(F34=1,\"opisz dokument lub wpisz ND\",IF(F34=2,\"ND\",\"najpierw zaznacz powyżej\"))","v":"najpierw zaznacz powyżej"}]
[]
["3.",{"$f":"IF(F34=1,\"dodaj kolejny dokument lub wpisz ND\",IF(F34=2,\"ND\",\"najpierw zaznacz odpowiedź powyżej\"))","v":"najpierw zaznacz odpowiedź powyżej"},null,null,null,{"$f":"IF(F34=1,\"opisz dokument lub wpisz ND\",IF(F34=2,\"ND\",\"najpierw zaznacz powyżej\"))","v":"najpierw zaznacz powyżej"}]
[]
["4.",{"$f":"IF(F34=1,\"dodaj kolejny dokument lub wpisz ND\",IF(F34=2,\"ND\",\"najpierw zaznacz odpowiedź powyżej\"))","v":"najpierw zaznacz odpowiedź powyżej"},null,null,null,{"$f":"IF(F34=1,\"opisz dokument lub wpisz ND\",IF(F34=2,\"ND\",\"najpierw zaznacz powyżej\"))","v":"najpierw zaznacz powyżej"}]
[]
["5.",{"$f":"IF(F34=1,\"dodaj kolejny dokument lub wpisz ND\",IF(F34=2,\"ND\",\"najpierw zaznacz odpowiedź powyżej\"))","v":"najpierw zaznacz odpowiedź powyżej"},null,null,null,{"$f":"IF(F34=1,\"opisz dokument lub wpisz ND\",IF(F34=2,\"ND\",\"najpierw zaznacz powyżej\"))","v":"najpierw zaznacz powyżej"}]
[]
[]
["[7] Przez sprzedaż eksportową rozumie się zarówno eksport jak i wewnątrzwspólnotową dostawę towarów (WDT)."]

{"sheet":"Strona 5","index":7,"n_rows":40,"n_cols":8,"rows_kept":40,"cut":false,"hidden":false,"merged":[[33,5,34,6],[35,5,36,6],[37,5,38,6],[39,5,40,6],[33,7,34,8],[35,7,36,8],[37,7,38,8],[39,7,40,8],[14,0,15,0],[12,7,13,7],[12,1,13,6],[14,1,15,6],[18,1,19,6],[16,1,17,6],[18,7,19,7],[16,7,17,7],[14,7,15,7],[12,0,13,0],[21,0,22,8],[31,0,32,0],[31,1,32,4],[31,5,32,6],[16,0,17,0],[18,0,19,0],[23,0,24,8],[26,2,27,2],[26,4,27,4],[29,0,30,0],[29,1,30,4],[29,7,30,8],[29,5,30,6],[31,7,32,8],[33,0,34,0],[35,0,36,0],[37,0,38,0],[39,0,40,0],[33,1,34,4],[35,1,36,4],[37,1,38,4],[39,1,40,4],[0,0,2,8],[3,0,3,8],[4,0,4,8],[9,2,10,2],[9,4,10,4]]}
["WYPEŁNIJ WSZYSTKIE POLA Z CZERWONYM TŁEM"]
[]
[]
["WNIOSEK O UDZIAŁ W WYJEŹDZIE "]
[{"$f":"'Strona 1'!A8","v":"wybierz wydarzenie"}]
[]
["6. Informacja dotycząca strony internetowej "]
["Czy MŚP posiada stronę internetową (proszę odpowiednio zaznaczyć i uzupełnić tabelę): "]
[]
[null,null,"TAK",null,"NIE"]
[null,null,null,null,null,0]
[]
["Lp.","Informacja o stronie internetowej",null,null,null,null,null,"TAK/NIE"]
[]
["1.",{"$f":"IF(AND(F11=1,H15=\"TAK\"),\"podaj adres strony www w języku polskim\",IF(AND(F11=1,H15=\"NIE\"),\"ND\",IF(F11=1,\"wybierz odpowiedź z prawej\",IF(F11=2,\"ND\",\"najpierw zaznacz odpowiedź powyżej\"))))","v":"najpierw zaznacz odpowiedź powyżej"},null,null,null,null,null,"wybierz"]
[]
["2.",{"$f":"IF(AND(F11=1,H17=\"TAK\"),\"podaj adres strony www w języku angielskim\",IF(AND(F11=1,H17=\"NIE\"),\"ND\",IF(F11=1,\"wybierz odpowiedź z prawej\",IF(F11=2,\"ND\",\"najpierw zaznacz odpowiedź powyżej\"))))","v":"najpierw zaznacz odpowiedź powyżej"},null,null,null,null,null,"wybierz"]
[]
["3.",{"$f":"IF(AND(F11=1,H19=\"TAK\"),\"podaj adres strony www w języku obcym innym niż angielskim\",IF(AND(F11=1,H19=\"NIE\"),\"ND\",IF(F11=1,\"wybierz odpowiedź z prawej\",IF(F11=2,\"ND\",\"najpierw zaznacz odpowiedź powyżej\"))))","v":"najpierw zaznacz odpowiedź powyżej"},null,null,null,null,null,"wybierz"]
[]
[]
["7. Informacja dotycząca udziału MŚP w targach/wystawach/misjach gospodarczych"]
[]
["Czy MŚP brało udział w targach/wystawach/misjach gospodarczych w ciągu ostatnich 2 lat kalendarzowych (proszę odpowiednio zaznaczyć i uzupełnić tabelę)."]
[]
[]
[null,null,"TAK",null,"NIE"]
[null,null,null,null,null,0]
[]
["Lp.","Nazwa wydarzenia",null,null,null,"Miejsce\n(miasto/kraj)",null,"Termin"]
[]
["1.",{"$f":"IF(F28=1,\"wpisz nazwę wydarzenia\",IF(F28=2,\"ND\",\"najpierw zaznacz odpowiedź powyżej\"))","v":"najpierw zaznacz odpowiedź powyżej"},null,null,null,{"$f":"IF(F28=1,\"miasto/kraj\",IF(F28=2,\"ND\",\" \"))","v":" "},null,{"$f":"IF(F28=1,\"podaj datę\",IF(F28=2,\"ND\",\" \"))","v":" "}]
[]
["2.",{"$f":"IF(F28=1,\"dodaj kolejne wydarzenie lub wpisz ND\",IF(F28=2,\"ND\",\"najpierw zaznacz odpowiedź powyżej\"))","v":"najpierw zaznacz odpowiedź powyżej"},null,null,null,{"$f":"IF(F28=1,\"miasto/kraj/ND\",IF(F28=2,\"ND\",\" \"))","v":" "},null,{"$f":"IF(F28=1,\"podaj datę/ND\",IF(F28=2,\"ND\",\" \"))","v":" "}]
[]
["3.",{"$f":"IF(F28=1,\"dodaj kolejne wydarzenie lub wpisz ND\",IF(F28=2,\"ND\",\"najpierw zaznacz odpowiedź powyżej\"))","v":"najpierw zaznacz odpowiedź powyżej"},null,null,null,{"$f":"IF(F28=1,\"miasto/kraj/ND\",IF(F28=2,\"ND\",\" \"))","v":" "},null,{"$f":"IF(F28=1,\"podaj datę/ND\",IF(F28=2,\"ND\",\" \"))","v":" "}]
[]
["4.",{"$f":"IF(F28=1,\"dodaj kolejne wydarzenie lub wpisz ND\",IF(F28=2,\"ND\",\"najpierw zaznacz odpowiedź powyżej\"))","v":"najpierw zaznacz odpowiedź powyżej"},null,null,null,{"$f":"IF(F28=1,\"miasto/kraj/ND\",IF(F28=2,\"ND\",\" \"))","v":" "},null,{"$f":"IF(F28=1,\"podaj datę/ND\",IF(F28=2,\"ND\",\" \"))","v":" "}]
[]
["5.",{"$f":"IF(F28=1,\"dodaj kolejne wydarzenie lub wpisz ND\",IF(F28=2,\"ND\",\"najpierw zaznacz odpowiedź powyżej\"))","v":"najpierw zaznacz odpowiedź powyżej"},null,null,null,{"$f":"IF(F28=1,\"miasto/kraj/ND\",IF(F28=2,\"ND\",\" \"))","v":" "},null,{"$f":"IF(F28=1,\"podaj datę/ND\",IF(F28=2,\"ND\",\" \"))","v":" "}]

{"sheet":"Strona 6","index":8,"n_rows":51,"n_cols":11,"rows_kept":51,"cut":false,"hidden":false,"merged":[[50,0,54,8],[0,0,2,8],[3,0,3,8],[4,0,4,8],[6,0,7,8],[30,1,33,3],[30,0,33,0],[16,0,22,0],[23,1,26,3],[23,4,26,8],[23,0,26,0],[27,1,29,5],[27,6,29,8],[27,0,29,0],[8,0,14,8],[16,1,22,3],[16,4,22,8],[42,1,49,3],[42,0,49,0],[42,4,49,8],[30,4,33,8],[34,0,37,0],[34,1,37,3],[34,4,37,8],[38,0,41,0],[38,1,41,3],[38,4,41,8]]}
["WYPEŁNIJ WSZYSTKIE POLA Z CZERWONYM TŁEM"]
[]
[]
["WNIOSEK O UDZIAŁ W WYJEŹDZIE "]
[{"$f":"'Strona 1'!A8","v":"wybierz wydarzenie"}]
[]
["8. Plan marketingowy związany z rozwojem działalności eksportowej MŚP oraz wprowadzeniem produktów/ usług/technologii na nowe rynki zagraniczne. "]
[]
["Opis produktu/usługi/technologii oraz potencjału w kontekście funkcjonowania na nowym rynku docelowym8. Proszę uzasadnić wybór rynku docelowego, z uwzględnieniem potencjalnych użytkowników, klientów oraz inwestorów na rynku docelowym, istniejącą/ potencjalną konkurencję i pozycjonowanie wnioskodawcy względem niej, potencjał wnioskodawcy do szybkiego wzrostu, możliwości pozyskania dofinansowania zewnętrznego w dalszej perspektywie na rynku docelowym, potencjał do wzrostu na rynku docelowym w zakresie wielkości przychodów."]
[]
[]
[]
[]
[]
[]
[]
["1.","Uzasadnienie wyboru nowego rynku docelowego9"]
[]
[]
[]
[]
[]
[]
["2.","Opis produktu/usługi/ technologii będącej przedmiotem eksportu na nowy rynek docelowy"]
[]
[]
[]
["3.","Wysokość przychodów netto ze sprzedaży produktów/usług/technologii, opisanych w pkt. 2, w ostatnim zamkniętym roku (wyrażona w PLN)"]
[null,null,null,null,null,null,null,null,null,{"$f":"ISBLANK(G28)","v":true},true]
[]
["4.","Opis potencjalnych użytkowników/ klientów/ inwestorów na nowym rynku docelowym"]
[]
[]
[]
["5.","Opis istniejącej/potencjalnej konkurencji na nowym rynku docelowym"]
[]
[]
[]
["6.","Pozycjonowanie MŚP względem konkurencji na nowym rynku docelowym"]
[]
[]
[]
["7.","Opis potencjału MŚP do szybkiego wzrostu:\n- w zakresie zatrudnienia\n- w zakresie wielkości przychodów\nw wyniku rozpoczęcia sprzedaży na nowym rynku docelowym"]
[]
[]
[]
[]
[]
[]
[]
["[8] Rozumiany jako nowy kierunek eksportowy, na którym MŚP nie prowadziło do tej pory sprzedaży produktów/ usług/ technologii.\n[9] Należy wskazać konkretny rynek docelowy, a następnie uzasadnić jego wybór. Jeżeli MŚP prowadzi już sprzedaż eksportową na rynku docelowym kraju Wyjazdu powinno wskazać inny, nowy rynek, na którym planuje rozpocząć sprzedaż w wyniku udziału w wyjeździe."]

{"sheet":"Strona 7","index":9,"n_rows":49,"n_cols":14,"rows_kept":49,"cut":false,"hidden":false,"merged":[[34,0,35,8],[12,4,13,8],[14,4,15,8],[16,4,17,8],[18,4,19,8],[12,0,13,3],[0,0,2,8],[3,0,3,8],[4,0,4,8],[7,0,9,8],[10,0,11,3],[10,4,11,8],[48,0,54,8],[14,0,15,3],[16,0,17,3],[18,0,19,3],[23,0,29,8],[42,0,42,8],[20,0,21,3],[30,0,31,8],[32,0,33,8],[39,2,40,2],[39,4,40,4],[22,0,22,8],[20,4,21,8],[36,0,37,8],[46,4,47,4],[46,2,47,2]]}
["WYPEŁNIJ WSZYSTKIE POLA Z CZERWONYM TŁEM"]
[]
[]
["WNIOSEK O UDZIAŁ W WYJEŹDZIE "]
[{"$f":"'Strona 1'!A8","v":"wybierz wydarzenie"}]
[]
["9. Informacja dotycząca inteligentnych specjalizacji Województwa Lubelskiego. "]
["Czy oferowane przez MŚP produkty/usługi/technologie wpisują się w obszary inteligentnych specjalizacji województwa lubelskiego, wskazane w Regionalnej Strategii Innowacji Województwa Lubelskiego do 2030 r. (RSI)10."]
[]
[]
["Inteligenten specjalizacje województwa lubelskiego",null,null,null,"Lista zagadnień szczegółowych11"]
[]
["wybierz",null,null,null,{"$f":"IF(A13=RSI!A115,\" \",IF(A13=RSI!A121,\"ND\",\"wybierz zagadnienie szczegółowe\"))","v":" "}]
[]
["wybierz",null,null,null,{"$f":"IF(A15=RSI!A115,\" \",IF(A15=RSI!A121,\"ND\",\"wybierz zagadnienie szczegółowe\"))","v":" "},null,null,null,null,{"$f":"IF(A13=RSI!A116,RSI!$A$2:$A$16,(IF(A13=RSI!A117,RSI!$A$19:$A$43,(IF(A13=RSI!A118,RSI!$A$46:$A$67,(IF(A13=RSI!A119,RSI!$A$70:$A$91,(IF(A13=RSI!A120,RSI!$A$94:$A$113,\" \")))))))))","v":" "},{"$f":"IF(A15=RSI!A116,RSI!$A$2:$A$16,(IF(A15=RSI!A117,RSI!$A$19:$A$43,(IF(A15=RSI!A118,RSI!$A$46:$A$67,(IF(A15=RSI!A119,RSI!$A$70:$A$91,(IF(A15=RSI!A120,RSI!$A$94:$A$113,\" \")))))))))","v":" "},{"$f":"IF(A17=RSI!A116,RSI!$A$2:$A$16,(IF(A17=RSI!A117,RSI!$A$19:$A$43,(IF(A17=RSI!A118,RSI!$A$46:$A$67,(IF(A17=RSI!A119,RSI!$A$70:$A$91,(IF(A17=RSI!A120,RSI!$A$94:$A$113,\" \")))))))))","v":" "},{"$f":"IF(A19=RSI!A116,RSI!$A$2:$A$16,(IF(A19=RSI!A117,RSI!$A$19:$A$43,(IF(A19=RSI!A118,RSI!$A$46:$A$67,(IF(A19=RSI!A119,RSI!$A$70:$A$91,(IF(A19=RSI!A120,RSI!$A$94:$A$113,\" \")))))))))","v":" "},{"$f":"IF(A21=RSI!A116,RSI!$A$2:$A$16,(IF(A21=RSI!A117,RSI!$A$19:$A$43,(IF(A21=RSI!A118,RSI!$A$46:$A$67,(IF(A21=RSI!A119,RSI!$A$70:$A$91,(IF(A21=RSI!A120,RSI!$A$94:$A$113,\" \")))))))))","v":" "}]
[]
["wybierz",null,null,null,{"$f":"IF(A17=RSI!A115,\" \",IF(A17=RSI!A121,\"ND\",\"wybierz zagadnienie szczegółowe\"))","v":" "}]
[]
["wybierz",null,null,null,{"$f":"IF(A19=RSI!A115,\" \",IF(A19=RSI!A121,\"ND\",\"wybierz zagadnienie szczegółowe\"))","v":" "}]
[]
["wybierz",null,null,null,{"$f":"IF(A21=RSI!A115,\" \",IF(A21=RSI!A121,\"ND\",\"wybierz zagadnienie szczegółowe\"))","v":" "}]
[]
["Uzasadnienie:"]
[]
[]
[]
[]
[]
[]
[]
["10. Informacja dotycząca prowadzenia działalności wpisującej się w wysoką technikę12"]
[]
["Czy oferowane przez MŚP produkty/usługi/technologie, będące przedmiotem działań związanych z rozwojem eksportu, wpisują się w definicję wysokiej techniki zgodnie z:"]
[]
["1) Aneksem VI Podejście dziedzinowe: klasyfikacja Przetwórstwa przemysłowego i usług według intensywności B+R (PKD 2007) "]
[]
["2) Aneksem VII Wyroby wysokiej techniki na podstawie listy OECD według Międzynarodowej Standardowej Klasyfikacji Handlu (SITC Rev. 4). Lista zatwierdzona przez Eurostat w kwietniu 2009 r. "]
[]
[]
[null,null,"TAK",null,"NIE"]
[null,null,null,null,null,0]
[{"$f":"IF(F42=0,\" \",IF(F42=2,\"ND\",\"Proszę wymienić wyroby wysokiej techniki oferowane przez MŚP(13)\"))","v":" "}]
[{"$f":"IF(F41=0,\" \",IF(F41=2,\"ND\",\"Proszę wymienić wyroby wysokiej techniki oferowane przez MŚP(13)\"))","v":" "}]
[{"$f":"IF(F42=0,\" \",IF(F42=2,\"ND\",\"Proszę wymienić wyroby wysokiej techniki oferowane przez MŚP(13)\"))","v":" "}]
["11. Czy MŚP posiada certyfikat „Marka Lubelskie”"]
[]
[null,null,"TAK",null,"NIE"]
[null,null,null,null,null,0]
["[10] Regionalna Strategia Innowacji dostępna jest tutaj: https://www.lubelskie.pl/rsi-2030-aktualizacja/ \n[11] Załącznik nr 1 Inteligentne specjalizacje województwa lubelskiego – lista zagadnień szczegółowych w ramach Regionalnej Strategii Innowacji https://www.lubelskie.pl/rsi-2030-aktualizacja/\n[12] Szczegółowe informacje dostępne są w opracowaniu Nauka i technika w 2022 roku, GUS, Warszawa, Szczecin 2024, Aneks VI i Aneks VII - https://stat.gov.pl/obszary-tematyczne/nauka-i-technika-spoleczenstwo-informacyjne/nauka-i-technika/nauka-i-technika-w-2022-roku,1,19.html\n[13] Wybierając odpowiedź “TAK”, w uzasadnieniu należy wskazać nr kodu/kodów z opracowania powyżej tj. Nauka i technika w 2022 roku, GUS, Warszawa, Szczecin 2024, Aneks VI i Aneks VII"]

{"sheet":"Strona 8","index":10,"n_rows":48,"n_cols":25,"rows_kept":48,"cut":false,"hidden":false,"merged":[[47,0,50,8],[31,0,33,6],[25,7,26,8],[27,7,28,8],[31,7,33,8],[30,0,30,2],[30,3,30,8],[34,0,37,6],[38,0,38,6],[39,0,46,8],[34,7,37,8],[38,7,38,8],[21,0,22,2],[21,3,22,8],[23,0,24,2],[23,3,24,8],[29,0,29,2],[29,3,29,8],[25,0,26,6],[27,0,28,6],[16,0,17,2],[16,3,17,8],[18,0,19,2],[18,3,19,8],[20,0,20,2],[20,3,20,8],[0,0,2,8],[3,0,3,8],[4,0,4,8],[5,0,6,2],[5,3,6,8],[13,0,14,2],[13,3,14,8],[8,0,10,8],[12,0,12,8],[15,0,15,8]]}
["WYPEŁNIJ WSZYSTKIE POLA Z CZERWONYM TŁEM"]
[]
[]
["WNIOSEK O UDZIAŁ W WYJEŹDZIE "]
[{"$f":"'Strona 1'!A8","v":"wybierz wydarzenie"}]
["II. ",null,null,"Potencjał kadrowy  MŚP"]
[]
["1. Dane osoby zgłaszanej do udziału w Wyjeździe  "]
["UWAGA!  Osoba zgłoszona do udziału w Wyjeździe podlega zmianie wyłącznie w sytuacji wskazanej w § 3 ust. 4 Umowy o udzielenie pomocy de minimis (załącznik nr 4 do Regulaminu)"]
[]
[]
[]
["Osoba zgłaszana do udziału w Wyjeździe14"]
["1. Imię i nazwisko"]
[]
["2. Znajomość języków obcych "]
["język angielski",null,null,"wybierz odpowiedni poziom znajomości języka"]
[null,null,null,null,null,null,null,null,null,"wybierz powiat"]
["język urzędowy  kraju docelowego Wyjazdu15",null,null,"wybierz odpowiedni poziom znajomości języka",null,null,null,null,null,{"$f":"IF(D17=\"lubelskie\",'TABL#2'!$A$58:$A$81,(IF(D17=\"dolnośląskie\",'TABL#2'!$A$3:$A$32,(IF(D17=\"kujawsko-pomorskie\",'TABL#2'!$A$34:$A$56,(IF(D17=\"lubuskie\",'TABL#2'!$A$83:$A$96,(IF(D17=\"łódzkie\",'TABL#2'!$A$98:$A$121,(IF(D17=\"małopolskie\",'TABL#2'!$A$123:$A$144,(IF(D17=\"mazowieckie\",'TABL#2'!$A$146:$A$187,(IF(D17=\"opolskie\",'TABL#2'!$A$189:$A$200,(IF(D17=\"podkarpackie\",'TABL#2'!$A$202:$A$226,(IF(D17=\"podlaskie\",'TABL#2'!$A$228:$A$244,(IF(D17=\"pomorskie\",'TABL#2'!$A$246:$A$265,(IF(D17=\"śląskie\",'TABL#2'!$A$267:$A$302,(IF(D17=\"świętokrzyskie\",'TABL#2'!$A$304:$A$317,(IF(D17=\"warmińsko-mazurskie\",'TABL#2'!$A$319:$A$339,(IF(D17=\"wielkopolskie\",'TABL#2'!$A$341:$A$375,(IF(D17=\"zachodniopomorskie\",'TABL#2'!$A$377:$A$397,0)))))))))))))))))))))))))))))))","v":0},{"$f":"IF(D17=\"dolnośląskie\",'TABL#2'!$A$3:$A$32,0)","v":0},{"$f":"IF(D17=\"kujawsko-pomorskie\",'TABL#2'!$A$34:$A$56,0)","v":0},{"$f":"IF(D17=\"lubuskie\",'TABL#2'!$A$83:$A$96,0)","v":0},{"$f":"IF(D17=\"łódzkie\",'TABL#2'!$A$98:$A$121,0)","v":0},{"$f":"IF(D17=\"małopolskie\",'TABL#2'!$A$123:$A$144,0)","v":0},{"$f":"IF(D17=\"mazowieckie\",'TABL#2'!$A$146:$A$187,0)","v":0},{"$f":"IF(D17=\"opolskie\",'TABL#2'!$A$189:$A$200,0)","v":0},{"$f":"IF(D17=\"podkarpackie\",'TABL#2'!$A$202:$A$226,0)","v":0},{"$f":"IF(D17=\"podlaskie\",'TABL#2'!$A$228:$A$244,0)","v":0},{"$f":"IF(D17=\"pomorskie\",'TABL#2'!$A$246:$A$265,0)","v":0},{"$f":"IF(D17=\"śląskie\",'TABL#2'!$A$267:$A$302,0)","v":0},{"$f":"IF(D17=\"świętokrzyskie\",'TABL#2'!$A$304:$A$317,0)","v":0},{"$f":"IF(D17=\"warmińsko-mazurskie\",'TABL#2'!$A$319:$A$339,0)","v":0},{"$f":"IF(D17=\"wielkopolskie\",'TABL#2'!$A$341:$A$375,0)","v":0},{"$f":"IF(D17=\"zachodniopomorskie\",'TABL#2'!$A$377:$A$397,0)","v":0}]
[]
["3. Stanowisko ",null,null,"wybierz"]
["4. Podstawa zatrudnienia pracownika"]
[]
["5. Staż pracy w zgłaszanym MŚP"]
[]
["6. Czy obecne stanowisko związane jest z marketingiem/ handlem/ bezpośrednią obsługą klientów zagranicznych",null,null,null,null,null,null,"wybierz"]
[]
["7. Czy osoba zgłaszana brała udział w wydarzeniach zagranicznych o podobnym charakterze?",null,null,null,null,null,null,"wybierz"]
[]
["8. Telefon kontaktowy "]
["9. E-mail "]
["10. MŚP deklaruje, że osoba zgłaszana do Wyjazdu posiada ważny dokument podróży uprawniający do wjazdu i pobytu na terenie kraju docelowego Wyjazdu.",null,null,null,null,null,null,"wybierz"]
[]
[]
["11. MŚP deklaruje, że zobowiąże osobę zgłaszaną do Wyjazdu do zdobycia wizy i innych dokumentów wymaganych do udziału w Wyjeździe (np. pozwoleń sanitarnych, wykonania testu na COVID-19 i innych).",null,null,null,null,null,null,"wybierz"]
[]
[]
[]
["12. Informacje dotyczące szczególnych potrzeb",null,null,null,null,null,null,"wybierz"]
[{"$f":"IF(H39=source!A55,\"w przypadku wybrania odpowiedzi tak w pkt. 12 proszę o uszczegółowienie\",IF(H39=source!A56,\"ND\",\" \"))","v":" "}]
[]
[]
[]
[]
[]
[]
[]
["[14] Jeżeli do udziału w wyjeździe zgłaszane są dwie osoby, należy powielić tabelę.\n[15] Język urzędowy kraju docelowego jest każdorazowo wskazywany w ogłoszeniu o naborze.\n[16] Przez pracownika rozumie się osobę zatrudnioną na podstawie umowy o pracę, powołania, wyboru, mianowania, spółdzielczej umowy o pracę lub z którą została zawarta umowa cywilnoprawna. "]

{"sheet":"Strona 9","index":11,"n_rows":49,"n_cols":10,"rows_kept":49,"cut":false,"hidden":false,"merged":[[25,0,27,3],[25,4,27,8],[7,0,8,8],[0,0,2,8],[3,0,3,8],[4,0,4,8],[5,0,6,2],[5,3,6,8],[9,0,13,8],[14,0,17,8],[18,0,20,8],[22,0,24,3],[22,4,24,8],[48,0,51,8],[28,4,30,8],[28,0,30,3],[35,0,36,3],[37,0,38,3],[31,0,34,3],[31,4,34,8],[39,0,40,3],[41,0,43,3],[41,4,43,8],[35,4,40,8],[46,0,46,3],[44,0,45,3],[46,4,46,8],[44,4,45,8]]}
["WYPEŁNIJ WSZYSTKIE POLA Z CZERWONYM TŁEM",null,null,null,null,null,null,null,null,{"$f":"'Strona 2'!D8","v":0}]
[null,null,null,null,null,null,null,null,null,{"$f":"'Strona 3'!B36","v":"wybierz wielkość przedsiębiorstwa"}]
[]
["WNIOSEK O UDZIAŁ W WYJEŹDZIE "]
[{"$f":"'Strona 1'!A8","v":"wybierz wydarzenie"}]
["III. ",null,null,"Oświadczenia MŚP"]
[]
["„Oświadczam, iż posiadam produkty/usługi/technologie, które mogą być przedmiotem współpracy z potencjalnym partnerem zagranicznym.”"]
[]
["„Oświadczam, że w wyniku udziału w Wyjeździe, nawiążę współpracę z partnerem zagranicznym oraz rozpocznę sprzedaż swoich produktów /usług/technologii na nowym rynku zagranicznym (na którym do tej pory nie prowadziłem sprzedaży), a następnie w terminie 9 miesięcy od zakończenia Wyjazdu złożę pisemne oświadczenie stanowiące załącznik nr 10 do Regulaminu.17"]
[]
[]
[]
[]
["Oświadczam, że informacje zawarte w powyższym wniosku oraz przedłożonych do niego załącznikach są zgodne ze stanem faktycznym i prawnym oraz jestem świadomy, odpowiedzialności karnej za podanie nieprawdy wynikającej z art. 233 Kodeksu Karnego."]
[]
[]
[]
["„Oświadczam, że zgodnie z art. 207 ustawy z dnia 27 sierpnia 2009 r. o finansach publicznych (tj. Dz. U. z 2024 r. poz. 1530) nie podlegam wykluczeniu z ubiegania się o dofinansowanie.”"]
[]
[]
["Złożony poniżej podpis dotyczy wszystkich części niniejszego oświadczenia."]
[null,null,null,null,"…...................................................................."]
[]
[]
[null,null,null,null,"…...................................................................."]
[]
[]
[null,null,null,null,"…...................................................................."]
[]
[]
["Imię i nazwisko osoby/osób upoważnionych do reprezentacji przedsiębiorstwa\n(zgodnie z KRS lub CEiDG)",null,null,null,"Podpis osoby/osób upoważnionych do reprezentacji przedsiębiorstwa\n(zgodnie z KRS lub CEiDG)"]
[]
[]
[]
[null,null,null,null,"…...................................................................."]
[]
[]
[]
[]
[]
["Stanowisko osoby/osób upoważnionych do reprezentacji przedsiębiorstwa",null,null,null,"Pieczęć firmowa"]
[]
[]
["….......................................................",null,null,null,{"$f":"TODAY()","v":"2025-12-08"}]
[]
["Miejscowość",null,null,null,"Data"]
[]
["[14] Jeżeli do udziału w wyjeździe zgłaszane są dwie osoby, należy powielić tabelę.\n[15] Język urzędowy kraju docelowego jest każdorazowo wskazywany w ogłoszeniu o naborze.\n[16] Przez pracownika rozumie się osobę zatrudnioną na podstawie umowy o pracę, powołania, wyboru, mianowania, spółdzielczej umowy o pracę lub z którą została zawarta umowa cywilnoprawna. "]

{"sheet":"Zał. 7 strona 1","index":12,"n_rows":41,"n_cols":10,"rows_kept":41,"cut":false,"hidden":false,"merged":[[24,7,28,8],[24,0,28,2],[29,0,30,2],[29,3,30,4],[29,5,30,6],[29,7,30,8],[24,3,28,4],[24,5,28,6],[18,0,18,8],[19,0,20,8],[21,0,22,3],[21,4,22,8],[23,0,23,8],[0,0,2,8],[4,0,4,8],[3,0,3,8],[5,0,14,8],[15,0,16,3],[15,4,16,8],[40,0,45,8],[31,0,32,2],[31,3,32,4],[31,5,32,6],[31,7,32,8],[33,0,33,8],[34,0,39,8]]}
["WYPEŁNIJ WSZYSTKIE POLA Z CZERWONYM TŁEM",null,null,null,null,null,null,null,null,{"$f":"'Strona 2'!D8","v":0}]
[null,null,null,null,null,null,null,null,null,{"$f":"'Strona 3'!B36","v":"wybierz wielkość przedsiębiorstwa"}]
[]
[{"$f":"'Strona 1'!A8","v":"wybierz wydarzenie"}]
["Oświadczenie o spełnianiu kryteriów MŚP"]
["W związku z ubieganiem się o przyznanie dofinansowania w ramach Programu Fundusze Europejskie dla Lubelskiego 2021-2027 Priorytet II Transformacja gospodarcza i cyfrowa regionu, Działania 2.7 Lubelskie MŚP na rynkach zagranicznych, tj. w wyjazdach na misje gospodarcze, wydarzenia targowo – wystawiennicze oraz wydarzenia związane z promocją MŚP w kraju i za granicą, organizowanych w ramach projektu „Marketing Gospodarczy Województwa Lubelskiego III”, oświadczam, że zgodnie z definicją zawartą w załączniku nr I do Rozporządzenia Komisji (UE) NR 651/2014 z dnia 17 czerwca 2014 r. uznające niektóre rodzaje pomocy za zgodne z rynkiem wewnętrznym w zastosowaniu art. 107 i 108 Traktatu (Dz. Urz. UE L 187 z 26.06.2014 z późn. zm.):"]
[]
[]
[]
[]
[]
[]
[]
[]
[]
["Przedsiębiorstwo należy zaliczyć do kategorii:",null,null,null,{"$f":"IF('Strona 3'!B36=\"wybierz wielkość przedsiębiorstwa\",\" \",'Strona 3'!B36)","v":" "}]
[]
[]
["1. MŚP1: (pełna nazwa zgodnie z dokumentem rejestrowym)"]
[{"$f":"IF('Strona 2'!D8=0,\" \",'Strona 2'!D8)","v":" "}]
[]
["2. Data rozpoczęcia działalności  \n(zgodnie z dokumentem rejestrowym)",null,null,null,{"$f":"IF('Strona 2'!D37=0,\" \",'Strona 2'!D37)","v":" "}]
[]
["3. Dane historyczne dot. statusu przedsiębiorcy"]
[null,null,null,"W okresie referencyjnym za drugi rok wstecz od ostatniego okresu referencyjnego",null,"W okresie referencyjnym   \nza jeden rok wstecz od ostatniego okresu referencyjnego",null,"W ostatnim okresie referencyjnym1"]
[]
[]
[]
[]
["okres referencyjny, którego dane dotyczą",null,null,{"$f":"\"01.\"&\"01.\"&YEAR(TODAY())-3&\" - \"&\"31.\"&\"12.\"&YEAR(TODAY())-3","v":"01.01.2022 - 31.12.2022"},null,{"$f":"\"01.\"&\"01.\"&YEAR(TODAY())-2&\" - \"&\"31.\"&\"12.\"&YEAR(TODAY())-2","v":"01.01.2023 - 31.12.2023"},null,{"$f":"\"01.\"&\"01.\"&YEAR(TODAY())-1&\" - \"&\"31.\"&\"12.\"&YEAR(TODAY())-1","v":"01.01.2024 - 31.12.2024"}]
[]
["Status MŚP",null,null,"wybierz",null,"wybierz",null,"wybierz"]
[]
["Zmiana statusu – opis (jeśli dotyczy)2 :"]
[]
[]
[]
[]
[]
[]
["[1] Jeśli projekt jest partnerski i obok MŚP występuje również partner w projekcie, \ni również on jest zobowiązany do przedstawienia Oświadczenia o spełnianiu kryteriów MŚP, wówczas sformułowania odnoszące się do MŚP należy traktować jak sformułowania odnoszące się również do partnera.\n[2] W przypadku, gdy nastąpiła zmiana statusu przedsiębiorstwa należy krótko opisać przesłanki, które spowodowały utratę bądź uzyskanie statusu mikro, małego lub średniego przedsiębiorcy, lub przedsiębiorcy innego niż MŚP. \n "]

{"sheet":"Zał. 7 strona 2","index":13,"n_rows":30,"n_cols":12,"rows_kept":30,"cut":false,"hidden":false,"merged":[[24,0,25,2],[24,3,25,4],[24,5,25,6],[24,7,25,8],[26,0,28,0],[26,1,28,2],[26,3,28,4],[26,5,28,8],[13,0,17,2],[22,0,23,2],[22,3,23,4],[22,5,23,6],[22,7,23,8],[13,3,17,4],[13,5,17,6],[13,7,17,8],[20,3,21,4],[20,5,21,6],[20,7,21,8],[11,0,12,8],[0,0,2,8],[3,0,3,8],[4,0,4,8],[29,0,33,8],[5,0,6,6],[7,0,8,6],[5,7,6,8],[7,7,8,8],[9,0,10,6],[9,7,10,8],[18,0,19,2],[18,3,19,4],[18,5,19,6],[18,7,19,8],[20,0,21,2]]}
["WYPEŁNIJ WSZYSTKIE POLA Z CZERWONYM TŁEM",null,null,null,null,null,null,null,null,{"$f":"'Strona 2'!D8","v":0}]
[null,null,null,null,null,null,null,null,null,{"$f":"'Strona 3'!B36","v":"wybierz wielkość przedsiębiorstwa"}]
[]
[{"$f":"'Strona 1'!A8","v":"wybierz wydarzenie"}]
["4. Typ przedsiębiorstwa:"]
["4a. Przedsiębiorstwo samodzielne w rozumieniu art. 3 Załącznika I do rozporządzenia Komisji (UE) 651/20143  ",null,null,null,null,null,null,"wybierz"]
[]
["4b. Przedsiębiorstwo partnerskie w rozumieniu art. 3 Załącznika I do rozporządzenia Komisji (UE) Nr 651/20144",null,null,null,null,null,null,"wybierz",null,{"$f":"IF(H6=source!A54,source!A54:A56,(IF(H6=source!A55,source!A56,source!A54:A56)))","v":"wybierz"},{"$f":"IF(OR(H8=source!A55,H10=source!A55),source!A56,source!A54:A56)","v":"wybierz"},{"$f":"AND(H6=H8,H6=H10)","v":true}]
[null,null,null,null,null,null,null,null,null,"TAK","TAK"]
["4c. Przedsiębiorstwo powiązane w rozumieniu art. 3 Załącznika I do rozporządzenia Komisji (UE) Nr 651/201455 ",null,null,null,null,null,null,"wybierz",null,"NIE","NIE"]
[]
["5. Dane do określenia statusu MŚP (w przypadku gdy przedsiębiorstwo posiada relacje powiązania i/lub partnerskie należy podać skumulowane dane) "]
[]
["Skumulowane dane do określenia kategorii MŚP",null,null,"W okresie referencyjnym za drugi rok wstecz od ostatniego okresu referencyjnego",null,"W okresie referencyjnym   \nza jeden rok wstecz od ostatniego okresu referencyjnego",null,"W ostatnim okresie referencyjnym6"]
[]
[]
[]
[]
["okres referencyjny, którego dane dotyczą",null,null,{"$f":"\"01.\"&\"01.\"&YEAR(TODAY())-3&\" - \"&\"31.\"&\"12.\"&YEAR(TODAY())-3","v":"01.01.2022 - 31.12.2022"},null,{"$f":"\"01.\"&\"01.\"&YEAR(TODAY())-2&\" - \"&\"31.\"&\"12.\"&YEAR(TODAY())-2","v":"01.01.2023 - 31.12.2023"},null,{"$f":"\"01.\"&\"01.\"&YEAR(TODAY())-1&\" - \"&\"31.\"&\"12.\"&YEAR(TODAY())-1","v":"01.01.2024 - 31.12.2024"}]
[]
["Wielkość zatrudnienia7"]
[]
["Obroty ze sprzedaży netto8 \n(w tys. EUR)"]
[]
["Suma aktywów bilansu9\n(w tys. EUR)"]
[]
["Data",{"$f":"TODAY()","v":"2025-12-08"},null,"Podpis",null,"................................................................."]
[]
[]
["Uwaga:\nDo Oświadczenia należy załączyć Załącznik 1, albo 2 i/albo 3, w zależności od tego czy przedsiębiorstwo jest samodzielne, pozostaje z innym podmiotem/podmiotami w relacji partnerstwa(przedsiębiorstwo partnerskie) czy też jest powiązane z innym podmiotem/podmiotami. Jeśli przedsiębiorstwo posiada jednocześnie przedsiębiorstwa powiązane i partnerskie, do wniosku dołącza zarówno Załącznik 2, jak i Załącznik 3."]

{"sheet":"Zał. 7 strona 3","index":14,"n_rows":53,"n_cols":13,"rows_kept":53,"cut":false,"hidden":false,"merged":[[37,0,38,7],[37,8,38,8],[49,0,51,0],[49,1,51,2],[49,3,51,4],[49,5,51,8],[39,0,48,0],[39,1,48,8],[31,0,33,7],[31,8,33,8],[34,0,36,7],[34,8,36,8],[29,0,30,7],[29,8,30,8],[52,0,53,8],[0,0,2,8],[3,0,3,8],[6,0,7,8],[8,8,9,8],[12,0,13,7],[12,8,13,8],[8,0,9,7],[10,0,11,7],[10,8,11,8],[17,0,26,7],[17,8,26,8],[27,0,28,7],[27,8,28,8],[14,0,16,7],[14,8,16,8]]}
["WYPEŁNIJ WSZYSTKIE POLA Z CZERWONYM TŁEM",null,null,null,null,null,null,null,null,{"$f":"'Zał. 7 strona 2'!H6","v":"wybierz"},"NIE"]
[null,null,null,null,null,null,null,null,null,{"$f":"'Zał. 7 strona 2'!H8","v":"wybierz"},"TAK"]
[null,null,null,null,null,null,null,null,null,{"$f":"'Zał. 7 strona 2'!H10","v":"wybierz"},"TAK"]
[{"$f":"'Strona 1'!A8","v":"wybierz wydarzenie"}]
["Załącznik 1 Do oświadczenia o spełnianiu kryteriów MŚP"]
["Informacje przedstawiane przez przedsiębiorstwo samodzielne "]
["1. Czy którakolwiek z poniższych relacji zachodzi pomiędzy przedsiębiorstwem MŚP a innym podmiotem na podstawie umowy, porozumienia lub uzgodnienia z podmiotami trzecimi?"]
[]
["1a. Posiadanie udziałów/akcji w innym podmiocie bądź też inny podmiot posiada udziały/akcje w przedsiębiorstwie MŚP? ",null,null,null,null,null,null,null,"wybierz"]
[]
["1b. Korzystanie z prawa głosu jako udziałowiec/akcjonariusz/członek w innym podmiocie bądź też inny podmiot korzysta z prawa głosu jako udziałowiec/akcjonariusz/członek w przedsiębiorstwie MŚP?",null,null,null,null,null,null,null,"wybierz",{"$f":"IF(OR(I9=source!A78,I11=source!A78),source!A54:A56,source!A80)","v":"ND"},{"$f":"IF(I15=source!A78,source!A54:A56,source!A80)","v":"ND"},{"$f":"IF(I18=source!A78,source!A54:A56,source!A80)","v":"ND"},{"$f":"IF(OR(I9=source!A78,I11=source!A78,I30=source!A78,I32=source!A78),source!A54:A56,source!A80)","v":"ND"}]
[]
["1c. Jeśli w 1a lub b) zaznaczono opcję „tak”, czy przedsiębiorstwo MŚP posiada 25% lub więcej udziałów/akcji lub głosów w innym przedsiębiorstwie?",null,null,null,null,null,null,null,"wybierz"]
[]
["1d. Jeśli w 1a lub b) zaznaczono opcję „tak”, czy inne przedsiębiorstwa lub podmioty publiczne posiadają, samodzielnie lub wspólnie z jednym lub kilkoma przedsiębiorstwami powiązanymi lub podmiotami publicznymi 25% lub więcej udziałów/akcji lub głosów w przedsiębiorstwie MŚP?",null,null,null,null,null,null,null,"wybierz"]
[]
[]
["1e. Jeśli w 1d zaznaczono opcję „tak”, czy tymi przedsiębiorstwami lub podmiotami są:\n•publiczne korporacje inwestycyjne, spółki kapitałowe podwyższonego ryzyka lub aniołów biznesu, tj. osoby fizyczne lub grupy osób prowadzące regularną działalność inwestycyjną podwyższonego ryzyka, które inwestują w firmy nienotowane na giełdzie, pod warunkiem, że cała kwota inwestycji aniołów biznesu w to samo przedsiębiorstwo nie przekroczy: 1 250 000 EUR;\n• uczelnie (szkoły wyższe) lub ośrodki badawcze nienastawione na zysk;\n• inwestorzy instytucjonalni, w tym regionalne fundusze rozwoju;10\n• niezależne władze lokalne z rocznym budżetem poniżej 10 milionów EUR oraz liczbą mieszkańców poniżej 5000.\n- i ww. podmioty posiadają 25% do 50% kapitału lub praw głosu \n(tylko pod takim warunkiem dane tego podmiotu nie są uwzględniane przy ustalaniu statusu przedsiębiorstwa).",null,null,null,null,null,null,null,"wybierz"]
[]
[]
[]
[]
[]
[]
[]
[]
[]
["1f. Jeśli przedsiębiorstwa lub podmioty, o których mowa w 1e, posiadają powyżej 50 %  czy angażują się bezpośrednio lub pośrednio w zarządzanie przedsiębiorstwem MŚP?",null,null,null,null,null,null,null,"wybierz"]
[]
["1g. Możliwość wyznaczania lub odwoływania członków organu administracyjnego, zarządzającego lub nadzorczego innego podmiotu bądź też przez inny podmiot w odniesieniu do przedsiębiorstwa MŚP?",null,null,null,null,null,null,null,"wybierz"]
[]
["1h. Dominujący wpływ na inny podmiot, wynikający np. z umowy z tym podmiotem lub zgodnie z postanowieniami statutu lub umowy spółki itp. bądź też dominujący wpływ innego podmiotu na przedsiębiorstwo MŚP, wynikający np. z umowy lub zgodnie z postanowieniami jego statutu lub \numowy spółki itp.?",null,null,null,null,null,null,null,"wybierz"]
[]
[]
["1i. Pozostawanie w związku, o którym mowa w 1a, 1 b, 1g, 1h, za pośrednictwem osoby fizycznej lub grupy osób fizycznych działających wspólnie, jeśli prowadzą one działalność lub część działalności na tym samym rynku właściwym lub rynkach pokrewnych?11",null,null,null,null,null,null,null,"wybierz"]
[]
[]
["2. Czy przedsiębiorstwo sporządza skonsolidowane sprawozdania finansowe albo jest ujęte w sprawozdaniach finansowych przedsiębiorstwa, które sporządza sprawozdania skonsolidowane?12",null,null,null,null,null,null,null,"wybierz"]
[]
["Opis*",{"$f":"IF(OR(J1=K1,J2=K2,J3=K3),\"ND\",\" \")","v":" "}]
[]
[]
[]
[]
[]
[]
[]
[]
[]
["Data",{"$f":"TODAY()","v":"2025-12-08"},null,"Podpis",null,"................................................................."]
[]
[]
["* W rubryce opis należy szczegółowo opisać w jaki sposób przedmiotowa przesłanka jest spełniona. W szczególności należy wskazać przedsiębiorstwa, z którymi MŚP pozostaje w danych relacjach i procentowy udział w kapitale lub prawach głosu, opisać zaistniałe zmiany w strukturze właścicielskiej przedsiębiorstwa, wraz z określeniem daty ww. zmiany, podstawy prawnej oraz ich charakteru. "]

{"sheet":"Zał. 7 strona 4","index":15,"n_rows":53,"n_cols":11,"rows_kept":53,"cut":false,"hidden":false,"merged":[[10,0,11,7],[10,8,11,8],[0,0,2,8],[3,0,3,8],[6,0,7,8],[8,0,9,7],[8,8,9,8],[34,0,35,8],[12,0,13,7],[12,8,13,8],[14,0,16,7],[14,8,16,8],[17,0,18,7],[17,8,18,8],[19,0,21,7],[19,8,21,8],[22,0,24,7],[22,8,24,8],[25,0,33,0],[25,1,33,8],[36,5,39,6],[36,7,39,8],[36,0,39,4],[40,0,41,4],[52,0,53,8],[40,7,41,8],[42,5,43,6],[42,7,43,8],[44,5,45,6],[44,7,45,8],[42,0,43,4],[44,0,45,4],[46,0,47,4],[48,0,49,4],[40,5,41,6],[46,5,47,6],[46,7,47,8],[48,5,49,6],[48,7,49,8],[50,0,51,7],[50,8,51,8]]}
["WYPEŁNIJ WSZYSTKIE POLA Z CZERWONYM TŁEM",null,null,null,null,null,null,null,null,{"$f":"'Zał. 7 strona 3'!J1","v":"wybierz"},"TAK"]
[null,null,null,null,null,null,null,null,null,{"$f":"'Zał. 7 strona 3'!J2","v":"wybierz"},"NIE"]
[]
[{"$f":"'Strona 1'!A8","v":"wybierz wydarzenie"}]
["Załącznik 2 Do oświadczenia o spełnianiu kryteriów MŚP"]
["Informacje przedstawiane przez przedsiębiorstwo partnerskie"]
["1. Czy któraś z poniższych relacji zachodzi pomiędzy przedsiębiorstwem a innym podmiotem na podstawie umowy, porozumienia lub uzgodnienia z podmiotami trzecimi?"]
[]
["1a. Posiadanie udziałów/akcji w innym podmiocie bądź też inny podmiot posiada udziały/akcje w przedsiębiorstwie?",null,null,null,null,null,null,null,"wybierz"]
[]
["1b. Korzystanie z prawa głosu jako udziałowiec/ akcjonariusz/ członek w innym podmiocie bądź też inny podmiot korzysta z prawa głosu jako udziałowiec/akcjonariusz/członek w przedsiębiorstwie?",null,null,null,null,null,null,null,"wybierz",{"$f":"IF(OR(I9=source!A78,I11=source!A78),source!A54:A56,source!A80)","v":"ND"},{"$f":"IF(OR(I9=source!A78,I11=source!A78,I18=source!A78,I20=source!A78),source!A54:A56,source!A80)","v":"ND"}]
[]
["1c. Jeśli w 1a lub 1b zaznaczono opcję „tak”, czy przedsiębiorstwo MŚP posiada 25% lub więcej udziałów/akcji lub głosów w innym przedsiębiorstwie?",null,null,null,null,null,null,null,"wybierz"]
[]
["1d. Jeśli w 1a lub 1b zaznaczono opcję „tak”, czy inne przedsiębiorstwa lub podmioty publiczne posiadają, samodzielnie lub wspólnie z jednym lub kilkoma przedsiębiorstwami powiązanymi lub podmiotami publicznymi 25% lub więcej udziałów/akcji lub głosów w przedsiębiorstwie? ",null,null,null,null,null,null,null,"wybierz"]
[]
[]
["1e. Możliwość wyznaczania lub odwoływania członków organu administracyjnego, zarządzającego lub nadzorczego innego podmiotu bądź też przez inny podmiot w odniesieniu do przedsiębiorstwa?",null,null,null,null,null,null,null,"wybierz"]
[]
["1f. Dominujący wpływ na inny podmiot, wynikający np. z umowy z tym podmiotem lub zgodnie z postanowieniami statutu lub umowy spółki itp. bądź też wpływ innego podmiotu na przedsiębiorstwo wynikający np. z umowy lub zgodnie z postanowieniami jego statutu lub umowy spółki itp.?",null,null,null,null,null,null,null,"wybierz"]
[]
[]
["1g. Pozostawanie w związku, o którym mowa w 1a, 1 b, 1e, 1f, za pośrednictwem osoby fizycznej lub grupy osób fizycznych działających wspólnie jeśli prowadzą one działalność lub część działalności na tym samym rynku właściwym lub rynkach pokrewnych?",null,null,null,null,null,null,null,"wybierz"]
[]
[]
["Opis*",{"$f":"IF(OR(J1=K1,J2=K2),\"ND\",\" \")","v":" "}]
[]
[]
[]
[]
[]
[]
[]
[]
["2. Dane dot. podmiotów partnerskich \n(pełne dane przedsiębiorstw wraz z danymi przedsiębiorstw powiązanych z nimi)"]
[]
["Nazwa i siedziba przedsiębiorstwa/przedsiębiorstw pozostających z MŚP w relacji przedsiębiorstw partnerskich",null,null,null,null,"Udział % MŚP w kapitale lub prawach głosu przedsiębiorstwa partnerskiego  \n(jeśli dotyczy)",null,"Udział % przedsiębiorstwa partnerskiego w kapitale lub prawach głosu MŚP\n(jeśli dotyczy) "]
[]
[]
[]
[{"$f":"IF(OR(J1=K1,J2=K2),\"ND\",1)","v":1},null,null,null,null,{"$f":"IF(OR(J1=K1,J2=K2),0,\" \")","v":" "},null,{"$f":"IF(OR(J1=K1,J2=K2),0,\" \")","v":" "}]
[]
[{"$f":"IF(OR(J1=K1,J2=K2),\"ND\",2)","v":2},null,null,null,null,{"$f":"IF(OR(J1=K1,J2=K2),0,\" \")","v":" "},null,{"$f":"IF(OR(J1=K1,J2=K2),0,\" \")","v":" "}]
[]
[{"$f":"IF(OR(J1=K1,J2=K2),\"ND\",3)","v":3},null,null,null,null,{"$f":"IF(OR(J1=K1,J2=K2),0,\" \")","v":" "},null,{"$f":"IF(OR(J1=K1,J2=K2),0,\" \")","v":" "}]
[]
[{"$f":"IF(OR(J1=K1,J2=K2),\"ND\",4)","v":4},null,null,null,null,{"$f":"IF(OR(J1=K1,J2=K2),0,\" \")","v":" "},null,{"$f":"IF(OR(J1=K1,J2=K2),0,\" \")","v":" "}]
[]
[{"$f":"IF(OR(J1=K1,J2=K2),\"ND\",5)","v":5},null,null,null,null,{"$f":"IF(OR(J1=K1,J2=K2),0,\" \")","v":" "},null,{"$f":"IF(OR(J1=K1,J2=K2),0,\" \")","v":" "}]
[]
["Czy przedsiębiorstwo sporządza skonsolidowane sprawozdania finansowe albo jest ujęte w sprawozdaniach finansowych przedsiębiorstwa, które sporządza sprawozdania skonsolidowane?13",null,null,null,null,null,null,null,"wybierz"]
[]
["* W rubryce opis należy szczegółowo opisać w jaki sposób przedmiotowa przesłanka jest spełniona. W szczególności należy wskazać przedsiębiorstwa, z którymi MŚP pozostaje w danych relacjach i procentowy udział w kapitale lub prawach głosu, opisać zaistniałe zmiany w strukturze właścicielskiej przedsiębiorstwa, wraz z określeniem daty ww. zmiany, podstawy prawnej oraz ich charakteru. "]

{"sheet":"Zał. 7 strona 5","index":16,"n_rows":34,"n_cols":19,"rows_kept":34,"cut":false,"hidden":false,"merged":[[20,0,21,5],[20,6,21,6],[20,7,21,7],[20,8,21,8],[12,8,13,8],[12,0,13,5],[18,0,19,5],[18,6,19,14],[16,0,17,5],[16,6,17,6],[16,7,17,7],[16,8,17,8],[16,9,17,9],[16,10,17,10],[20,14,21,14],[16,11,17,11],[8,6,10,6],[0,0,2,14],[3,0,3,14],[4,0,4,14],[5,6,7,8],[8,7,10,7],[5,12,7,14],[8,12,10,12],[8,13,10,13],[8,14,10,14],[8,8,10,8],[12,13,13,13],[12,14,13,14],[5,0,10,5],[11,0,11,5],[14,0,15,5],[14,6,15,14],[12,6,13,6],[12,7,13,7],[12,9,13,9],[12,10,13,10],[12,11,13,11],[12,12,13,12],[5,9,7,11],[8,9,10,9],[8,10,10,10],[8,11,10,11],[16,12,17,12],[16,13,17,13],[16,14,17,14],[20,9,21,9],[20,10,21,10],[20,11,21,11],[20,12,21,12],[20,13,21,13],[22,0,23,5],[22,6,23,14],[24,0,25,5],[24,6,25,6],[24,7,25,7],[24,8,25,8],[24,9,25,9],[24,10,25,10],[24,11,25,11],[24,12,25,12],[24,13,25,13],[24,14,25,14],[26,0,27,5],[26,6,27,14],[28,0,29,5],[28,6,29,6],[28,7,29,7],[28,8,29,8],[28,9,29,9],[28,10,29,10],[28,11,29,11],[28,12,29,12],[28,13,29,13],[28,14,29,14],[30,0,31,5],[30,6,31,14],[33,9,35,10],[33,11,35,14],[33,0,35,5],[32,0,32,5],[33,6,35,6],[33,7,35,8]]}
["WYPEŁNIJ WSZYSTKIE POLA Z CZERWONYM TŁEM"]
[]
[]
[{"$f":"'Strona 1'!A8","v":"wybierz wydarzenie"}]
["4.  Dane stosowane do określenia kategorii MŚP pozostającego w relacji przedsiębiorstw partnerskich."]
["Dane stosowane do określenia kategorii MŚP przedsiębiorcy",null,null,null,null,null,{"$f":"\"W okresie referencyjnym za drugi rok wstecz od ostatniego okresu referencyjnego\n\"&\" \"&'Zał. 7 strona 1'!D30","v":"W okresie referencyjnym za drugi rok wstecz od ostatniego okresu referencyjnego\n 01.01.2022 - 31.12.2022"},null,null,{"$f":"\"W okresie referencyjnym za jeden rok wstecz od ostatniego okresu  referencyjnego\"&\"\n \"&'Zał. 7 strona 1'!F30","v":"W okresie referencyjnym za jeden rok wstecz od ostatniego okresu  referencyjnego\n 01.01.2023 - 31.12.2023"},null,null,{"$f":"\"W ostatnim okresie referencyjnym [14]\"&\" \"&'Zał. 7 strona 1'!H30","v":"W ostatnim okresie referencyjnym [14] 01.01.2024 - 31.12.2024"}]
[]
[]
[null,null,null,null,null,null,"Wielkość zatrudnienia\n15","Obroty ze sprzedaży netto16\n","Suma aktywów bilansu17 ","Wielkość zatrudnienia","Obroty ze sprzedaży netto\n","Suma aktywów bilansu ","Wielkość zatrudnienia","Obroty ze sprzedaży netto\n","Suma aktywów bilansu"]
[]
[]
["Dane MŚP ",null,null,null,null,null,{"$f":"IF(OR(P12=Q12,R12=S12),0,\" \")","v":" "},{"$f":"IF(OR(P12=Q12,R12=S12),0,\" \")","v":" "},{"$f":"IF(OR(P12=Q12,R12=S12),0,\" \")","v":" "},{"$f":"IF(OR(P12=Q12,R12=S12),0,\" \")","v":" "},{"$f":"IF(OR(P12=Q12,R12=S12),0,\" \")","v":" "},{"$f":"IF(OR(P12=Q12,R12=S12),0,\" \")","v":" "},{"$f":"IF(OR(P12=Q12,R12=S12),0,\" \")","v":" "},{"$f":"IF(OR(P12=Q12,R12=S12),0,\" \")","v":" "},{"$f":"IF(OR(P12=Q12,R12=S12),0,\" \")","v":" "},{"$f":"'Zał. 7 strona 2'!H6","v":"wybierz"},"TAK",{"$f":"'Zał. 7 strona 2'!H8","v":"wybierz"},"NIE"]
["Dane przedsiębiorstwa partnerskiego nr 1 (pełne dane przedsiębiorstwa wraz z danymi przedsiębiorstw powiązanych z nim)",null,null,null,null,null,{"$f":"IF(OR(P12=Q12,R12=S12),0,IF(P13=P14,0,\" \"))","v":" "},{"$f":"IF(OR(P12=Q12,R12=S12),0,IF(P13=P14,0,\" \"))","v":" "},{"$f":"IF(OR(P12=Q12,R12=S12),0,IF(P13=P14,0,\" \"))","v":" "},{"$f":"IF(OR(P12=Q12,R12=S12),0,IF(P13=P14,0,\" \"))","v":" "},{"$f":"IF(OR(P12=Q12,R12=S12),0,IF(P13=P14,0,\" \"))","v":" "},{"$f":"IF(OR(P12=Q12,R12=S12),0,IF(P13=P14,0,\" \"))","v":" "},{"$f":"IF(OR(P12=Q12,R12=S12),0,IF(P13=P14,0,\" \"))","v":" "},{"$f":"IF(OR(P12=Q12,R12=S12),0,IF(P13=P14,0,\" \"))","v":" "},{"$f":"IF(OR(P12=Q12,R12=S12),0,IF(P13=P14,0,\" \"))","v":" "},{"$f":"'Zał. 7 strona 4'!A41","v":1}]
[null,null,null,null,null,null,null,null,null,null,null,null,null,null,null,"ND"]
["Informacje o podmiotach powiązanych z przedsiębiorstwem partnerskim nr 1\n(nazwa, REGON, opis sposobu powiązania)",null,null,null,null,null,{"$f":"IF(OR(P12=Q12,R12=S12),\"ND\",IF(P13=P14,\"ND\",\" \"))","v":" "}]
[null,null,null,null,null,null,null,null,null,null,null,null,null,null,null,{"$f":"IF(OR(P12=Q12,R12=S12),0,IF(P13=P14,0,\" \"))","v":" "}]
["Dane przedsiębiorstwa partnerskiego nr 2 (pełne dane przedsiębiorstwa wraz z danymi przedsiębiorstw powiązanych z nim)",null,null,null,null,null,{"$f":"IF(OR(P12=Q12,R12=S12),0,IF(P17=P18,0,\" \"))","v":" "},{"$f":"IF(OR(P12=Q12,R12=S12),0,IF(P17=P18,0,\" \"))","v":" "},{"$f":"IF(OR(P12=Q12,R12=S12),0,IF(P17=P18,0,\" \"))","v":" "},{"$f":"IF(OR(P12=Q12,R12=S12),0,IF(P17=P18,0,\" \"))","v":" "},{"$f":"IF(OR(P12=Q12,R12=S12),0,IF(P17=P18,0,\" \"))","v":" "},{"$f":"IF(OR(P12=Q12,R12=S12),0,IF(P17=P18,0,\" \"))","v":" "},{"$f":"IF(OR(P12=Q12,R12=S12),0,IF(P17=P18,0,\" \"))","v":" "},{"$f":"IF(OR(P12=Q12,R12=S12),0,IF(P17=P18,0,\" \"))","v":" "},{"$f":"IF(OR(P12=Q12,R12=S12),0,IF(P17=P18,0,\" \"))","v":" "},{"$f":"'Zał. 7 strona 4'!A43","v":2}]
[null,null,null,null,null,null,null,null,null,null,null,null,null,null,null,"ND"]
["Informacje o podmiotach powiązanych z przedsiębiorstwem partnerskim nr 2\n(nazwa, REGON, opis sposobu powiązania)",null,null,null,null,null,{"$f":"IF(OR(P12=Q12,R12=S12),\"ND\",IF(P17=P18,\"ND\",\" \"))","v":" "}]
[]
["Dane przedsiębiorstwa partnerskiego nr 3 (pełne dane przedsiębiorstwa wraz z danymi przedsiębiorstw powiązanych z nim)",null,null,null,null,null,{"$f":"IF(OR(P12=Q12,R12=S12),0,IF(P21=P22,0,\" \"))","v":" "},{"$f":"IF(OR(P12=Q12,R12=S12),0,IF(P21=P22,0,\" \"))","v":" "},{"$f":"IF(OR(P12=Q12,R12=S12),0,IF(P21=P22,0,\" \"))","v":" "},{"$f":"IF(OR(P12=Q12,R12=S12),0,IF(P21=P22,0,\" \"))","v":" "},{"$f":"IF(OR(P12=Q12,R12=S12),0,IF(P21=P22,0,\" \"))","v":" "},{"$f":"IF(OR(P12=Q12,R12=S12),0,IF(P21=P22,0,\" \"))","v":" "},{"$f":"IF(OR(P12=Q12,R12=S12),0,IF(P21=P22,0,\" \"))","v":" "},{"$f":"IF(OR(P12=Q12,R12=S12),0,IF(P21=P22,0,\" \"))","v":" "},{"$f":"IF(OR(P12=Q12,R12=S12),0,IF(P21=P22,0,\" \"))","v":" "},{"$f":"'Zał. 7 strona 4'!A45","v":3}]
[null,null,null,null,null,null,null,null,null,null,null,null,null,null,null,"ND"]
["Informacje o podmiotach powiązanych z przedsiębiorstwem partnerskim nr 3\n(nazwa, REGON, opis sposobu powiązania)",null,null,null,null,null,{"$f":"IF(OR(P12=Q12,R12=S12),\"ND\",IF(P21=P22,\"ND\",\" \"))","v":" "}]
[]
["Dane przedsiębiorstwa partnerskiego nr 4 (pełne dane przedsiębiorstwa wraz z danymi przedsiębiorstw powiązanych z nim)",null,null,null,null,null,{"$f":"IF(OR(P12=Q12,R12=S12),0,IF(P25=P26,0,\" \"))","v":" "},{"$f":"IF(OR(P12=Q12,R12=S12),0,IF(P25=P26,0,\" \"))","v":" "},{"$f":"IF(OR(P12=Q12,R12=S12),0,IF(P25=P26,0,\" \"))","v":" "},{"$f":"IF(OR(P12=Q12,R12=S12),0,IF(P25=P26,0,\" \"))","v":" "},{"$f":"IF(OR(P12=Q12,R12=S12),0,IF(P25=P26,0,\" \"))","v":" "},{"$f":"IF(OR(P12=Q12,R12=S12),0,IF(P25=P26,0,\" \"))","v":" "},{"$f":"IF(OR(P12=Q12,R12=S12),0,IF(P25=P26,0,\" \"))","v":" "},{"$f":"IF(OR(P12=Q12,R12=S12),0,IF(P25=P26,0,\" \"))","v":" "},{"$f":"IF(OR(P12=Q12,R12=S12),0,IF(P25=P26,0,\" \"))","v":" "},{"$f":"'Zał. 7 strona 4'!A47","v":4}]
[null,null,null,null,null,null,null,null,null,null,null,null,null,null,null,"ND"]
["Informacje o podmiotach powiązanych z przedsiębiorstwem partnerskim nr 4\n(nazwa, REGON, opis sposobu powiązania)",null,null,null,null,null,{"$f":"IF(OR(P12=Q12,R12=S12),\"ND\",IF(P25=P26,\"ND\",\" \"))","v":" "}]
[]
["Dane przedsiębiorstwa partnerskiego nr 5 (pełne dane przedsiębiorstwa wraz z danymi przedsiębiorstw powiązanych z nim)",null,null,null,null,null,{"$f":"IF(OR(P12=Q12,R12=S12),0,IF(P29=P30,0,\" \"))","v":" "},{"$f":"IF(OR(P12=Q12,R12=S12),0,IF(P29=P30,0,\" \"))","v":" "},{"$f":"IF(OR(P12=Q12,R12=S12),0,IF(P29=P30,0,\" \"))","v":" "},{"$f":"IF(OR(P12=Q12,R12=S12),0,IF(P29=P30,0,\" \"))","v":" "},{"$f":"IF(OR(P12=Q12,R12=S12),0,IF(P29=P30,0,\" \"))","v":" "},{"$f":"IF(OR(P12=Q12,R12=S12),0,IF(P29=P30,0,\" \"))","v":" "},{"$f":"IF(OR(P12=Q12,R12=S12),0,IF(P29=P30,0,\" \"))","v":" "},{"$f":"IF(OR(P12=Q12,R12=S12),0,IF(P29=P30,0,\" \"))","v":" "},{"$f":"IF(OR(P12=Q12,R12=S12),0,IF(P29=P30,0,\" \"))","v":" "},{"$f":"'Zał. 7 strona 4'!A49","v":5}]
[null,null,null,null,null,null,null,null,null,null,null,null,null,null,null,"ND"]
["Informacje o podmiotach powiązanych z przedsiębiorstwem partnerskim nr 5\n(nazwa, REGON, opis sposobu powiązania)",null,null,null,null,null,{"$f":"IF(OR(P12=Q12,R12=S12),\"ND\",IF(P29=P30,\"ND\",\" \"))","v":" "}]
[]
["Dane wszystkich przedsiębiorstw partnerskich proporcjonalnie skumulowane18",null,null,null,null,null,{"$f":"IFERROR(G29+G25+G21+G17+G13+G12,0)","v":0},{"$f":"IFERROR(H29+H25+H21+H17+H13+H12,0)","v":0},0,0,0,0,0,0,0]
[null,null,null,null,null,null,"Data",{"$f":"TODAY()","v":"2025-12-08"},null,"Podpis",null,"................................................................."]

{"sheet":"Zał. 7 strona 6","index":17,"n_rows":48,"n_cols":11,"rows_kept":48,"cut":false,"hidden":false,"merged":[[0,0,2,8],[3,0,3,8],[25,8,30,8],[31,0,33,7],[31,8,33,8],[47,0,48,8],[6,0,14,8],[15,0,17,7],[15,8,17,8],[18,0,20,7],[18,8,20,8],[21,0,24,7],[34,0,35,7],[34,8,35,8],[36,0,46,0],[36,1,46,8],[21,8,24,8],[25,0,30,7]]}
["WYPEŁNIJ WSZYSTKIE POLA Z CZERWONYM TŁEM",null,null,null,null,null,null,null,null,{"$f":"'Zał. 7 strona 4'!J1","v":"wybierz"},"TAK"]
[null,null,null,null,null,null,null,null,null,{"$f":"'Zał. 7 strona 4'!J3","v":0},"NIE"]
[]
[{"$f":"'Strona 1'!A8","v":"wybierz wydarzenie"}]
["Załącznik 3 Do oświadczenia o spełnianiu kryteriów MŚP"]
["Informacje przedstawiane przez przedsiębiorstwo powiązane"]
["1. Czy któraś z poniższych relacji zachodzi pomiędzy przedsiębiorstwem MŚP,  a innym podmiotem na podstawie umowy, porozumienia lub uzgodnienia z podmiotami trzecimi, w tym z następującymi podmiotami:\n• publiczne korporacje inwestycyjne, spółki kapitałowe podwyższonego ryzyka lub aniołów biznesu, tj.  osoby fizyczne lub grupy osób prowadzące regularną działalność inwestycyjną podwyższonego ryzyka, które inwestują w firmy nienotowane na giełdzie, pod warunkiem, że cała kwota inwestycji aniołów biznesu w to samo przedsiębiorstwo nie przekroczy  1 250 000 EUR;\n• uczelnie (szkoły wyższe) lub ośrodki badawcze nienastawione na zysk;\n• inwestorzy instytucjonalni, w tym regionalne fundusze rozwoju;\n• niezależne władze lokalne z rocznym budżetem poniżej 10 milionów EUR oraz liczbą mieszkańców poniżej 5 000;\n• osobą fizyczną lub grupą osób fizycznych, jeśli prowadzą swoją działalność lub część działalności na tym samym rynku lub rynkach pokrewnych."]
[]
[]
[]
[]
[]
[]
[]
[]
["1a. Przedsiębiorstwo MŚP ma większość praw głosu w innym przedsiębiorstwie w roli udziałowca/ akcjonariusza lub członka albo inne przedsiębiorstwo ma większość praw głosu w roli udziałowca/ akcjonariusza lub członka w przedsiębiorstwie MŚP? ",null,null,null,null,null,null,null,"wybierz"]
[]
[]
["1b. Przedsiębiorstwo MŚP ma prawo wyznaczyć lub odwołać większość członków organu zarządzającego lub nadzorczego innego przedsiębiorstwa albo inne przedsiębiorstwo ma prawo wyznaczyć lub odwołać większość członków organu zarządzającego lub nadzorczego w przedsiębiorstwie MŚP?",null,null,null,null,null,null,null,"wybierz",{"$f":"IF(OR(I16=source!A78,I19=source!A78,I22=source!A78,I26=source!A78),source!A54:A56,source!A80)","v":"ND"}]
[]
[]
["1c. Przedsiębiorstwo MŚP ma prawo wywierać dominujący wpływ na inne przedsiębiorstwo zgodnie z umową zawartą z tym przedsiębiorstwem lub z postanowieniami w dokumencie założycielskim, statucie lub umowie spółki albo inne przedsiębiorstwo ma prawo wywierać dominujący wpływ na przedsiębiorstwo MŚP zgodnie z umową lub postanowieniami w dokumencie założycielskim, statucie lub umowie spółki?",null,null,null,null,null,null,null,"wybierz"]
[]
[]
[]
["1d. . Przedsiębiorstwo MŚP będące udziałowcem/akcjonariuszem lub członkiem innego przedsiębiorstwa kontroluje samodzielnie, zgodnie z umową  z innymi udziałowcami/akcjonariuszami lub członkami tego przedsiębiorstwa, większość praw głosu udziałowców/ akcjonariuszy lub członków w tym przedsiębiorstwie albo inne przedsiębiorstwo będące udziałowcem/akcjonariuszem lub członkiem przedsiębiorstwa MŚP kontroluje samodzielnie, zgodnie z umową z innymi udziałowcami/akcjonariuszami lub członkami tego przedsiębiorstwa, większość praw głosu udziałowców/ akcjonariuszy lub członków w tym przedsiębiorstwie?",null,null,null,null,null,null,null,"wybierz"]
[]
[]
[]
[]
[]
["1e. Pozostawanie w związku, o którym mowa w 1a, 1 b, 1c, 1d, za pośrednictwem osoby fizycznej lub grupy osób fizycznych działających wspólnie, jeśli prowadzą one działalność lub część działalności na tym samym rynku właściwym lub rynkach pokrewnych?",null,null,null,null,null,null,null,"wybierz"]
[]
[]
["1f. Jeśli przedsiębiorstwa lub podmioty, o których mowa w 1, posiadają powyżej 50 % czy angażują się bezpośrednio lub pośrednio w zarządzanie przedsiębiorstwem MŚP?",null,null,null,null,null,null,null,"wybierz"]
[]
["Opis*",{"$f":"IF(OR(J1=K1,J2=K2),\"ND\",\" \")","v":" "}]
[]
[]
[]
[]
[]
[]
[]
[]
[]
[]
["* W rubryce opis należy szczegółowo opisać w jaki sposób przedmiotowa przesłanka jest spełniona. W szczególności należy wskazać przedsiębiorstwa, z którymi MŚP pozostaje w danych relacjach i procentowy udział w kapitale lub prawach głosu, opisać zaistniałe zmiany w strukturze właścicielskiej przedsiębiorstwa, wraz z określeniem daty ww. zmiany, podstawy prawnej oraz ich charakteru. "]

{"sheet":"Zał. 7 strona 7","index":18,"n_rows":27,"n_cols":11,"rows_kept":27,"cut":false,"hidden":false,"merged":[[0,0,2,8],[3,0,3,8],[6,0,7,8],[8,0,11,4],[8,5,11,6],[8,7,11,8],[26,0,28,6],[24,0,25,6],[22,0,23,6],[22,7,23,8],[24,7,25,8],[26,7,28,8],[12,0,13,4],[12,5,13,6],[12,7,13,8],[14,0,15,4],[14,5,15,6],[14,7,15,8],[20,0,21,4],[20,5,21,6],[20,7,21,8],[16,0,17,4],[16,5,17,6],[16,7,17,8],[18,0,19,4],[18,5,19,6],[18,7,19,8]]}
["WYPEŁNIJ WSZYSTKIE POLA Z CZERWONYM TŁEM",null,null,null,null,null,null,null,null,{"$f":"'Zał. 7 strona 6'!J1","v":"wybierz"},{"$f":"'Zał. 7 strona 6'!K1","v":"TAK"}]
[null,null,null,null,null,null,null,null,null,{"$f":"'Zał. 7 strona 6'!J2","v":0},{"$f":"'Zał. 7 strona 6'!K2","v":"NIE"}]
[]
[{"$f":"'Strona 1'!A8","v":"wybierz wydarzenie"}]
["Załącznik 3 Do oświadczenia o spełnianiu kryteriów MŚP"]
["Informacje przedstawiane przez przedsiębiorstwo powiązane"]
["2. Dane dot. podmiotów powiązanych z Wnioskodawcą\n(pełne dane przedsiębiorstw wraz z danymi przedsiębiorstw powiązanych z nimi)"]
[]
["Nazwa i siedziba przedsiębiorstwa/ przedsiębiorstw pozostających z MŚP w relacji przedsiębiorstw powiązanych",null,null,null,null,"Udział % MŚP \n w kapitale lub prawach głosu przedsiębiorstwa powiązanego\n (jeśli dotyczy)",null,"Udział % przedsiębiorstwa powiązanego w kapitale lub prawach głosu MŚP\n(jeśli dotyczy)"]
[]
[]
[]
[{"$f":"IF(OR(J1=K1,J2=K2),\"ND\",1)","v":1},null,null,null,null,{"$f":"IF(OR(J1=K1,J2=K2),0,\" \")","v":" "},null,{"$f":"IF(OR(J1=K1,J2=K2),0,\" \")","v":" "}]
[]
[{"$f":"IF(OR(J1=K1,J2=K2),\"ND\",2)","v":2},null,null,null,null,{"$f":"IF(OR(J1=K1,J2=K2),0,\" \")","v":" "},null,{"$f":"IF(OR(J1=K1,J2=K2),0,\" \")","v":" "}]
[]
[{"$f":"IF(OR(J1=K1,J2=K2),\"ND\",3)","v":3},null,null,null,null,{"$f":"IF(OR(J1=K1,J2=K2),0,\" \")","v":" "},null,{"$f":"IF(OR(J1=K1,J2=K2),0,\" \")","v":" "}]
[]
[{"$f":"IF(OR(J1=K1,J2=K2),\"ND\",4)","v":4},null,null,null,null,{"$f":"IF(OR(J1=K1,J2=K2),0,\" \")","v":" "},null,{"$f":"IF(OR(J1=K1,J2=K2),0,\" \")","v":" "}]
[]
[{"$f":"IF(OR(J1=K1,J2=K2),\"ND\",5)","v":5},null,null,null,null,{"$f":"IF(OR(J1=K1,J2=K2),0,\" \")","v":" "},null,{"$f":"IF(OR(J1=K1,J2=K2),0,\" \")","v":" "}]
[]
["3a. Czy przedsiębiorstwo  jest członkiem grupy kapitałowej, łańcucha zintegrowanego pionowo lub innej grupy sporządzającej skonsolidowane sprawozdanie finansowe?19",null,null,null,null,null,null,"wybierz",null,{"$f":"IF(H23=source!A78,source!A54:A56,source!A80)","v":"ND"}]
[]
["3b. Czy sprawozdanie skonsolidowane, o którym mowa w pkt 3a, uwzględnia również dane przedsiębiorstwa MŚP? ",null,null,null,null,null,null,"wybierz"]
[]
["3c. Czy przedsiębiorstwo MŚP lub co najmniej jedno z przedsiębiorstw z nim powiązanych sporządza skonsolidowane sprawozdanie finansowe lub  jest ujęte w sprawozdaniu skonsolidowanym innego przedsiębiorstwa z nim powiązanego? ",null,null,null,null,null,null,"wybierz"]

{"sheet":"Zał. 7 strona 8","index":19,"n_rows":34,"n_cols":19,"rows_kept":34,"cut":false,"hidden":false,"merged":[[8,14,10,14],[0,0,2,14],[3,0,3,14],[4,0,4,14],[5,0,10,5],[5,6,7,8],[5,9,7,11],[5,12,7,14],[8,6,10,6],[8,7,10,7],[8,8,10,8],[8,9,10,9],[8,10,10,10],[8,11,10,11],[8,12,10,12],[8,13,10,13],[14,0,15,5],[14,6,15,14],[11,0,11,5],[12,0,13,5],[12,6,13,6],[12,7,13,7],[12,8,13,8],[12,9,13,9],[12,10,13,10],[12,11,13,11],[12,12,13,12],[12,13,13,13],[12,14,13,14],[16,11,17,11],[16,12,17,12],[16,13,17,13],[16,14,17,14],[18,0,19,5],[18,6,19,14],[16,0,17,5],[16,6,17,6],[16,7,17,7],[16,8,17,8],[16,9,17,9],[16,10,17,10],[20,11,21,11],[20,12,21,12],[20,13,21,13],[20,14,21,14],[22,0,23,5],[22,6,23,14],[20,0,21,5],[20,6,21,6],[20,7,21,7],[20,8,21,8],[20,9,21,9],[20,10,21,10],[24,11,25,11],[24,12,25,12],[24,13,25,13],[24,14,25,14],[26,0,27,5],[26,6,27,14],[24,0,25,5],[24,6,25,6],[24,7,25,7],[24,8,25,8],[24,9,25,9],[24,10,25,10],[28,11,29,11],[28,12,29,12],[28,13,29,13],[28,14,29,14],[30,0,31,5],[30,6,31,14],[28,0,29,5],[28,6,29,6],[28,7,29,7],[28,8,29,8],[28,9,29,9],[28,10,29,10],[33,6,35,6],[33,7,35,8],[33,9,35,10],[33,11,35,14],[32,0,35,5]]}
["WYPEŁNIJ WSZYSTKIE POLA Z CZERWONYM TŁEM",null,null,null,null,null,null,null,null,null,null,null,null,null,null,{"$f":"'Strona 9'!J1","v":0}]
[null,null,null,null,null,null,null,null,null,null,null,null,null,null,null,{"$f":"'Strona 9'!J2","v":"wybierz wielkość przedsiębiorstwa"}]
[]
[{"$f":"'Strona 1'!A8","v":"wybierz wydarzenie"}]
["4.  Dane stosowane do określenia kategorii MŚP będącego przedsiębiorstwem powiązanym."]
["Dane stosowane do określenia kategorii MŚP przedsiębiorcy",null,null,null,null,null,{"$f":"\"W okresie referencyjnym za drugi rok wstecz od ostatniego okresu referencyjnego\n\"&\" \"&'Zał. 7 strona 1'!D30","v":"W okresie referencyjnym za drugi rok wstecz od ostatniego okresu referencyjnego\n 01.01.2022 - 31.12.2022"},null,null,{"$f":"\"W okresie referencyjnym za jeden rok wstecz od ostatniego okresu  referencyjnego\"&\"\n \"&'Zał. 7 strona 1'!F30","v":"W okresie referencyjnym za jeden rok wstecz od ostatniego okresu  referencyjnego\n 01.01.2023 - 31.12.2023"},null,null,{"$f":"\"W ostatnim okresie referencyjnym [20]\"&\" \"&'Zał. 7 strona 1'!H30","v":"W ostatnim okresie referencyjnym [20] 01.01.2024 - 31.12.2024"}]
[]
[]
[null,null,null,null,null,null,"Wielkość zatrudnienia\n21","Obroty ze sprzedaży netto22\n","Suma aktywów bilansu23","Wielkość zatrudnienia","Obroty ze sprzedaży netto\n","Suma aktywów bilansu ","Wielkość zatrudnienia","Obroty ze sprzedaży netto\n","Suma aktywów bilansu"]
[]
[]
["Dane MŚP ",null,null,null,null,null,{"$f":"IF(OR(P12=Q12,R12=S12),0,\" \")","v":" "},{"$f":"IF(OR(P12=Q12,R12=S12),0,\" \")","v":" "},{"$f":"IF(OR(P12=Q12,R12=S12),0,\" \")","v":" "},{"$f":"IF(OR(P12=Q12,R12=S12),0,\" \")","v":" "},{"$f":"IF(OR(P12=Q12,R12=S12),0,\" \")","v":" "},{"$f":"IF(OR(P12=Q12,R12=S12),0,\" \")","v":" "},{"$f":"IF(OR(P12=Q12,R12=S12),0,\" \")","v":" "},{"$f":"IF(OR(P12=Q12,R12=S12),0,\" \")","v":" "},{"$f":"IF(OR(P12=Q12,R12=S12),0,\" \")","v":" "},{"$f":"'Zał. 7 strona 2'!H6","v":"wybierz"},"TAK",{"$f":"'Zał. 7 strona 2'!H10","v":"wybierz"},"NIE"]
["Dane przedsiębiorstwa powiązanego nr 1 (pełne dane przedsiębiorstwa wraz z danymi przedsiębiorstw powiązanych z nim i partnerskich)24",null,null,null,null,null,{"$f":"IF(OR(P12=Q12,R12=S12),0,IF(P13=P14,0,\" \"))","v":" "},{"$f":"IF(OR(P12=Q12,R12=S12),0,IF(P13=P14,0,\" \"))","v":" "},{"$f":"IF(OR(P12=Q12,R12=S12),0,IF(P13=P14,0,\" \"))","v":" "},{"$f":"IF(OR(P12=Q12,R12=S12),0,IF(P13=P14,0,\" \"))","v":" "},{"$f":"IF(OR(P12=Q12,R12=S12),0,IF(P13=P14,0,\" \"))","v":" "},{"$f":"IF(OR(P12=Q12,R12=S12),0,IF(P13=P14,0,\" \"))","v":" "},{"$f":"IF(OR(P12=Q12,R12=S12),0,IF(P13=P14,0,\" \"))","v":" "},{"$f":"IF(OR(P12=Q12,R12=S12),0,IF(P13=P14,0,\" \"))","v":" "},{"$f":"IF(OR(P12=Q12,R12=S12),0,IF(P13=P14,0,\" \"))","v":" "},{"$f":"'Zał. 7 strona 7'!A13","v":1}]
[null,null,null,null,null,null,null,null,null,null,null,null,null,null,null,"ND"]
["Informacje o podmiotach powiązanych i partnerskich z przedsiębiorstwem powiązanym nr 1 (nazwa, REGON, opis sposobu powiązania)",null,null,null,null,null,{"$f":"IF(OR(P12=Q12,R12=S12),\"ND\",IF(P13=P14,\"ND\",\" \"))","v":" "}]
[null,null,null,null,null,null,null,null,null,null,null,null,null,null,null,{"$f":"IF(OR(P12=Q12,R12=S12),0,IF(P13=P14,0,\" \"))","v":" "}]
["Dane przedsiębiorstwa powiązanego 2 (pełne dane przedsiębiorstwa wraz z danymi przedsiębiorstw powiązanych z nim i partnerskich)",null,null,null,null,null,{"$f":"IF(OR(P12=Q12,R12=S12),0,IF(P17=P18,0,\" \"))","v":" "},{"$f":"IF(OR(P12=Q12,R12=S12),0,IF(P17=P18,0,\" \"))","v":" "},{"$f":"IF(OR(P12=Q12,R12=S12),0,IF(P17=P18,0,\" \"))","v":" "},{"$f":"IF(OR(P12=Q12,R12=S12),0,IF(P17=P18,0,\" \"))","v":" "},{"$f":"IF(OR(P12=Q12,R12=S12),0,IF(P17=P18,0,\" \"))","v":" "},{"$f":"IF(OR(P12=Q12,R12=S12),0,IF(P17=P18,0,\" \"))","v":" "},{"$f":"IF(OR(P12=Q12,R12=S12),0,IF(P17=P18,0,\" \"))","v":" "},{"$f":"IF(OR(P12=Q12,R12=S12),0,IF(P17=P18,0,\" \"))","v":" "},{"$f":"IF(OR(P12=Q12,R12=S12),0,IF(P17=P18,0,\" \"))","v":" "},{"$f":"'Zał. 7 strona 7'!A15","v":2}]
[null,null,null,null,null,null,null,null,null,null,null,null,null,null,null,"ND"]
["Informacje o podmiotach powiązanych i partnerskich z przedsiębiorstwem powiązanym nr 2 (nazwa, REGON, opis sposobu powiązania)",null,null,null,null,null,{"$f":"IF(OR(P12=Q12,R12=S12),\"ND\",IF(P17=P18,\"ND\",\" \"))","v":" "}]
[]
["Dane przedsiębiorstwa powiązanego 3 (pełne dane przedsiębiorstwa wraz z danymi przedsiębiorstw powiązanych z nim i partnerskich)",null,null,null,null,null,{"$f":"IF(OR(P12=Q12,R12=S12),0,IF(P21=P22,0,\" \"))","v":" "},{"$f":"IF(OR(P12=Q12,R12=S12),0,IF(P21=P22,0,\" \"))","v":" "},{"$f":"IF(OR(P12=Q12,R12=S12),0,IF(P21=P22,0,\" \"))","v":" "},{"$f":"IF(OR(P12=Q12,R12=S12),0,IF(P21=P22,0,\" \"))","v":" "},{"$f":"IF(OR(P12=Q12,R12=S12),0,IF(P21=P22,0,\" \"))","v":" "},{"$f":"IF(OR(P12=Q12,R12=S12),0,IF(P21=P22,0,\" \"))","v":" "},{"$f":"IF(OR(P12=Q12,R12=S12),0,IF(P21=P22,0,\" \"))","v":" "},{"$f":"IF(OR(P12=Q12,R12=S12),0,IF(P21=P22,0,\" \"))","v":" "},{"$f":"IF(OR(P12=Q12,R12=S12),0,IF(P21=P22,0,\" \"))","v":" "},{"$f":"'Zał. 7 strona 7'!A17","v":3}]
[null,null,null,null,null,null,null,null,null,null,null,null,null,null,null,"ND"]
["Informacje o podmiotach powiązanych i partnerskich z przedsiębiorstwem powiązanym nr 3 (nazwa, REGON, opis sposobu powiązania)",null,null,null,null,null,{"$f":"IF(OR(P12=Q12,R12=S12),\"ND\",IF(P21=P22,\"ND\",\" \"))","v":" "}]
[]
["Dane przedsiębiorstwa powiązanego 4 (pełne dane przedsiębiorstwa wraz z danymi przedsiębiorstw powiązanych z nim i partnerskich)",null,null,null,null,null,{"$f":"IF(OR(P12=Q12,R12=S12),0,IF(P25=P26,0,\" \"))","v":" "},{"$f":"IF(OR(P12=Q12,R12=S12),0,IF(P25=P26,0,\" \"))","v":" "},{"$f":"IF(OR(P12=Q12,R12=S12),0,IF(P25=P26,0,\" \"))","v":" "},{"$f":"IF(OR(P12=Q12,R12=S12),0,IF(P25=P26,0,\" \"))","v":" "},{"$f":"IF(OR(P12=Q12,R12=S12),0,IF(P25=P26,0,\" \"))","v":" "},{"$f":"IF(OR(P12=Q12,R12=S12),0,IF(P25=P26,0,\" \"))","v":" "},{"$f":"IF(OR(P12=Q12,R12=S12),0,IF(P25=P26,0,\" \"))","v":" "},{"$f":"IF(OR(P12=Q12,R12=S12),0,IF(P25=P26,0,\" \"))","v":" "},{"$f":"IF(OR(P12=Q12,R12=S12),0,IF(P25=P26,0,\" \"))","v":" "},{"$f":"'Zał. 7 strona 7'!A19","v":4}]
[null,null,null,null,null,null,null,null,null,null,null,null,null,null,null,"ND"]
["Informacje o podmiotach powiązanych i partnerskich z przedsiębiorstwem powiązanym nr 4 (nazwa, REGON, opis sposobu powiązania)",null,null,null,null,null,{"$f":"IF(OR(P12=Q12,R12=S12),\"ND\",IF(P25=P26,\"ND\",\" \"))","v":" "}]
[]
["Dane przedsiębiorstwa powiązanego 5 (pełne dane przedsiębiorstwa wraz z danymi przedsiębiorstw powiązanych z nim i partnerskich)",null,null,null,null,null,{"$f":"IF(OR(P12=Q12,R12=S12),0,IF(P29=P30,0,\" \"))","v":" "},{"$f":"IF(OR(P12=Q12,R12=S12),0,IF(P29=P30,0,\" \"))","v":" "},{"$f":"IF(OR(P12=Q12,R12=S12),0,IF(P29=P30,0,\" \"))","v":" "},{"$f":"IF(OR(P12=Q12,R12=S12),0,IF(P29=P30,0,\" \"))","v":" "},{"$f":"IF(OR(P12=Q12,R12=S12),0,IF(P29=P30,0,\" \"))","v":" "},{"$f":"IF(OR(P12=Q12,R12=S12),0,IF(P29=P30,0,\" \"))","v":" "},{"$f":"IF(OR(P12=Q12,R12=S12),0,IF(P29=P30,0,\" \"))","v":" "},{"$f":"IF(OR(P12=Q12,R12=S12),0,IF(P29=P30,0,\" \"))","v":" "},{"$f":"IF(OR(P12=Q12,R12=S12),0,IF(P29=P30,0,\" \"))","v":" "},{"$f":"'Zał. 7 strona 7'!A21","v":5}]
[null,null,null,null,null,null,null,null,null,null,null,null,null,null,null,"ND"]
["Informacje o podmiotach powiązanych i partnerskich z przedsiębiorstwem powiązanym nr 5 (nazwa, REGON, opis sposobu powiązania)",null,null,null,null,null,{"$f":"IF(OR(P12=Q12,R12=S12),\"ND\",IF(P29=P30,\"ND\",\" \"))","v":" "}]
[]
["Zsumowane dane wszystkich przedsiębiorstw powiązanych*/Dane wynikające ze skonsolidowanego sprawozdania finansowego przedsiębiorstw powiązanych*25\n\n*niepotrzebne skreślić",null,null,null,null,null,{"$f":"IFERROR(G29+G25+G21+G17+G13+G12,0)","v":0},{"$f":"IFERROR(H29+H25+H21+H17+H13+H12,0)","v":0},0,0,0,0,0,0,0]
[null,null,null,null,null,null,"Data",{"$f":"TODAY()","v":"2025-12-08"},null,"Podpis",null,"................................................................."]

{"sheet":"Zał. 8 strona 1","index":20,"n_rows":42,"n_cols":16,"rows_kept":42,"cut":false,"hidden":false,"merged":[[28,7,29,8],[20,5,21,6],[20,7,21,8],[22,5,23,6],[26,0,27,3],[26,4,27,4],[28,0,29,3],[28,4,29,4],[28,5,29,6],[26,5,27,6],[26,7,27,8],[22,4,23,4],[18,5,19,6],[18,7,19,8],[16,0,17,3],[24,0,25,3],[24,4,25,4],[22,7,23,8],[24,5,25,6],[24,7,25,8],[16,4,17,4],[16,5,17,6],[16,7,17,8],[18,0,19,3],[18,4,19,4],[20,0,21,3],[20,4,21,4],[22,0,23,3],[36,0,37,4],[36,5,37,6],[36,7,37,8],[30,5,31,6],[30,7,31,8],[32,5,33,6],[32,7,33,8],[30,0,31,3],[30,4,31,4],[32,0,33,3],[32,4,33,4],[34,0,35,3],[34,4,35,4],[34,5,35,6],[34,7,35,8],[0,0,2,8],[3,0,3,8],[12,0,15,3],[12,4,15,4],[12,5,13,8],[14,5,15,6],[7,0,7,8],[8,0,10,8],[11,0,11,8],[4,0,6,4],[14,7,15,8],[38,0,40,0],[38,1,40,2],[38,3,40,4],[38,5,40,8],[41,0,43,8]]}
["WYPEŁNIJ WSZYSTKIE POLA Z CZERWONYM TŁEM",null,null,null,null,null,null,null,null,{"$f":"source!A84","v":"otrzymało pomoc de minimis zgodnie z poniższą tabelą"},{"$f":"source!A83","v":"nie otrzymało pomocy de minimis"},null,null,null,null,{"$f":"'Zał. 7 strona 8'!P1","v":0}]
[null,null,null,null,null,null,null,null,null,null,null,null,null,null,null,{"$f":"'Zał. 7 strona 8'!P2","v":"wybierz wielkość przedsiębiorstwa"}]
[]
[{"$f":"'Strona 1'!A8","v":"wybierz wydarzenie"}]
[{"$f":"IF('Strona 2'!D8=0,\" \",'Strona 2'!D8)","v":" "}]
[]
[]
["Oświadczenie dotyczące pomocy de minimis "]
["W związku z ubieganiem się o wsparcie ze środków projektu „Marketing Gospodarczy Województwa Lubelskiego III” oświadczam, że w ciągu 3 minionych lat1 przedsiębiorstwo, które reprezentuję:"]
[]
[]
["otrzymało pomoc de minimis zgodnie z poniższą tabelą"]
["Podmiot udzielający pomocy",null,null,null,"Dzień udzielenia pomocy","Wartość otrzymanej \npomocy brutto"]
[]
[null,null,null,null,null,"w [PLN]",null,"w [EUR]"]
[]
[{"$f":"IF(A12=J1,\"podaj nazwę podmiotu udzielającego pomocy\",IF(A12=K1,\"ND\",\"najpierw zaznacz odpowiedź powyżej\"))","v":"podaj nazwę podmiotu udzielającego pomocy"},null,null,null,{"$f":"IF(A12=J1,\"wpisz datę\",IF(A12=K1,\"ND\",\" \"))","v":"wpisz datę"},{"$f":"IF(A12=J1,\"podaj wartość pomocy w PLN\",IF(A12=K1,0,\" \"))","v":"podaj wartość pomocy w PLN"},null,{"$f":"IF(A12=J1,\"podaj wartość pomocy w EUR\",IF(A12=K1,0,\" \"))","v":"podaj wartość pomocy w EUR"}]
[]
[{"$f":"IF(A12=J1,\"podaj nazwę kolejngo podmiotu udzielającego pomocy lub wpisz ND\",IF(A12=K1,\"ND\",\"najpierw zaznacz odpowiedź powyżej\"))","v":"podaj nazwę kolejngo podmiotu udzielającego pomocy lub wpisz ND"},null,null,null,{"$f":"IF(A12=J1,\"wpisz datę lub ND\",IF(A12=K1,\"ND\",\" \"))","v":"wpisz datę lub ND"},{"$f":"IF(A12=J1,\"podaj wartość pomocy w PLN lub wpisz 0,00\",IF(A12=K1,0,\" \"))","v":"podaj wartość pomocy w PLN lub wpisz 0,00"},null,{"$f":"IF(A12=J1,\"podaj wartość pomocy w EUR lub wpisz 0,00\",IF(A12=K1,0,\" \"))","v":"podaj wartość pomocy w EUR lub wpisz 0,00"}]
[]
[{"$f":"IF(A12=J1,\"podaj nazwę kolejngo podmiotu udzielającego pomocy lub wpisz ND\",IF(A12=K1,\"ND\",\"najpierw zaznacz odpowiedź powyżej\"))","v":"podaj nazwę kolejngo podmiotu udzielającego pomocy lub wpisz ND"},null,null,null,{"$f":"IF(A12=J1,\"wpisz datę lub ND\",IF(A12=K1,\"ND\",\" \"))","v":"wpisz datę lub ND"},{"$f":"IF(A12=J1,\"podaj wartość pomocy w PLN lub wpisz 0,00\",IF(A12=K1,0,\" \"))","v":"podaj wartość pomocy w PLN lub wpisz 0,00"},null,{"$f":"IF(A12=J1,\"podaj wartość pomocy w EUR lub wpisz 0,00\",IF(A12=K1,0,\" \"))","v":"podaj wartość pomocy w EUR lub wpisz 0,00"}]
[]
[{"$f":"IF(A12=J1,\"podaj nazwę kolejngo podmiotu udzielającego pomocy lub wpisz ND\",IF(A12=K1,\"ND\",\"najpierw zaznacz odpowiedź powyżej\"))","v":"podaj nazwę kolejngo podmiotu udzielającego pomocy lub wpisz ND"},null,null,null,{"$f":"IF(A12=J1,\"wpisz datę lub ND\",IF(A12=K1,\"ND\",\" \"))","v":"wpisz datę lub ND"},{"$f":"IF(A12=J1,\"podaj wartość pomocy w PLN lub wpisz 0,00\",IF(A12=K1,0,\" \"))","v":"podaj wartość pomocy w PLN lub wpisz 0,00"},null,{"$f":"IF(A12=J1,\"podaj wartość pomocy w EUR lub wpisz 0,00\",IF(A12=K1,0,\" \"))","v":"podaj wartość pomocy w EUR lub wpisz 0,00"}]
[]
[{"$f":"IF(A12=J1,\"podaj nazwę kolejngo podmiotu udzielającego pomocy lub wpisz ND\",IF(A12=K1,\"ND\",\"najpierw zaznacz odpowiedź powyżej\"))","v":"podaj nazwę kolejngo podmiotu udzielającego pomocy lub wpisz ND"},null,null,null,{"$f":"IF(A12=J1,\"wpisz datę lub ND\",IF(A12=K1,\"ND\",\" \"))","v":"wpisz datę lub ND"},{"$f":"IF(A12=J1,\"podaj wartość pomocy w PLN lub wpisz 0,00\",IF(A12=K1,0,\" \"))","v":"podaj wartość pomocy w PLN lub wpisz 0,00"},null,{"$f":"IF(A12=J1,\"podaj wartość pomocy w EUR lub wpisz 0,00\",IF(A12=K1,0,\" \"))","v":"podaj wartość pomocy w EUR lub wpisz 0,00"}]
[]
[{"$f":"IF(A12=J1,\"podaj nazwę kolejngo podmiotu udzielającego pomocy lub wpisz ND\",IF(A12=K1,\"ND\",\"najpierw zaznacz odpowiedź powyżej\"))","v":"podaj nazwę kolejngo podmiotu udzielającego pomocy lub wpisz ND"},null,null,null,{"$f":"IF(A12=J1,\"wpisz datę lub ND\",IF(A12=K1,\"ND\",\" \"))","v":"wpisz datę lub ND"},{"$f":"IF(A12=J1,\"podaj wartość pomocy w PLN lub wpisz 0,00\",IF(A12=K1,0,\" \"))","v":"podaj wartość pomocy w PLN lub wpisz 0,00"},null,{"$f":"IF(A12=J1,\"podaj wartość pomocy w EUR lub wpisz 0,00\",IF(A12=K1,0,\" \"))","v":"podaj wartość pomocy w EUR lub wpisz 0,00"}]
[]
[{"$f":"IF(A12=J1,\"podaj nazwę kolejngo podmiotu udzielającego pomocy lub wpisz ND\",IF(A12=K1,\"ND\",\"najpierw zaznacz odpowiedź powyżej\"))","v":"podaj nazwę kolejngo podmiotu udzielającego pomocy lub wpisz ND"},null,null,null,{"$f":"IF(A12=J1,\"wpisz datę lub ND\",IF(A12=K1,\"ND\",\" \"))","v":"wpisz datę lub ND"},{"$f":"IF(A12=J1,\"podaj wartość pomocy w PLN lub wpisz 0,00\",IF(A12=K1,0,\" \"))","v":"podaj wartość pomocy w PLN lub wpisz 0,00"},null,{"$f":"IF(A12=J1,\"podaj wartość pomocy w EUR lub wpisz 0,00\",IF(A12=K1,0,\" \"))","v":"podaj wartość pomocy w EUR lub wpisz 0,00"}]
[]
[{"$f":"IF(A12=J1,\"podaj nazwę kolejngo podmiotu udzielającego pomocy lub wpisz ND\",IF(A12=K1,\"ND\",\"najpierw zaznacz odpowiedź powyżej\"))","v":"podaj nazwę kolejngo podmiotu udzielającego pomocy lub wpisz ND"},null,null,null,{"$f":"IF(A12=J1,\"wpisz datę lub ND\",IF(A12=K1,\"ND\",\" \"))","v":"wpisz datę lub ND"},{"$f":"IF(A12=J1,\"podaj wartość pomocy w PLN lub wpisz 0,00\",IF(A12=K1,0,\" \"))","v":"podaj wartość pomocy w PLN lub wpisz 0,00"},null,{"$f":"IF(A12=J1,\"podaj wartość pomocy w EUR lub wpisz 0,00\",IF(A12=K1,0,\" \"))","v":"podaj wartość pomocy w EUR lub wpisz 0,00"}]
[]
[{"$f":"IF(A12=J1,\"podaj nazwę kolejngo podmiotu udzielającego pomocy lub wpisz ND\",IF(A12=K1,\"ND\",\"najpierw zaznacz odpowiedź powyżej\"))","v":"podaj nazwę kolejngo podmiotu udzielającego pomocy lub wpisz ND"},null,null,null,{"$f":"IF(A12=J1,\"wpisz datę lub ND\",IF(A12=K1,\"ND\",\" \"))","v":"wpisz datę lub ND"},{"$f":"IF(A12=J1,\"podaj wartość pomocy w PLN lub wpisz 0,00\",IF(A12=K1,0,\" \"))","v":"podaj wartość pomocy w PLN lub wpisz 0,00"},null,{"$f":"IF(A12=J1,\"podaj wartość pomocy w EUR lub wpisz 0,00\",IF(A12=K1,0,\" \"))","v":"podaj wartość pomocy w EUR lub wpisz 0,00"}]
[]
[{"$f":"IF(A12=J1,\"podaj nazwę kolejngo podmiotu udzielającego pomocy lub wpisz ND\",IF(A12=K1,\"ND\",\"najpierw zaznacz odpowiedź powyżej\"))","v":"podaj nazwę kolejngo podmiotu udzielającego pomocy lub wpisz ND"},null,null,null,{"$f":"IF(A12=J1,\"wpisz datę lub ND\",IF(A12=K1,\"ND\",\" \"))","v":"wpisz datę lub ND"},{"$f":"IF(A12=J1,\"podaj wartość pomocy w PLN lub wpisz 0,00\",IF(A12=K1,0,\" \"))","v":"podaj wartość pomocy w PLN lub wpisz 0,00"},null,{"$f":"IF(A12=J1,\"podaj wartość pomocy w EUR lub wpisz 0,00\",IF(A12=K1,0,\" \"))","v":"podaj wartość pomocy w EUR lub wpisz 0,00"}]
[]
["Łączna wartość otrzymanej pomocy de minimis na dzień ubiegania się o pomoc ",null,null,null,null,{"$f":"SUM(F17:G36)","v":0},null,{"$f":"SUM(H17:I36)","v":0}]
[]
["Data",{"$f":"TODAY()","v":"2025-12-08"},null,"Podpis",null,"................................................................."]
[]
[]
[" Okres minionych trzech lat należy oceniać w sposób ciągły, uwzględniając okres 3 lat wstecz od dnia złożenia wniosku. Minione lata należy rozumieć w ten sposób, że jeśli na przykład pomoc de minimis była udzielona w dniu 5 stycznia 2024 r., uwzględnieniu podlega pomoc de minimis i pomoc de minimis w rolnictwie lub rybołówstwie udzielona począwszy od 5 stycznia 2021."]

{"sheet":"Zał. 9","index":21,"n_rows":64,"n_cols":5,"rows_kept":64,"cut":false,"hidden":false,"merged":[[56,2,56,3],[5,0,5,4],[6,2,6,4],[22,2,22,4],[54,0,54,4],[55,2,55,3],[3,2,3,4],[4,2,4,4],[0,0,1,4],[2,2,2,4],[3,0,3,1],[4,0,4,1]]}
["Załącznik nr 9 do Regulaminu z dnia 27 czerwca 2025 r.\nSYTUACJA FINANSOWA MŚP"]
[]
[]
["Nazwa Przedsiębiorstwa:",null,{"$f":"IF('Strona 2'!D8=0,\" \",'Strona 2'!D8)","v":" "}]
["NIP:",null,{"$f":"IF('Strona 2'!D31=0,\" \",'Strona 2'!D31)","v":" "}]
["1. Wszystkie informacje podane w oświadczeniu powinny znajdować potwierdzenie w księgach rachunkowych lub w przypadku prowadzenia uproszczonej ksiegowości w książce przychodów i rozchodów.\n2. Skrót \"n\" rozumiemy jako dane za zamknięty rok obrachunkowy lub ostatni zamknięty kwartał w przypadku danych śródrocznych. W przypadku firmy, której rok obrachunkowy jest zgodny z rokiem kalendarzowym (tj. od stycznia do grudnia danego roku), prosimy o wpisywanie kolejno:\n    \"n\" - jako zamknięty kwartał / zamknięte kwartały danego roku\n    \"n-1\" - ostatni zamknięty rok obrachunkowy\n    \"n-2\" - przedostatni zamknięty rok obrachunkowy"]
["Wiersz","AKTYWA","Stan na "]
[1,2,{"$f":"'Zał. 7 strona 1'!D30","v":"01.01.2022 - 31.12.2022"},{"$f":"'Zał. 7 strona 1'!F30","v":"01.01.2023 - 31.12.2023"},{"$f":"'Zał. 7 strona 1'!H30","v":"01.01.2024 - 31.12.2024"}]
["A","Aktywa trwałe",{"$f":"SUM(C10:C14)","v":0},{"$f":"SUM(D10:D14)","v":0},{"$f":"SUM(E10:E14)","v":0}]
["I","Wartości niematerialne i prawne",0,0,0]
["II","Rzeczowe aktywa trwałe",0,0,0]
["III","Należności długoterminowe",0,0,0]
["IV","Inwestycje długoterminowe",0,0,0]
["V","Długoterminowe rozliczenia międzyokresowe",0,0,0]
["B","Aktywa obrotowe",{"$f":"SUM(C16:C19)","v":0},{"$f":"SUM(D16:D19)","v":0},{"$f":"SUM(E16:E19)","v":0}]
["I","Zapasy ",0,0,0]
["II","Należności krótkoterminowe",0,0,0]
["III","Inwestycje krótkoterminowe",0,0,0]
["IV","Krótkoterminowe rozliczenia międzyokresowe",0,0,0]
["C","Należne wpłaty na kapitał /fundusz/podstawowy",0,0,0]
["D","Udziały/ akcje/własne",0,0,0]
[null,"Suma bilansowa",{"$f":"SUM(C9,C15,C20,C21)","v":0},{"$f":"SUM(D9,D15,D20,D21)","v":0},{"$f":"SUM(E9,E15,E20,E21)","v":0}]
["Wiersz","PASYWA","Stan na "]
[2,2,{"$f":"C8","v":"01.01.2022 - 31.12.2022"},{"$f":"D8","v":"01.01.2023 - 31.12.2023"},{"$f":"E8","v":"01.01.2024 - 31.12.2024"}]
["A","Kapitał własny",{"$f":"SUM(C26:C32)","v":0},{"$f":"SUM(D26:D32)","v":0},{"$f":"SUM(E26:E32)","v":0}]
["I","Kapitał /fundusz/ podstawowy",0,0,0]
["II","Kapitał /fundusz/ zapasowy",0,0,0]
["III","Kapitał/ fundusz/ z aktualizacji wyceny",0,0,0]
["IV","pozostałe kapitały (fundusze) rezerwowe",0,0,0]
["V","Zysk/strata z lat ubiegłych",0,0,0]
["VI","Zysk/strata netto ",0,0,0]
["VII","odpisy z zysku netto w ciągu roku obrotowego (wielkość ujemna)",0,0,0]
["B","Zobowiązania i rezerwy na zobowiązania",{"$f":"SUM(C34+C35+C36+C40)","v":0},{"$f":"SUM(D34+D35+D36+D40)","v":0},{"$f":"SUM(E34+E35+E36+E40)","v":0}]
["I ","Rezerwy na zobowiązania",0,0,0]
["II","Zobowiązania długoterminowe",0,0,0]
["III","Zobowiązania krótkoterminowe, w tym: ",{"$f":"SUM(C37:C39)","v":0},{"$f":"SUM(D37:D39)","v":0},{"$f":"SUM(E37:E39)","v":0}]
[1,"z tytułu kredytów i pożyczek",0,0,0]
[2,"z tytułu dostaw i usług",0,0,0]
[3,"Fundusze specjalne",0,0,0]
["IV","Rozliczenia międzyokresowe",0,0,0]
[null,"Suma bilansowa",{"$f":"SUM(C25+C33)","v":0},{"$f":"SUM(D25+D33)","v":0},{"$f":"SUM(E25+E33)","v":0}]
[]
["A","Przychody netto ze sprzedaży",0,0,0]
["B","Koszty działalności operacyjnej, w tym ",0,0,0]
["I","amortyzacja",0,0,0]
["C","Zysk (strata) ze sprzedaży",{"$f":"C43-C44","v":0},{"$f":"D43-D44","v":0},{"$f":"E43-E44","v":0}]
["D","Pozostałe przychody operacyjne ",0,0,0]
["E","Pozostałe koszty operacyjne ",0,0,0]
["F","Zysk (strata) z działalności operacyjnej",{"$f":"SUM(C46+C47-C48)","v":0},{"$f":"SUM(D46+D47-D48)","v":0},{"$f":"SUM(E46+E47-E48)","v":0}]
["G","Przychody finansowe",0,0,0]
["H","Koszty finansowe",0,0,0]
["I","Zysk (strata) brutto",{"$f":"SUM(C49+C50-C51)","v":0},{"$f":"SUM(D49+D50-D51)","v":0},{"$f":"SUM(E49+E50-E51)","v":0}]
["L","Zysk (strata) netto",0,0,0]
[]
["Ja, niżej podpisana(y), niniejszym oświadczam, że informacje zawarte w niniejszym dokumencie są zgodne z prawdą. Jestem świadoma(y) odpowiedzialności karnej wynikającej z art. 297 kodeksu karnego, dotyczącej składania nierzetelnych oświadczeń co do okoliczności o istotnym znaczeniu dla otrzymania pomocy de minimis."]
[null,".....................................","………………………………………."]
[null,"Data, czytelny podpis i pieczątka osoby upoważnionej do reprezentacji MŚP","Data, podpis i pieczątka osoby upoważnionej do składania oświadczeń finansowych  (osoby odpowiedzialnej za prowadzenie ksiąg rachunkowych)"]
[]
[]
[]
[]
[]
[{"$f":"'Zał. 8 strona 1'!$P$1","v":0}]
[{"$f":"'Zał. 8 strona 1'!$P$2","v":"wybierz wielkość przedsiębiorstwa"}]

{"sheet":"Zał. 9a","index":22,"n_rows":43,"n_cols":16,"rows_kept":43,"cut":false,"hidden":false,"merged":[[42,1,42,2],[31,0,31,3],[33,0,33,3],[5,0,5,3],[6,1,6,3],[8,0,8,3],[19,0,19,3],[27,0,27,3],[41,1,41,2],[1,0,1,3],[2,0,2,3],[38,0,38,3],[3,1,3,2],[4,1,4,2]]}
[null,null,null,null,null,null,null,null,null,null,null,null,null,null,null,{"$f":"'Zał. 8 strona 1'!$P$1","v":0}]
["Załącznik nr 9a do Regulaminu z dnia 27 czerwca 2025 r.\nSYTUACJA FINANSOWA MŚP",null,null,null,null,null,null,null,null,null,null,null,null,null,null,{"$f":"'Zał. 8 strona 1'!$P$2","v":"wybierz wielkość przedsiębiorstwa"}]
["Wzór dla przedsiębiorstwa, które nie jest zobowiązane do sporządzania sprawozdań finansowych, \nzgodnie z ustawą o rachunkowości z dnia 29 września 1994 r."]
["Nazwa Przedsiębiorstwa:",{"$f":"IF('Strona 2'!D8=0,\" \",'Strona 2'!D8)","v":" "}]
["NIP:",{"$f":"IF('Strona 2'!D31=0,\" \",'Strona 2'!D31)","v":" "}]
["1. Wszystkie informacje podane w oświadczeniu powinny znajdować potwierdzenie w księgach rachunkowych lub w przypadku prowadzenia uproszczonej ksiegowości w książce przychodów i rozchodów.\n2. Skrót \"n\" rozumiemy jako dane za zamknięty rok obrachunkowy lub ostatni zamknięty kwartał w przypadku danych śródrocznych. W przypadku firmy, której rok obrachunkowy jest zgodny z rokiem kalendarzowym (tj. od stycznia do grudnia danego roku), prosimy o wpisywanie kolejno:\n    \"n\" - jako zamknięty kwartał / zamknięte kwartały danego roku\n    \"n-1\" - ostatni zamknięty rok obrachunkowy\n    \"n-2\" - przedostatni zamknięty rok obrachunkowy\n3. * wzór na prawidłowe obliczenie EBIT: Zysk (Strata) netto plus koszty podatkowe plus koszty finansowe (netto)."]
["Pozycja","Stan na"]
[null,{"$f":"'Zał. 9'!C8","v":"01.01.2022 - 31.12.2022"},{"$f":"'Zał. 9'!D8","v":"01.01.2023 - 31.12.2023"},{"$f":"'Zał. 9'!E8","v":"01.01.2024 - 31.12.2024"}]
[]
["I. Wartości niematerialne i prawne",0,0,0]
["II. Rzeczowe aktywa trwałe",0,0,0]
["III. Nalezności długoterminowe",0,0,0]
["IV. Inwestycje długoterminowe",0,0,0]
["V. Długoterminowe rolziczenia międzyokresowe",0,0,0]
["VI.Zapasy",0,0,0]
["VII. Należności krótkoterminowe",0,0,0]
["VIII. Inwestycje krótkoterminowe (w tym środki pieniężne)",0,0,0]
["IX. Krótkoterminowe rozliczenia międzyokresowe",0,0,0]
[" RAZEM (I+II+III+IV+V+VI+VII+VIII+IX)",{"$f":"SUM(B10:B18)","v":0},{"$f":"SUM(C10:C18)","v":0},{"$f":"SUM(D10:D18)","v":0}]
[]
["A. Kapitał (fundusz) własny",0,0,0]
["B. Zobowiazania i rezerwy na zobowiązania (I+II+III+IV)",{"$f":"SUM(B23:B26)","v":0},{"$f":"SUM(C23:C26)","v":0},{"$f":"SUM(D23:D26)","v":0}]
["I. Rezerwy na zobowiazania",0,0,0]
["II. Zobowiazania długoterminowe",0,0,0]
["III. Zobowiazania krótkoterminowe",0,0,0]
["IV. Rozliczenia międzyokresowe",0,0,0]
["RAZEM (A+B)",{"$f":"B21+B22","v":0},{"$f":"C21+C22","v":0},{"$f":"D21+D22","v":0}]
[]
["PRZYCHODY NETTO ZE SPRZEDAŻY, w tym:",0,0,0]
["PRZYCHODY NETTO ZE SPRZEDAŻY produktów i usług",0,0,0]
["PRZYCHODY NETTO ZE SPRZEDAŻY towarów i materiałów",0,0,0]
[]
["Amortyzacja",0,0,0]
[]
["EBIT (zysk operacyjny przed odliczeniem podatków i odsetek)*",0,0,0]
["Podatek dochodowy od osób prawnych lub fizycznych",0,0,0]
["ZYSK (STRATA) NETTO",0,0,0]
[]
["Ja, niżej podpisana(y), niniejszym oświadczam, że informacje zawarte w niniejszym dokumencie są zgodne z prawdą. Jestem świadoma(y) odpowiedzialności karnej wynikającej z art. 297 kodeksu karnego, dotyczącej składania nierzetelnych oświadczeń co do okoliczności o istotnym znaczeniu dla uzyskania pomocy de minimis."]
[]
[]
[]
["Data, czytelny podpis i pieczątka osoby upoważnionej do reprezentacji Przedsiębiorstwa","Data, podpis i pieczątka osoby upoważnionej do składania oświadczeń finansowych  (osoby odpowiedzialnej za prowadzenie ksiąg rachunkowych)"]

{"sheet":"RSI","index":23,"n_rows":121,"n_cols":1,"rows_kept":121,"cut":false,"hidden":true,"merged":[]}
["ŻYWNOŚĆ WYSOKIEJ JAKOŚCI "]
["111 Innowacyjne działania na rzecz poprawy żyzności i produktywności gleb "]
["112 Wysokiej jakości materiał siewny, rozmnożeniowy i nasadzeniowy o zwiększonej odporności na choroby i szkodniki oraz warunki suszy rolniczej"]
["113 Bezpieczeństwo oraz poprawa jakości surowców roślinnych w zakresie stosowania nawozów i środków ochrony roślin"]
["114 Innowacyjne technologie i maszyny dla rolnictwa, w tym precyzyjnego "]
["121 Zdrowa żywność, w tym ekologiczna, tradycyjna i regionalna"]
["122 Innowacyjne sieci dystrybucji zdrowej, lokalnej i sezonowej żywności tzw.   kooperatywy spożywcze "]
["123 Technologie przetwórstwa rolno-spożywczego ograniczające zużycie energii   i wody "]
["124 Technologie podnoszące jakość, trwałość, funkcjonalność i bezpieczeństwo produktów pochodzenia roślinnego i zwierzęcego "]
["125 Zrównoważona produkcja, przetwórstwo i przechowalnictwo "]
["126 Innowacyjne systemy i oprogramowanie oraz inteligentne metody i narzędzia zarządzania i monitorowania przebiegu procesu produkcji oraz oceny jakości surowców i produktów gotowych "]
["127 Rozwijanie narzędzi i nowoczesnych technik badawczych oraz markerów jakości żywności "]
["128 Innowacyjne systemy, układy, sensory i detektory elektroniczne i fotoniczne do zastosowań rolno-spożywczych  "]
["129 Technologie cyfrowe, w tym rozwiązania informatyczne służące do gromadzenia i analizy danych, wspomagających procesy produkcyjne w sektorze rolno-spożywczym "]
["130 Technologie w zakresie transportu i przechowywania żywności  "]
["131 Innowacyjne modele marketingowe w promocji żywności wysokiej jakości "]
[]
["ZIELONA GOSPODARKA "]
["211 Efektywne zarządzanie zasobami obejmujące ich przetwarzanie, produkcję, sprzedaż, użytkowanie i zagospodarowanie odpadów "]
["212 Wykorzystywanie biomasy do produkcji materiałów zastępujących inne nieodnawialne surowce "]
["213 Obniżanie emisyjności przemysłu "]
["214 Technologie i systemy przeciwdziałające zagrożeniom środowiskowym oraz monitoring poziomu zanieczyszczeń "]
["215 Biodegradowalność surowców oraz optymalizacja zagospodarowania odpadów poprodukcyjnych (technologie, procesy, produkty)"]
["216 Zero waste food "]
["217 Biotechnologie w inżynierii i ochronie środowiska "]
["218 Innowacyjne systemy, układy, sensory i detektory elektroniczne i fotoniczne do zastosowań w ochronie środowiska "]
["219 Metody ochrony i rekultywacji gleb oraz oczyszczanie ścieków "]
["220 Oszczędna i efektywna gospodarka wodna "]
["221 Czyste technologie węglowe "]
["222 Substancje  bioaktywne przeznaczone do wytwarzania środków ochrony roślin, nawozów i leków, w tym leków weterynaryjnych "]
["223 (Bio)polimery i (bio)tworzywa "]
["231 Zwiększenie wykorzystania odnawialnych źródeł energii  "]
["232 Energia z odpadów i paliw alternatywnych "]
["233 Poprawa efektywności konwersji energii "]
["234 Innowacyjne systemy wytwarzania, zarządzania, przesyłu, dystrybucji energii "]
["235 Inteligentne rozwiązania w sieciach elektroenergetycznych "]
["236 Metody i technologie magazynowania energii "]
["237 Smart mettering i inteligentne liczniki energii "]
["238 Nowoczesne systemy ciepłownicze i chłodnicze  "]
["239 Systemy izolacyjne sprzyjające energooszczędności  "]
["240 Systemy dystrybucji energii w budynkach  "]
["241 Inteligentne, energooszczędne systemy oświetleniowe "]
["242 Rozwój infrastruktury sprzyjającej elektromobilności "]
[]
["ZDROWE SPOŁECZEŃSTWO"]
["311 Promocja zdrowego stylu życia, w tym rozwój branży wellness "]
["312 Profilaktyka chorób cywilizacyjnych i przeciwdziałanie zagrożeniom epidemiologicznym, w tym nowe innowacyjne metody leczenia i profilaktyki "]
["313 Turystyka, w tym turystyka zdrowotna i prozdrowotna "]
["314 Wykorzystanie zasobów (walorów) naturalnych regionu w funkcji uzdrowiskowej "]
["315 Rozwój usług i produktów skierowanych do osób starszych, z niepełnosprawnościami, sprzyjających utrzymaniu ich samodzielności i aktywności "]
["316 Nowe leki, innowacyjne suplementy diety, żywność funkcjonalna i środki spożywcze specjalnego przeznaczenia żywieniowego "]
["317 Innowacyjne kosmetyki "]
["318 Innowacyjne substancje biologicznie czynne jako potencjalne leki nowej generacji "]
["321 Diagnostyka i terapia genowa "]
["322 Medycyna spersonalizowana "]
["323 Zintegrowana opieka medyczna "]
["324 Chirurgia minimalnie inwazyjna "]
["325 Medycyna regeneracyjna i inżynieria tkankowa "]
["326 Medycyna translacyjna "]
["331 Teleopieka i telemedycyna "]
["332 Nowoczesne technologie materiałowe i materiały w medycynie i rehabilitacji "]
["333 Informatyczne narzędzia medyczne do gromadzenia i analizy danych medycznych w celach diagnostycznych, terapeutycznych i rehabilitacyjnych "]
["334 Innowacyjne systemy, układy, sensory i detektory elektroniczne i fotoniczne do zastosowań medycznych "]
["335 Biosensory "]
["336 Algorytmy sztucznej inteligencji do zastosowania medycznego "]
["337 Robotyka medyczna "]
["338 Rzeczywistość wirtualna i technologie symulacyjne w medycynie"]
[]
["CYFROWE SPOŁECZEŃSTWO"]
["411 Gromadzenie i przechowywanie danych, dygitalizaja zasobów, chmury "]
["412 Aplikacje i analizy potencjału rynku "]
["413 Projektowanie, zarządzanie, optymalizacja i sterowanie procesami produkcyjnymi "]
["414 Technologie i systemy służące świadczeniu usług dla biznesu "]
["415 Technologie i inteligentne systemy telekomunikacyjne i teleinformatyczne, w tym internet rzeczy "]
["416 Systemy służące sprzedaży oraz obsłudze klienta, platformy e-zakupowe, telemarketing "]
["417 Systemy i usługi płatnicze i finansowe (e-commerce) "]
["421 Systemy wykorzystywane w transporcie, w tym systemy sterowania ruchem "]
["422 Inteligentne bezzałogowe statki latające "]
["423 Systemy i urządzenia sterowane numerycznie "]
["431 Bezpieczeństwo i systemy ochrony cyberprzestrzeni "]
["432 Cyberbezpieczeństwo systemów energetycznych "]
["433 Systemy przewidywania i zapobiegania awariom "]
["434 Przestrzenne systemy nawigacje i monitorowania, w tym rozwiązania stosowane w obiektach zamkniętych "]
["435 Zintegrowane systemy zarządzania budynkami "]
["436 Systemy bezinwazyjnego pomiaru i detekcji "]
["437 Projektowanie, w tym projektowanie wnętrz i zabudowy "]
["438 Rzeczywistość wirtualna i technologie symulacyjne "]
["441 Wykorzystanie TIK na rzecz rozwoju edukacji w obszarze umiejętności cyfrowych w celu stworzenia warunków do edukacji zdalnej (na odległość) "]
["442 Innowacyjne produkty i technologie stosowane w upowszechnianiu kultury i dziedzictwa narodowego oraz zabezpieczaniu zbiorów i ich konserwacji "]
["443 Innowacyjne produkty i technologie stosowane w sporcie, rozrywce, reklamie i multimediach "]
["444 Rozwój oprogramowania i technologii związanych ze sztuczną inteligencją i uczeniem maszynowym"]
[]
["TECHNOLOGIE MATERIAŁOWE, PROCESY PRODUKCYJNE I LOGISTYCZNE"]
["511 Materiały o podwyższonych parametrach konstrukcyjnych i izolacyjnych, trwałości oraz charakteryzujące się wysoką odpornością na zużycie i czynniki degradujące "]
["512 Niskoodpadowe technologie i linie produkcyjne wykorzystywane w procesach produkcyjnych "]
["513 Innowacyjne maszyny i urządzenia zmniejszające energochłonność i pracochłonność produkcji oraz zwiększające bezpieczeństwo pracy "]
["514 Technologie i linie produkcyjne do wytwarzania materiałów i wyrobów z zastosowaniem surowców towarzyszących, produktów ubocznych i odpadów "]
["515 Nowoczesne technologie i materiały dla sektora lotniczego "]
["516 Inżynieria mechaniczna w zakresie nowoczesnych metod wytwarzania "]
["517 Innowacyjne metody i narzędzia stosowane do oceny jakości wykonanych produktów "]
["521 Nowoczesne technologie budowy dróg i mostów "]
["522 Innowacyjne konstrukcje nośne z zastosowaniem nowoczesnych materiałów konstrukcyjnych, w tym kompozytów "]
["523 Technologie i systemy sprzyjające racjonalnemu wykorzystaniu ciepła i wody w procesach produkcyjnych "]
["524 Ponowne wykorzystanie materiałów oraz elementów budowlanych (recykling w budownictwie) "]
["531 Innowacyjne pokrycia dachowe oraz zawansowane technologicznie okna i drzwi "]
["532 Innowacyjne systemy, układy, sensory i detektory elektroniczne i fotoniczne do zastosowań w procesach produkcyjnych i logistycznych, energetyce i budownictwie "]
["533 Innowacyjne technologie VR do zastosowań w procesach produkcyjnych i budownictwie "]
["541 Automatyka przemysłowa i usługowa "]
["542 Inteligentne opakowania umożliwiające monitoring jakości i zawartości otoczenia "]
["543 Inteligentne magazyny z wysoce zautomatyzowanymi procesami logistycznymi "]
["544 Nowoczesne opakowania, w tym biodegradowalne i wielokrotnego użytku "]
["545 Zarządzanie procesami technologicznymi i logistycznymi, w tym sterowanie łańcuchem dostaw "]
["546 Systemy i rozwiązania stosowane w usługach spedytorskich i dyspozytorskich"]
[]
["wybierz"]
["Żywność wysokiej jakości"]
["Zielona gospodarka"]
["Zdrowe społeczeństwo"]
["Cyfrowe społeczeństwo"]
["Technologie materiałowe, procesy produkcyjne i logistyczne"]
["ND"]